Workbook

Sheet Overview
A1: GENERAL | C1: FILL IN THE CELLS WITH THE LIGHT BLUE BACKGROUND
A2: ActivityName | B2: Our Awesome Project | G2: The buttons below are to be used by the bidder
A3: Total Price in Euro | B3: =IF(B7=2,SUM(Consortium!F3:F14)+SUM(Consortium!N3:N15),SUM(Consortium!F3:F14)) -> 1315000 | C3: Sum of Consortium Price - fill Consortium sheet
A4: Total Cost in Euro | B4: =IF(B7=2,SUM(Consortium!E3:E15)+SUM(Consortium!M3:M15),SUM(Consortium!E3:E15)) -> 2430000 | C4: Sum of Consortium Cost - fill Consortium sheet
A5: Prime Name | B5: =Consortium!B3 -> Our company | C5: From Consortium sheet
A6: Prime Country | B6: =Consortium!C3 -> IT | C6: From Consortium sheet
A7: Number of Phases | B7: 2 | C7: If contract is not phased enter 1. Maximum 2 phases with this tool.
A8: Number of Subcos in Phase 1 | B8: 1 | C8: Maximum 11 subcos with this tool
A9: Number of Subcos in Phase 2 | B9: 1 | C9: Maximum 11 subcos with this tool
A10: =IF(B7=1,"Number of Milestones","Number of Milestones in Phase 1") -> Number of Milestones in Phase 1 | B10: 1 | C10: Maximum 8 milestones with this tool, maximum two milestones per year.
A11: =IF(B7=2,"Number of Milestones in Phase 2","") -> Number of Milestones in Phase 2 | B11: 1 | C11: Maximum 8 milestones with this tool, maximum two milestones per year.
A12: =IF(B7=1,"Advance Foreseen", "Advance Foreseen in Phase 1") -> Advance Foreseen in Phase 1 | B12: =IF(COUNTIF(Consortium!G3:G14,"Yes")>0,"Yes","No") -> Yes | C12: From Consortium sheet | G12: ALWAYS CLEAR THE EXAMPLE BEFORE
A13: =IF(B7=2, "Advance Foreseen in Phase 2","") -> Advance Foreseen in Phase 2 | B13: =IF(COUNTIF(Consortium!O3:O14,"Yes")>0,"Yes","No") -> Yes | C13: From Consortium sheet | G13: FILLING IN THE DATA!!
A14: Expected Contract Signature | B14: 2022-05-15 | C14: Use format dd/mm/yyyy. It should be later than today
A15: Final Delivery Date | B15: =B16 - 7*references!$C$46 -> 2023-12-18 | C15: 4 weeks before final milestone - fill milestone sheet | G15: MAKE SURE NO WORD DOCUMENT IS OPEN
A16: End of Contract | B16: =IF(B7=1,MAX(MPP!C5:C12),MAX(MPP!C17:C24)) -> 2024-01-15 | C16: Latest milestone in the MPP - fill MPP sheet | G16: BEFORE CLICKING FILL CONTRACT!!
A17: Covid Pandemic On-Going | B17: no | C17: please check if conditions are still applicable | D17: here
A18: Agree to use digital signatures | B18: yes
A20: PHASE(S) | C20: Date of achievement must consistent with last milestone of Phase 1
A21: Intermediate Phase | B21: date of achievement | C21: Draft report to be submitted 4 weeks before | D21: deadline report | E21: -4 | F21: in weeks
A22: 1 | B22: =MAX(MPP!C5:C12) -> 2022-09-30 | C22: In case of phased contract, this is last milestone of Phase 1 | D22: =IF(B7>1,"The draft Phase 1 Report, shall be submitted by email in electronic searchable, indexed and not encrypted PDF and original (WORD)" & "format for approval, to the Agency’s Technical Officer specified in Article 5, Clause 5, Sub-Clause 5.1 a) of the Contract, not later than " & TEXT(B22 - 7*references!$C$46, "dd mmmm yyyy"),"") -> The draft Phase 1 Report, shall be submitted by email in electronic searchable, indexed and not encrypted PDF and original (WORD)format for approval, to the Agency’s Technical Officer specified in Article 5, Clause 5, Sub-Clause 5.1 a) of the Contract, not later than 02 September 2022
A23: 2 | D23: =IF(B7>2,"The draft Phase 2 Report, shall be submitted by email in electronic searchable, indexed and not encrypted PDF and original (WORD)" & "format for approval, to the Agency’s Technical Officer specified in Article 5, Clause 5, Sub-Clause 5.1 a) of the Contract, not later than " & TEXT(B23 - 7*references!$C$46, "dd mmmm yyyy"),"") ->  | G23: The buttons below are only to be used by ESA
G24: They require a password
A25: Is Software Development Foreseen? | B25: no
A26: Is Hardware Development Foreseen? | B26: no
A28: BACKGROUND INTELLECTUAL PROPERTY RIGHTS
A29: how many BIPR items ? | B29: 1 | C29: maximum 4 items
B30: =IF(B32<>"", B32 & IF(B33<>"", CHAR(10) & B33 & IF( B34<>"", CHAR(10) &B34 & IF(B35<>"", CHAR(10) &B35, ""),""),""),"") -> My Software
A31: List them below :
A32: 1 | B32: My Software
A33: 2
A34: 3
A35: 4 | G35: how to download the directory ?
G36: 1. go here : | I36: http://directory.sso.esa.int/
G37: 2. click on login :
G38: 3. click on export :

Sheet Flight Items (hidden)
A1: Are there any flight items foreseen ? | C1: ="as defined in "& ESAcst!C4 -> as defined in Part III Chapter 9.4
B2: no
A4: How many ? | B4: 2 | C4: maximum 4 in this tool
A7: Item name | B7: delivery date | C7: alternative delivery + X months | E7: name of item is name of flight item/payload/spacecraft
D8: 1 | E8: delivery date is the date at which the item shall be delivered to the launch authority
D9: 2 | E9: alternative deadline : date of the deadline for proposing an alternative launch in case the first choice is not available
D10: 3
D11: 4

Sheet Consortium
A1: # of Subcos | B1: Phase 1 | I1: # of Subcos | J1: Phase 2
A2: =Overview!B8 -> 1 | B2: Entity | C2: Country (ISO Code) | D2: Role | E2: Cost in Euro | F2: Price in Euro | G2: Advance Requested | I2: =Overview!B9 -> 1 | J2: Entity | K2: Country (ISO Code) | L2: Role | M2: Cost in Euro | N2: Price in Euro | O2: Advance Requested
B3: Our company | C3: IT | D3: Prime | E3: 1000000 | F3: 500000 | G3: Yes | J3: Our company | K3: IT | L3: Prime | M3: 1000000 | N3: 600000 | O3: Yes
A4: 1 | B4: Subco 1 | C4: AT | D4: Subco | E4: 50000 | F4: 25000 | G4: Yes | I4: 1 | J4: Subco 1 | K4: AT | L4: Subco | M4: 200000 | N4: 100000 | O4: No
A5: 2 | I5: 2 | J5: Subco 2 | K5: DE | L5: Subco | M5: 180000 | N5: 90000 | O5: No
A6: 3 | I6: 3 | O6: No
A7: 4 | I7: 4 | O7: No
A8: 5 | I8: 5 | O8: No
A9: 6 | I9: 6 | O9: No
A10: 7 | I10: 7 | O10: No
A11: 8 | I11: 8 | O11: No
A12: 9 | I12: 9 | O12: No
A13: 10 | I13: 10 | O13: No
A14: 11 | I14: 11 | O14: No
A15: 12 | I15: 12

Sheet MPP
C1: Total Phase 1 = | D1: =SUM(Consortium!F3:F14) -> 525000 | R1: Total Phase 2 = | S1: =SUM(Consortium!N3:N14) -> 790000
B2: Phase 1 - Milestone Payment Plan | F2: Scroll down to fill Prime/Subcos Payments Breakdown tables!
A3: # of Milestones
A4: =Overview!B10 -> 1 | B4: Milestone Description | C4: Schedule Date | D4: Amount in EUR | E4: Country (ISO Code)
A5: 1 | B5: Milestone Description | C5: 2022-06-16 | D5: 225000 | E5: IT
A6: 2 | B6: Milestone Description | C6: 2022-09-30 | D6: 300000 | E6: IT
A7: 3
A8: 4
A9: 5
A10: 6
A11: 7
A12: 8
A13: 9 | D13: =IF(A13>$A$4,0,$D$1/$A$4) -> 0
B14: Phase 2 - Milestone Payment Plan
A15: # of Milestones
A16: =Overview!B11 -> 1 | B16: Milestone Description | C16: Schedule Date | D16: Amount in EUR | E16: Country (ISO Code)
A17: 1 | B17: Milestone Description | C17: 2022-10-30 | D17: 200000 | E17: IT
A18: 2 | B18: Milestone Description | C18: 2023-01-30 | D18: 200000 | E18: IT
A19: 3 | B19: Milestone Description | C19: 2023-06-15 | D19: 150000 | E19: IT
A20: 4 | B20: Milestone Description | C20: 2023-10-15 | D20: 200000 | E20: IT
A21: 5 | B21: Milestone Description | C21: 2024-01-15 | D21: 40000 | E21: IT
A22: 6
A23: 7
A24: 8
A25: 9 | D25: =IF(A25>$A$16,0,$S$1/$A$16) -> 0
B27: Phase 1 - Breakdown of Payments
C28: =Overview!B8 -> 1 | D28: 1 | E28: 2 | F28: 3 | G28: 4 | H28: 5 | I28: 6 | J28: 7 | K28: 8 | L28: 9 | M28: 10 | N28: 11
B29: Milestone | C29: =Consortium!B3&CHAR(10)& "("&Consortium!C3&")" -> Our company (IT) | D29: =Consortium!B4&CHAR(10)& "("&Consortium!C4&")" -> Subco 1 (AT) | E29: =Consortium!B5&CHAR(10)& "("&Consortium!C5&")" -> () | F29: =Consortium!B6&CHAR(10)& "("&Consortium!C6&")" -> () | G29: =Consortium!B7&CHAR(10)& "("&Consortium!C7&")" -> () | H29: =Consortium!B8&CHAR(10)& "("&Consortium!C8&")" -> () | I29: =Consortium!B9&CHAR(10)& "("&Consortium!C9&")" -> () | J29: =Consortium!B10&CHAR(10)& "("&Consortium!C10&")" -> () | K29: =Consortium!B11&CHAR(10)& "("&Consortium!C11&")" -> () | L29: =Consortium!B12&CHAR(10)& "("&Consortium!C12&")" -> () | M29: =Consortium!B13&CHAR(10)& "("&Consortium!C13&")" -> () | N29: =Consortium!B14&CHAR(10)& "("&Consortium!C14&")" -> ()
A30: 1 | B30: Milestone Description | C30: 210000 | D30: 15000
A31: 2 | B31: Milestone Description | C31: 290000 | D31: 10000
A32: 3
A33: 4
A34: 5
A35: 6
A36: 7
A37: 8
A38: 9
B40: Phase 2 - Breakdown of Payments
C41: =Overview!B9 -> 1 | D41: =D28 -> 1 | E41: 2 | F41: 3 | G41: 4 | H41: 5 | I41: 6 | J41: 7 | K41: 8 | L41: 9 | M41: 10 | N41: 11
B42: =B29 -> Milestone | C42: =Consortium!J3&CHAR(10)&"("&Consortium!K3&")" -> Our company (IT) | D42: =Consortium!J4&CHAR(10)&"("&Consortium!K4&")" -> Subco 1 (AT) | E42: =Consortium!J5&CHAR(10)&"("&Consortium!K5&")" -> Subco 2 (DE) | F42: =Consortium!J6&CHAR(10)&"("&Consortium!K6&")" -> () | G42: =Consortium!J7&CHAR(10)&"("&Consortium!K7&")" -> () | H42: =Consortium!J8&CHAR(10)&"("&Consortium!K8&")" -> () | I42: =Consortium!J9&CHAR(10)&"("&Consortium!K9&")" -> () | J42: =Consortium!J10&CHAR(10)&"("&Consortium!K10&")" -> () | K42: =Consortium!J11&CHAR(10)&"("&Consortium!K11&")" -> () | L42: =Consortium!J12&CHAR(10)&"("&Consortium!K12&")" -> () | M42: =Consortium!J13&CHAR(10)&"("&Consortium!K13&")" -> () | N42: =Consortium!J14&CHAR(10)&"("&Consortium!K14&")" -> ()
A43: 1 | B43: Milestone Description | C43: 140000 | D43: 40000 | E43: 20000
A44: 2 | B44: Milestone Description | C44: 160000 | D44: 20000 | E44: 20000
A45: 3 | B45: Milestone Description | C45: 110000 | D45: 20000 | E45: 20000
A46: 4 | B46: Milestone Description | C46: 170000 | D46: 10000 | E46: 20000
A47: 5 | B47: Milestone Description | C47: 20000 | D47: 10000 | E47: 10000
A48: 6
A49: 7
A50: 8
A51: 9

Sheet ADV
C1: # of Subcos | D1: Phase 1 - Advance Payments
C2: =Overview!B8 -> 1 | D2: Prime (P) / Subco (SI) | E2: Company Name | F2: Entity Code | G2: Country (ISO Code) | H2: Advance Payment (in EUR) | I2: Off-Set against | J2: Off-set by (amount in EUR) | K2: Condition for release of the Advance Payment (if applicable)
A3: =Consortium!$G$3 -> Yes | D3: P | E3: Our Company | F3: 100 xxx-xxx | G3: IT | H3: 50000 | I3: Milestone 1 | J3: 25000 | K3: After signature of the Contract by both Parties
A4: =$A$3 -> Yes | I4: Milestone 2 | J4: 25000
A5: Yes
A6: Yes
A7: Yes
A8: Yes
A9: Yes
A10: Yes
A11: =Consortium!$G$4 -> Yes | B11: 1 | C11: 1 | D11: SI | E11: Subco 1 | F11: 100 xxx-xxx | G11: AT | H11: 4000 | I11: Milestone 1 | J11: 2000 | K11: After signature of the Contract by both Parties
A12: =Consortium!$G$4 -> Yes | C12: 1 | I12: Milestone 2 | J12: 2000
A13: =Consortium!$G$4 -> Yes | C13: 1
A14: =Consortium!$G$4 -> Yes | C14: 1
A15: =Consortium!$G$4 -> Yes | C15: 1
A16: =Consortium!$G$4 -> Yes | C16: 1
A17: =Consortium!$G$4 -> Yes | C17: 1
A18: =Consortium!$G$4 -> Yes | C18: 1
A19: =Consortium!$G$5 -> 0 | B19: =B11+1 -> 2 | C19: 2
A20: =Consortium!$G$5 -> 0 | C20: 2
A21: =Consortium!$G$5 -> 0 | C21: 2
A22: =Consortium!$G$5 -> 0 | C22: 2
A23: =Consortium!$G$5 -> 0 | C23: 2
A24: =Consortium!$G$5 -> 0 | C24: 2
A25: =Consortium!$G$5 -> 0 | C25: 2
A26: =Consortium!$G$5 -> 0 | C26: 2
A27: =Consortium!$G$6 -> 0 | B27: =B19+1 -> 3 | C27: 3
A28: =Consortium!$G$6 -> 0 | C28: 3
A29: =Consortium!$G$6 -> 0 | C29: 3
A30: =Consortium!$G$6 -> 0 | C30: 3
A31: =Consortium!$G$6 -> 0 | C31: 3
A32: =Consortium!$G$6 -> 0 | C32: 3
A33: =Consortium!$G$6 -> 0 | C33: 3
A34: =Consortium!$G$6 -> 0 | C34: 3
A35: =Consortium!$G$7 -> 0 | B35: =B27+1 -> 4 | C35: 4
A36: =Consortium!$G$7 -> 0 | C36: 4
A37: =Consortium!$G$7 -> 0 | C37: 4
A38: =Consortium!$G$7 -> 0 | C38: 4
A39: =Consortium!$G$7 -> 0 | C39: 4
A40: =Consortium!$G$7 -> 0 | C40: 4
A41: =Consortium!$G$7 -> 0 | C41: 4
A42: =Consortium!$G$7 -> 0 | C42: 4
A43: =Consortium!$G$8 -> 0 | B43: =B35+1 -> 5 | C43: 5
A44: =Consortium!$G$8 -> 0 | C44: 5
A45: =Consortium!$G$8 -> 0 | C45: 5
A46: =Consortium!$G$8 -> 0 | C46: 5
A47: =Consortium!$G$8 -> 0 | C47: 5
A48: =Consortium!$G$8 -> 0 | C48: 5
A49: =Consortium!$G$8 -> 0 | C49: 5
A50: =Consortium!$G$8 -> 0 | C50: 5
A51: =Consortium!$G$9 -> 0 | B51: =B43+1 -> 6 | C51: 6
A52: =Consortium!$G$9 -> 0 | C52: 6
A53: =Consortium!$G$9 -> 0 | C53: 6
A54: =Consortium!$G$9 -> 0 | C54: 6
A55: =Consortium!$G$9 -> 0 | C55: 6
A56: =Consortium!$G$9 -> 0 | C56: 6
A57: =Consortium!$G$9 -> 0 | C57: 6
A58: =Consortium!$G$9 -> 0 | C58: 6
A59: =Consortium!$G$10 -> 0 | B59: =B51+1 -> 7 | C59: 7
A60: =Consortium!$G$10 -> 0 | C60: 7
A61: =Consortium!$G$10 -> 0 | C61: 7
A62: =Consortium!$G$10 -> 0 | C62: 7
A63: =Consortium!$G$10 -> 0 | C63: 7
A64: =Consortium!$G$10 -> 0 | C64: 7
A65: =Consortium!$G$10 -> 0 | C65: 7
A66: =Consortium!$G$10 -> 0 | C66: 7
A67: =Consortium!$G$11 -> 0 | B67: =B59+1 -> 8 | C67: 8
A68: =Consortium!$G$11 -> 0 | C68: 8
A69: =Consortium!$G$11 -> 0 | C69: 8
A70: =Consortium!$G$11 -> 0 | C70: 8
A71: =Consortium!$G$11 -> 0 | C71: 8
A72: =Consortium!$G$11 -> 0 | C72: 8
A73: =Consortium!$G$11 -> 0 | C73: 8
A74: =Consortium!$G$11 -> 0 | C74: 8
A75: =Consortium!$G$12 -> 0 | B75: =B67+1 -> 9 | C75: 9
A76: =Consortium!$G$12 -> 0 | C76: 9
A77: =Consortium!$G$12 -> 0 | C77: 9
A78: =Consortium!$G$12 -> 0 | C78: 9
A79: =Consortium!$G$12 -> 0 | C79: 9
A80: =Consortium!$G$12 -> 0 | C80: 9
A81: =Consortium!$G$12 -> 0 | C81: 9
A82: =Consortium!$G$12 -> 0 | C82: 9
A83: =Consortium!$G$13 -> 0 | B83: =B75+1 -> 10 | C83: 10
A84: =Consortium!$G$13 -> 0 | C84: 10
A85: =Consortium!$G$13 -> 0 | C85: 10
A86: =Consortium!$G$13 -> 0 | C86: 10
A87: =Consortium!$G$13 -> 0 | C87: 10
A88: =Consortium!$G$13 -> 0 | C88: 10
A89: =Consortium!$G$13 -> 0 | C89: 10
A90: =Consortium!$G$13 -> 0 | C90: 10
A91: =Consortium!$G$14 -> 0 | B91: =B83+1 -> 11 | C91: 11
A92: =Consortium!$G$14 -> 0 | C92: 11
A93: =Consortium!$G$14 -> 0 | C93: 11
A94: =Consortium!$G$14 -> 0 | C94: 11
A95: =Consortium!$G$14 -> 0 | C95: 11
A96: =Consortium!$G$14 -> 0 | C96: 11
A97: =Consortium!$G$14 -> 0 | C97: 11
A98: =Consortium!$G$14 -> 0 | C98: 11
C102: # of Subcos | D102: Phase 2 - Advance Payments
C103: =Overview!B9 -> 1 | D103: Prime (P) / Subco (SI) | E103: Company Name | F103: Entity Code | G103: Country (ISO Code) | H103: Advance Payment (in EUR) | I103: Off-Set against | J103: Off-set by (amount in EUR) | K103: Condition for release of the Advance Payment (if applicable)
A104: =Consortium!$O$3 -> Yes | D104: P | E104: Our Company | F104: 100 xxx-xxx | G104: IT | H104: 50000 | I104: Milestone 1 | J104: 10000 | K104: After signature of the Contract by both Parties
A105: =Consortium!$O$3 -> Yes | I105: Milestone 2 | J105: 10000
A106: =Consortium!$O$3 -> Yes | I106: Milestone 3 | J106: 10000
A107: =Consortium!$O$3 -> Yes | I107: Milestone 4 | J107: 10000
A108: =Consortium!$O$3 -> Yes
A109: =Consortium!$O$3 -> Yes
A110: =Consortium!$O$3 -> Yes
A111: =Consortium!$O$3 -> Yes
A112: =Consortium!$O$4 -> No | B112: 1 | C112: 1
A113: =Consortium!$O$4 -> No | C113: 1
A114: =Consortium!$O$4 -> No | C114: 1
A115: =Consortium!$O$4 -> No | C115: 1
A116: =Consortium!$O$4 -> No | C116: 1
A117: =Consortium!$O$4 -> No | C117: 1
A118: =Consortium!$O$4 -> No | C118: 1
A119: =Consortium!$O$4 -> No | C119: 1
A120: =Consortium!$O$5 -> No | B120: =B112+1 -> 2 | C120: 2
A121: =Consortium!$O$5 -> No | C121: 2
A122: =Consortium!$O$5 -> No | C122: 2
A123: =Consortium!$O$5 -> No | C123: 2
A124: =Consortium!$O$5 -> No | C124: 2
A125: =Consortium!$O$5 -> No | C125: 2
A126: =Consortium!$O$5 -> No | C126: 2
A127: =Consortium!$O$5 -> No | C127: 2
A128: =Consortium!$O$6 -> No | B128: =B120+1 -> 3 | C128: 3
A129: =Consortium!$O$6 -> No | C129: 3
A130: =Consortium!$O$6 -> No | C130: 3
A131: =Consortium!$O$6 -> No | C131: 3
A132: =Consortium!$O$6 -> No | C132: 3
A133: =Consortium!$O$6 -> No | C133: 3
A134: =Consortium!$O$6 -> No | C134: 3
A135: =Consortium!$O$6 -> No | C135: 3
A136: =Consortium!$O$7 -> No | B136: =B128+1 -> 4 | C136: 4
A137: =Consortium!$O$7 -> No | C137: 4
A138: =Consortium!$O$7 -> No | C138: 4
A139: =Consortium!$O$7 -> No | C139: 4
A140: =Consortium!$O$7 -> No | C140: 4
A141: =Consortium!$O$7 -> No | C141: 4
A142: =Consortium!$O$7 -> No | C142: 4
A143: =Consortium!$O$7 -> No | C143: 4
A144: =Consortium!$O$8 -> No | B144: =B136+1 -> 5 | C144: 5
A145: =Consortium!$O$8 -> No | C145: 5
A146: =Consortium!$O$8 -> No | C146: 5
A147: =Consortium!$O$8 -> No | C147: 5
A148: =Consortium!$O$8 -> No | C148: 5
A149: =Consortium!$O$8 -> No | C149: 5
A150: =Consortium!$O$8 -> No | C150: 5
A151: =Consortium!$O$8 -> No | C151: 5
A152: =Consortium!$O$9 -> No | B152: =B144+1 -> 6 | C152: 6
A153: =Consortium!$O$9 -> No | C153: 6
A154: =Consortium!$O$9 -> No | C154: 6
A155: =Consortium!$O$9 -> No | C155: 6
A156: =Consortium!$O$9 -> No | C156: 6
A157: =Consortium!$O$9 -> No | C157: 6
A158: =Consortium!$O$9 -> No | C158: 6
A159: =Consortium!$O$9 -> No | C159: 6
A160: =Consortium!$O$10 -> No | B160: =B152+1 -> 7 | C160: 7
A161: =Consortium!$O$10 -> No | C161: 7
A162: =Consortium!$O$10 -> No | C162: 7
A163: =Consortium!$O$10 -> No | C163: 7
A164: =Consortium!$O$10 -> No | C164: 7
A165: =Consortium!$O$10 -> No | C165: 7
A166: =Consortium!$O$10 -> No | C166: 7
A167: =Consortium!$O$10 -> No | C167: 7
A168: =Consortium!$O$11 -> No | B168: =B160+1 -> 8 | C168: 8
A169: =Consortium!$O$11 -> No | C169: 8
A170: =Consortium!$O$11 -> No | C170: 8
A171: =Consortium!$O$11 -> No | C171: 8
A172: =Consortium!$O$11 -> No | C172: 8
A173: =Consortium!$O$11 -> No | C173: 8
A174: =Consortium!$O$11 -> No | C174: 8
A175: =Consortium!$O$11 -> No | C175: 8
A176: =Consortium!$O$12 -> No | B176: =B168+1 -> 9 | C176: 9
A177: =Consortium!$O$12 -> No | C177: 9
A178: =Consortium!$O$12 -> No | C178: 9
A179: =Consortium!$O$12 -> No | C179: 9
A180: =Consortium!$O$12 -> No | C180: 9
A181: =Consortium!$O$12 -> No | C181: 9
A182: =Consortium!$O$12 -> No | C182: 9
A183: =Consortium!$O$12 -> No | C183: 9
A184: =Consortium!$O$13 -> No | B184: =B176+1 -> 10 | C184: 10
A185: =Consortium!$O$13 -> No | C185: 10
A186: =Consortium!$O$13 -> No | C186: 10
A187: =Consortium!$O$13 -> No | C187: 10
A188: =Consortium!$O$13 -> No | C188: 10
A189: =Consortium!$O$13 -> No | C189: 10
A190: =Consortium!$O$13 -> No | C190: 10
A191: =Consortium!$O$13 -> No | C191: 10
A192: =Consortium!$O$14 -> No | B192: =B184+1 -> 11 | C192: 11
A193: =Consortium!$O$14 -> No | C193: 11
A194: =Consortium!$O$14 -> No | C194: 11
A195: =Consortium!$O$14 -> No | C195: 11
A196: =Consortium!$O$14 -> No | C196: 11
A197: =Consortium!$O$14 -> No | C197: 11
A198: =Consortium!$O$14 -> No | C198: 11
A199: =Consortium!$O$14 -> No | C199: 11

Sheet Contact
A1: Main Contact Person
B3: Prefix (Ms/Mr/Dr/etc.) | C3: Mr.
B4: First Name | C4: John
B5: Last Name | C5: Doe
B6: Job Title | C6: Head of Programs
B7: Physical Address | C7: My Address, 123
B8: postal code | C8: 123-456
B9: City | C9: My City
B10: Country | C10: My Country
B11: Complete Physical Address | C11: My Address, 123 123-456 My City, My Country
A13: Technical Officer - Company Side
B15: Prefix (Ms/Mr/Dr/etc.) | C15: Mr.
B16: First Name | C16: John
B17: Last Name | C17: Doe
B18: Complete Physical Address | C18: My Address, 123 123-456 My City, My Country
B19: Phone | C19: (+XX) 123 456 789
B20: Email | C20: myemail@myawesomecompany.com
A22: Contract Officer - Company Side
B24: Prefix (Ms/Mr/Dr/etc.) | C24: Ms.
B25: First Name | C25: Julianne
B26: Last Name | C26: Foo
B27: Complete Physical Address | C27: My Address, 123 123-456 My City, My Country
B28: Phone | C28: (+XX) 123 456 789
B29: Email | C29: myemail@myawesomecompany.com
A31: Data Protection Officer - Company Side
B33: Prefix (Ms/Mr/Dr/etc.) | C33: Mr.
B34: First Name | C34: Mark
B35: Last Name | C35: Smith
B36: Complete Physical Address | C36: My Address, 123 123-456 My City, My Country
B37: Phone | C37: (+XX) 123 456 789
B38: Email | C38: myemail@myawesomecompany.com

Sheet FlightItem
A1: existence of a flight item | B1: Yes
A2: name of the flight item | B2: some sub-system
A3: Deadline to deliver the hardware to the launch authority | B3: 2023-01-15
A4: Deadline for alternative flight opportunity | B4: 2023-06-15
A5: Is the satellite operator different from the prime contractor ? | B5: No
C33: No

Sheet ESA_fills (hidden)
A1: GCC reference | B1: ESA/REG/002 rev. 3
A2: ESA contract number | B2: ESA Contract No. 4000xxxxxx/20/I-NS
A4: KEY PERSONEL
A5: Applicable version in the | B5: nego MoM
A7: REFERENCE DOCUMENTS
A8: step | B8: date | C8: reference
A9: Full Proposal Part 2 | B9: 2020-01-01 | C9: AC-1999-123456 | D9: Reference in the proposal
A10: Response to Negotiation | B10: 2020-02-01 | C10: Re: AO/1-9090/17/NL/MO - a great proposal | D10: subject of the email with the answers
A11: Negotiation Meeting | B11: 2020-03-01 | C11: MoM-1999-11-01 | D11: reference of the Minutes of the Meeting - Leave blank if no nego meeting
A14: Technical Officer - ESA Side | C14: Nathalie Schwarz
C15: =MATCH(TRUE,INDEX(InCubedMembers[Name]=C14,0),0) -> 5
B16: Prefix (Ms/Mr/Dr/etc.) | C16: =INDEX(InCubedMembers!$H$2:$M$368,$C$15,D16) ->  | D16: 2
B17: First Name | C17: =INDEX(InCubedMembers!$H$2:$M$368,$C$15,D17) ->  | D17: 3
B18: Last Name | C18: =INDEX(InCubedMembers!$H$2:$M$368,$C$15,D18) ->  | D18: 4
B19: Physical Address | C19: =INDEX(InCubedMembers!$H$2:$M$368,$C$15,D19) ->  | D19: 5
B20: Phone | C20: =INDEX(InCubedMembers!$H$2:$M$368,$C$15,D20) ->  | D20: 6
B21: Email | C21: =INDEX(InCubedMembers!$H$2:$M$368,$C$15,D21) -> nathalie.schwarz@esa.int | D21: 1
A23: Contract Officer - ESA Side | C23: TBD
C24: =MATCH(TRUE,INDEX(InCubedMembers[Name]=C23,0),0) -> 4
B25: Prefix (Ms/Mr/Dr/etc.) | C25: =INDEX(InCubedMembers!$H$2:$M$368,$C$24,D25) -> 0 | D25: 2
B26: First Name | C26: =INDEX(InCubedMembers!$H$2:$M$368,$C$24,D26) -> 0 | D26: 3
B27: Last Name | C27: =INDEX(InCubedMembers!$H$2:$M$368,$C$24,D27) -> 0 | D27: 4
B28: Physical Address | C28: =INDEX(InCubedMembers!$H$2:$M$368,$C$24,D28) -> 0 | D28: 5
B29: Phone | C29: =INDEX(InCubedMembers!$H$2:$M$368,$C$24,D29) -> 0 | D29: 6
B30: Email | C30: =INDEX(InCubedMembers!$H$2:$M$368,$C$24,D30) ->  | D30: 1

Sheet TableConsortium
A1: Phase 1 | H1: Phase 2
A2: Entity | B2: Country (ISO Code) | C2: Role | D2: Total Cost in EUR | E2: Total Price in EUR | H2: Entity | I2: Country (ISO Code) | J2: Role | K2: Total Cost in EUR | L2: Total Price in EUR
A3: =IF(Consortium!B3="","",Consortium!B3) -> Our company | B3: =IF(Consortium!B3="","",Consortium!C3) -> IT | C3: Contractor | D3: =Consortium!E3 -> 1000000 | E3: =Consortium!F3 -> 500000 | H3: =IF(Consortium!J3="","",Consortium!J3) -> Our company | I3: =IF(Consortium!J3="","",Consortium!K3) -> IT | J3: =IF(Consortium!I3<=Consortium!$I$2,"Contractor",IF(AND(Consortium!I3=Consortium!$I$2+1,Overview!B7=2),"Total","")) -> Contractor | K3: =IF(Consortium!M3="","",Consortium!M3) -> 1000000 | L3: =IF(Consortium!N3="","",Consortium!N3) -> 600000
A4: =IF(Consortium!A4<=Consortium!$A$2,Consortium!B4,"") -> Subco 1 | B4: =IF(A4="","",IF(A4="Total","",Consortium!C4)) -> AT | C4: =IF(Consortium!A4<=Consortium!$A$2,"Subcontractor",IF(Consortium!A4=Consortium!$A$2+1,"Total","")) -> Subcontractor | D4: =IF(C4="","",IF(C4="Total",SUM(Consortium!E3:E14),Consortium!E4)) -> 50000 | E4: =IF(C4="","",IF(C4="Total",SUM(Consortium!F3:F14),Consortium!F4)) -> 25000 | H4: =IF(Consortium!I4<=Consortium!$I$2,Consortium!J4,"") -> Subco 1 | I4: =IF(H4="","",IF(H4="Total","",Consortium!K4)) -> AT | J4: =IF(Consortium!I4<=Consortium!$I$2,"Subcontractor",IF(AND(Consortium!I4=Consortium!$I$2+1,Overview!$B$7=2),"Total","")) -> Subcontractor | K4: =IF(J4="","",IF(J4="Total",SUM(Consortium!M3:M14),Consortium!M4)) -> 200000 | L4: =IF(J4="","",IF(J4="Total",SUM(Consortium!N3:N14),Consortium!N4)) -> 100000
A5: =IF(Consortium!A5<=Consortium!$A$2,Consortium!B5,"") ->  | B5: =IF(A5="","",IF(A5="Total","",Consortium!C5)) ->  | C5: =IF(Consortium!A5<=Consortium!$A$2,"Subcontractor",IF(Consortium!A5=Consortium!$A$2+1,"Total","")) -> Total | D5: =IF(C5="","",IF(C5="Total",SUM(Consortium!E3:E14),Consortium!E5)) -> 1050000 | E5: =IF(C5="","",IF(C5="Total",SUM(Consortium!F3:F14),Consortium!F5)) -> 525000 | H5: =IF(Consortium!I5<=Consortium!$I$2,Consortium!J5,"") ->  | I5: =IF(H5="","",IF(H5="Total","",Consortium!K5)) ->  | J5: =IF(Consortium!I5<=Consortium!$I$2,"Subcontractor",IF(AND(Consortium!I5=Consortium!$I$2+1,Overview!$B$7=2),"Total","")) -> Total | K5: =IF(J5="","",IF(J5="Total",SUM(Consortium!M3:M14),Consortium!M5)) -> 1380000 | L5: =IF(J5="","",IF(J5="Total",SUM(Consortium!N3:N14),Consortium!N5)) -> 790000
A6: =IF(Consortium!A6<=Consortium!$A$2,Consortium!B6,"") ->  | B6: =IF(A6="","",IF(A6="Total","",Consortium!C6)) ->  | C6: =IF(Consortium!A6<=Consortium!$A$2,"Subcontractor",IF(Consortium!A6=Consortium!$A$2+1,"Total","")) ->  | D6: =IF(C6="","",IF(C6="Total",SUM(Consortium!E3:E14),Consortium!E6)) ->  | E6: =IF(C6="","",IF(C6="Total",SUM(Consortium!F3:F14),Consortium!F6)) ->  | H6: =IF(Consortium!I6<=Consortium!$I$2,Consortium!J6,"") ->  | I6: =IF(H6="","",IF(H6="Total","",Consortium!K6)) ->  | J6: =IF(Consortium!I6<=Consortium!$I$2,"Subcontractor",IF(AND(Consortium!I6=Consortium!$I$2+1,Overview!$B$7=2),"Total","")) ->  | K6: =IF(J6="","",IF(J6="Total",SUM(Consortium!M3:M14),Consortium!M6)) ->  | L6: =IF(J6="","",IF(J6="Total",SUM(Consortium!N3:N14),Consortium!N6)) -> 
A7: =IF(Consortium!A7<=Consortium!$A$2,Consortium!B7,"") ->  | B7: =IF(A7="","",IF(A7="Total","",Consortium!C7)) ->  | C7: =IF(Consortium!A7<=Consortium!$A$2,"Subcontractor",IF(Consortium!A7=Consortium!$A$2+1,"Total","")) ->  | D7: =IF(C7="","",IF(C7="Total",SUM(Consortium!E3:E14),Consortium!E7)) ->  | E7: =IF(C7="","",IF(C7="Total",SUM(Consortium!F3:F14),Consortium!F7)) ->  | H7: =IF(Consortium!I7<=Consortium!$I$2,Consortium!J7,"") ->  | I7: =IF(H7="","",IF(H7="Total","",Consortium!K7)) ->  | J7: =IF(Consortium!I7<=Consortium!$I$2,"Subcontractor",IF(AND(Consortium!I7=Consortium!$I$2+1,Overview!$B$7=2),"Total","")) ->  | K7: =IF(J7="","",IF(J7="Total",SUM(Consortium!M3:M14),Consortium!M7)) ->  | L7: =IF(J7="","",IF(J7="Total",SUM(Consortium!N3:N14),Consortium!N7)) -> 
A8: =IF(Consortium!A8<=Consortium!$A$2,Consortium!B8,"") ->  | B8: =IF(A8="","",IF(A8="Total","",Consortium!C8)) ->  | C8: =IF(Consortium!A8<=Consortium!$A$2,"Subcontractor",IF(Consortium!A8=Consortium!$A$2+1,"Total","")) ->  | D8: =IF(C8="","",IF(C8="Total",SUM(Consortium!E3:E14),Consortium!E8)) ->  | E8: =IF(C8="","",IF(C8="Total",SUM(Consortium!F3:F14),Consortium!F8)) ->  | H8: =IF(Consortium!I8<=Consortium!$I$2,Consortium!J8,"") ->  | I8: =IF(H8="","",IF(H8="Total","",Consortium!K8)) ->  | J8: =IF(Consortium!I8<=Consortium!$I$2,"Subcontractor",IF(AND(Consortium!I8=Consortium!$I$2+1,Overview!$B$7=2),"Total","")) ->  | K8: =IF(J8="","",IF(J8="Total",SUM(Consortium!M3:M14),Consortium!M8)) ->  | L8: =IF(J8="","",IF(J8="Total",SUM(Consortium!N3:N14),Consortium!N8)) -> 
A9: =IF(Consortium!A9<=Consortium!$A$2,Consortium!B9,"") ->  | B9: =IF(A9="","",IF(A9="Total","",Consortium!C9)) ->  | C9: =IF(Consortium!A9<=Consortium!$A$2,"Subcontractor",IF(Consortium!A9=Consortium!$A$2+1,"Total","")) ->  | D9: =IF(C9="","",IF(C9="Total",SUM(Consortium!E3:E14),Consortium!E9)) ->  | E9: =IF(C9="","",IF(C9="Total",SUM(Consortium!F3:F14),Consortium!F9)) ->  | H9: =IF(Consortium!I9<=Consortium!$I$2,Consortium!J9,"") ->  | I9: =IF(H9="","",IF(H9="Total","",Consortium!K9)) ->  | J9: =IF(Consortium!I9<=Consortium!$I$2,"Subcontractor",IF(AND(Consortium!I9=Consortium!$I$2+1,Overview!$B$7=2),"Total","")) ->  | K9: =IF(J9="","",IF(J9="Total",SUM(Consortium!M3:M14),Consortium!M9)) ->  | L9: =IF(J9="","",IF(J9="Total",SUM(Consortium!N3:N14),Consortium!N9)) -> 
A10: =IF(Consortium!A10<=Consortium!$A$2,Consortium!B10,"") ->  | B10: =IF(A10="","",IF(A10="Total","",Consortium!C10)) ->  | C10: =IF(Consortium!A10<=Consortium!$A$2,"Subcontractor",IF(Consortium!A10=Consortium!$A$2+1,"Total","")) ->  | D10: =IF(C10="","",IF(C10="Total",SUM(Consortium!E3:E14),Consortium!E10)) ->  | E10: =IF(C10="","",IF(C10="Total",SUM(Consortium!F3:F14),Consortium!F10)) ->  | H10: =IF(Consortium!I10<=Consortium!$I$2,Consortium!J10,"") ->  | I10: =IF(H10="","",IF(H10="Total","",Consortium!K10)) ->  | J10: =IF(Consortium!I10<=Consortium!$I$2,"Subcontractor",IF(AND(Consortium!I10=Consortium!$I$2+1,Overview!$B$7=2),"Total","")) ->  | K10: =IF(J10="","",IF(J10="Total",SUM(Consortium!M3:M14),Consortium!M10)) ->  | L10: =IF(J10="","",IF(J10="Total",SUM(Consortium!N3:N14),Consortium!N10)) -> 
A11: =IF(Consortium!A11<=Consortium!$A$2,Consortium!B11,"") ->  | B11: =IF(A11="","",IF(A11="Total","",Consortium!C11)) ->  | C11: =IF(Consortium!A11<=Consortium!$A$2,"Subcontractor",IF(Consortium!A11=Consortium!$A$2+1,"Total","")) ->  | D11: =IF(C11="","",IF(C11="Total",SUM(Consortium!E3:E14),Consortium!E11)) ->  | E11: =IF(C11="","",IF(C11="Total",SUM(Consortium!F3:F14),Consortium!F11)) ->  | H11: =IF(Consortium!I11<=Consortium!$I$2,Consortium!J11,"") ->  | I11: =IF(H11="","",IF(H11="Total","",Consortium!K11)) ->  | J11: =IF(Consortium!I11<=Consortium!$I$2,"Subcontractor",IF(AND(Consortium!I11=Consortium!$I$2+1,Overview!$B$7=2),"Total","")) ->  | K11: =IF(J11="","",IF(J11="Total",SUM(Consortium!M3:M14),Consortium!M11)) ->  | L11: =IF(J11="","",IF(J11="Total",SUM(Consortium!N3:N14),Consortium!N11)) -> 
A12: =IF(Consortium!A12<=Consortium!$A$2,Consortium!B12,"") ->  | B12: =IF(A12="","",IF(A12="Total","",Consortium!C12)) ->  | C12: =IF(Consortium!A12<=Consortium!$A$2,"Subcontractor",IF(Consortium!A12=Consortium!$A$2+1,"Total","")) ->  | D12: =IF(C12="","",IF(C12="Total",SUM(Consortium!E3:E14),Consortium!E12)) ->  | E12: =IF(C12="","",IF(C12="Total",SUM(Consortium!F3:F14),Consortium!F12)) ->  | H12: =IF(Consortium!I12<=Consortium!$I$2,Consortium!J12,"") ->  | I12: =IF(H12="","",IF(H12="Total","",Consortium!K12)) ->  | J12: =IF(Consortium!I12<=Consortium!$I$2,"Subcontractor",IF(AND(Consortium!I12=Consortium!$I$2+1,Overview!$B$7=2),"Total","")) ->  | K12: =IF(J12="","",IF(J12="Total",SUM(Consortium!M3:M14),Consortium!M12)) ->  | L12: =IF(J12="","",IF(J12="Total",SUM(Consortium!N3:N14),Consortium!N12)) -> 
A13: =IF(Consortium!A13<=Consortium!$A$2,Consortium!B13,"") ->  | B13: =IF(A13="","",IF(A13="Total","",Consortium!C13)) ->  | C13: =IF(Consortium!A13<=Consortium!$A$2,"Subcontractor",IF(Consortium!A13=Consortium!$A$2+1,"Total","")) ->  | D13: =IF(C13="","",IF(C13="Total",SUM(Consortium!E3:E14),Consortium!E13)) ->  | E13: =IF(C13="","",IF(C13="Total",SUM(Consortium!F3:F14),Consortium!F13)) ->  | H13: =IF(Consortium!I13<=Consortium!$I$2,Consortium!J13,"") ->  | I13: =IF(H13="","",IF(H13="Total","",Consortium!K13)) ->  | J13: =IF(Consortium!I13<=Consortium!$I$2,"Subcontractor",IF(AND(Consortium!I13=Consortium!$I$2+1,Overview!$B$7=2),"Total","")) ->  | K13: =IF(J13="","",IF(J13="Total",SUM(Consortium!M3:M14),Consortium!M13)) ->  | L13: =IF(J13="","",IF(J13="Total",SUM(Consortium!N3:N14),Consortium!N13)) -> 
A14: =IF(Consortium!A14<=Consortium!$A$2,Consortium!B14,"") ->  | B14: =IF(A14="","",IF(A14="Total","",Consortium!C14)) ->  | C14: =IF(Consortium!A14<=Consortium!$A$2,"Subcontractor",IF(Consortium!A14=Consortium!$A$2+1,"Total","")) ->  | D14: =IF(C14="","",IF(C14="Total",SUM(Consortium!E3:E14),Consortium!E14)) ->  | E14: =IF(C14="","",IF(C14="Total",SUM(Consortium!F3:F14),Consortium!F14)) ->  | H14: =IF(Consortium!I14<=Consortium!$I$2,Consortium!J14,"") ->  | I14: =IF(H14="","",IF(H14="Total","",Consortium!K14)) ->  | J14: =IF(Consortium!I14<=Consortium!$I$2,"Subcontractor",IF(AND(Consortium!I14=Consortium!$I$2+1,Overview!$B$7=2),"Total","")) ->  | K14: =IF(J14="","",IF(J14="Total",SUM(Consortium!M3:M14),Consortium!M14)) ->  | L14: =IF(J14="","",IF(J14="Total",SUM(Consortium!N3:N14),Consortium!N14)) -> 
B15: =IF(A15="","",IF(A15="Total","",Consortium!C15)) ->  | C15: =IF(Consortium!A15<=Consortium!$A$2,"Subcontractor",IF(Consortium!A15=Consortium!$A$2+1,"Total","")) ->  | D15: =IF(C15="","",IF(C15="Total",SUM(Consortium!E3:E14),Consortium!E15)) ->  | E15: =IF(C15="","",IF(C15="Total",SUM(Consortium!F3:F14),Consortium!F15)) ->  | J15: =IF(Consortium!I15<=Consortium!$I$2,"Subcontractor",IF(AND(Consortium!I15=Consortium!$I$2+1,Overview!$B$7=2),"Total","")) ->  | K15: =IF(J15="","",IF(J15="Total",SUM(Consortium!M3:M14),Consortium!M15)) ->  | L15: =IF(J15="","",IF(J15="Total",SUM(Consortium!N3:N14),Consortium!N15)) -> 
B16: =IF(A16="","",IF(A16="Total","",Consortium!C16)) -> 
B17: =IF(A17="","",IF(A17="Total","",Consortium!C17)) -> 
B18: =IF(A18="","",IF(A18="Total","",Consortium!C18)) -> 
B19: =IF(A19="","",IF(A19="Total","",Consortium!C19)) -> 
B20: =IF(A20="","",IF(A20="Total","",Consortium!C20)) -> 

Sheet TableMilestones
A1: Phase 1 | F1: Phase 2
A2: Milestone (MS) Description | B2: Schedule Date | C2: Payments from ESA to Prime Contractor (in Euro) | D2: Country (ISO code) | F2: Milestone (MS) Description | G2: Schedule Date | H2: Payments from ESA to Prime Contractor (in Euro) | I2: Country (ISO code)
A3: =IF(MPP!A5<=MPP!$A$4,MPP!B5,"") -> Milestone Description | B3: =IF(MPP!A5<=MPP!$A$4,MPP!C5,IF(MPP!A5=MPP!$A$4+1,"Total","")) -> 2022-06-16 | C3: =IF(MPP!A5<=MPP!$A$4,MPP!D5,IF(MPP!A5=MPP!$A$4+1,SUM(MPP!D5:D12),"")) -> 225000 | D3: =IF(MPP!A5<=MPP!$A$4,MPP!E5,"") -> IT | F3: =IF(MPP!A17<=MPP!$A$16,MPP!B17,"") -> Milestone Description | G3: =IF(MPP!A17<=MPP!$A$16,MPP!C17,IF(MPP!A17=MPP!$A$16+1,"Total","")) -> 2022-10-30 | H3: =IF(MPP!A17<=MPP!$A$16,MPP!D17,IF(MPP!A17=MPP!$A$16+1,SUM(MPP!D17:D24),"")) -> 200000 | I3: =IF(MPP!A17<=MPP!$A$16,MPP!E17,"") -> IT
A4: =IF(MPP!A6<=MPP!$A$4,MPP!B6,"") ->  | B4: =IF(MPP!A6<=MPP!$A$4,MPP!C6,IF(MPP!A6=MPP!$A$4+1,"Total","")) -> Total | C4: =IF(MPP!A6<=MPP!$A$4,MPP!D6,IF(MPP!A6=MPP!$A$4+1,SUM(MPP!D5:D12),"")) -> 525000 | D4: =IF(MPP!A6<=MPP!$A$4,MPP!E6,"") ->  | F4: =IF(MPP!A18<=MPP!$A$16,MPP!B18,"") ->  | G4: =IF(MPP!A18<=MPP!$A$16,MPP!C18,IF(MPP!A18=MPP!$A$16+1,"Total","")) -> Total | H4: =IF(MPP!A18<=MPP!$A$16,MPP!D18,IF(MPP!A18=MPP!$A$16+1,SUM(MPP!D17:D24),"")) -> 790000 | I4: =IF(MPP!A18<=MPP!$A$16,MPP!E18,"") -> 
A5: =IF(MPP!A7<=MPP!$A$4,MPP!B7,"") ->  | B5: =IF(MPP!A7<=MPP!$A$4,MPP!C7,IF(MPP!A7=MPP!$A$4+1,"Total","")) ->  | C5: =IF(MPP!A7<=MPP!$A$4,MPP!D7,IF(MPP!A7=MPP!$A$4+1,SUM(MPP!D5:D12),"")) ->  | D5: =IF(MPP!A7<=MPP!$A$4,MPP!E7,"") ->  | F5: =IF(MPP!A19<=MPP!$A$16,MPP!B19,"") ->  | G5: =IF(MPP!A19<=MPP!$A$16,MPP!C19,IF(MPP!A19=MPP!$A$16+1,"Total","")) ->  | H5: =IF(MPP!A19<=MPP!$A$16,MPP!D19,IF(MPP!A19=MPP!$A$16+1,SUM(MPP!D17:D24),"")) ->  | I5: =IF(MPP!A19<=MPP!$A$16,MPP!E19,"") -> 
A6: =IF(MPP!A8<=MPP!$A$4,MPP!B8,"") ->  | B6: =IF(MPP!A8<=MPP!$A$4,MPP!C8,IF(MPP!A8=MPP!$A$4+1,"Total","")) ->  | C6: =IF(MPP!A8<=MPP!$A$4,MPP!D8,IF(MPP!A8=MPP!$A$4+1,SUM(MPP!D5:D12),"")) ->  | D6: =IF(MPP!A8<=MPP!$A$4,MPP!E8,"") ->  | F6: =IF(MPP!A20<=MPP!$A$16,MPP!B20,"") ->  | G6: =IF(MPP!A20<=MPP!$A$16,MPP!C20,IF(MPP!A20=MPP!$A$16+1,"Total","")) ->  | H6: =IF(MPP!A20<=MPP!$A$16,MPP!D20,IF(MPP!A20=MPP!$A$16+1,SUM(MPP!D17:D24),"")) ->  | I6: =IF(MPP!A20<=MPP!$A$16,MPP!E20,"") -> 
A7: =IF(MPP!A9<=MPP!$A$4,MPP!B9,"") ->  | B7: =IF(MPP!A9<=MPP!$A$4,MPP!C9,IF(MPP!A9=MPP!$A$4+1,"Total","")) ->  | C7: =IF(MPP!A9<=MPP!$A$4,MPP!D9,IF(MPP!A9=MPP!$A$4+1,SUM(MPP!D5:D12),"")) ->  | D7: =IF(MPP!A9<=MPP!$A$4,MPP!E9,"") ->  | F7: =IF(MPP!A21<=MPP!$A$16,MPP!B21,"") ->  | G7: =IF(MPP!A21<=MPP!$A$16,MPP!C21,IF(MPP!A21=MPP!$A$16+1,"Total","")) ->  | H7: =IF(MPP!A21<=MPP!$A$16,MPP!D21,IF(MPP!A21=MPP!$A$16+1,SUM(MPP!D17:D24),"")) ->  | I7: =IF(MPP!A21<=MPP!$A$16,MPP!E21,"") -> 
A8: =IF(MPP!A10<=MPP!$A$4,MPP!B10,"") ->  | B8: =IF(MPP!A10<=MPP!$A$4,MPP!C10,IF(MPP!A10=MPP!$A$4+1,"Total","")) ->  | C8: =IF(MPP!A10<=MPP!$A$4,MPP!D10,IF(MPP!A10=MPP!$A$4+1,SUM(MPP!D5:D12),"")) ->  | D8: =IF(MPP!A10<=MPP!$A$4,MPP!E10,"") ->  | F8: =IF(MPP!A22<=MPP!$A$16,MPP!B22,"") ->  | G8: =IF(MPP!A22<=MPP!$A$16,MPP!C22,IF(MPP!A22=MPP!$A$16+1,"Total","")) ->  | H8: =IF(MPP!A22<=MPP!$A$16,MPP!D22,IF(MPP!A22=MPP!$A$16+1,SUM(MPP!D17:D24),"")) ->  | I8: =IF(MPP!A22<=MPP!$A$16,MPP!E22,"") -> 
A9: =IF(MPP!A11<=MPP!$A$4,MPP!B11,"") ->  | B9: =IF(MPP!A11<=MPP!$A$4,MPP!C11,IF(MPP!A11=MPP!$A$4+1,"Total","")) ->  | C9: =IF(MPP!A11<=MPP!$A$4,MPP!D11,IF(MPP!A11=MPP!$A$4+1,SUM(MPP!D5:D12),"")) ->  | D9: =IF(MPP!A11<=MPP!$A$4,MPP!E11,"") ->  | F9: =IF(MPP!A23<=MPP!$A$16,MPP!B23,"") ->  | G9: =IF(MPP!A23<=MPP!$A$16,MPP!C23,IF(MPP!A23=MPP!$A$16+1,"Total","")) ->  | H9: =IF(MPP!A23<=MPP!$A$16,MPP!D23,IF(MPP!A23=MPP!$A$16+1,SUM(MPP!D17:D24),"")) ->  | I9: =IF(MPP!A23<=MPP!$A$16,MPP!E23,"") -> 
A10: =IF(MPP!A12<=MPP!$A$4,MPP!B12,"") ->  | B10: =IF(MPP!A12<=MPP!$A$4,MPP!C12,IF(MPP!A12=MPP!$A$4+1,"Total","")) ->  | C10: =IF(MPP!A12<=MPP!$A$4,MPP!D12,IF(MPP!A12=MPP!$A$4+1,SUM(MPP!D5:D12),"")) ->  | D10: =IF(MPP!A12<=MPP!$A$4,MPP!E12,"") ->  | F10: =IF(MPP!A24<=MPP!$A$16,MPP!B24,"") ->  | G10: =IF(MPP!A24<=MPP!$A$16,MPP!C24,IF(MPP!A24=MPP!$A$16+1,"Total","")) ->  | H10: =IF(MPP!A24<=MPP!$A$16,MPP!D24,IF(MPP!A24=MPP!$A$16+1,SUM(MPP!D17:D24),"")) ->  | I10: =IF(MPP!A24<=MPP!$A$16,MPP!E24,"") -> 
B11: =IF(MPP!A13<=MPP!$A$4,MPP!C13,IF(MPP!A13=MPP!$A$4+1,"Total","")) ->  | C11: =IF(MPP!A13<=MPP!$A$4,MPP!D13,IF(MPP!A13=MPP!$A$4+1,SUM(MPP!D5:D12),"")) ->  | G11: =IF(MPP!A25<=MPP!$A$16,MPP!C25,IF(MPP!A25=MPP!$A$16+1,"Total","")) ->  | H11: =IF(MPP!A25<=MPP!$A$16,MPP!D25,IF(MPP!A25=MPP!$A$16+1,SUM(MPP!D17:D24),"")) -> 

Sheet TableBreakdown
A1: Phase 1 | D1: Scroll down for Phase 2 table
A2: For Information purposes only:
A3: Amounts in Euro for Prime and Subcontractor(s)
A4: Milestone | B4: =MPP!C29 -> Our company (IT) | C4: =IF(MPP!D28<=MPP!$C$28,MPP!D29,"") -> Subco 1 (AT) | D4: =IF(MPP!E28<=MPP!$C$28,MPP!E29,"") ->  | E4: =IF(MPP!F28<=MPP!$C$28,MPP!F29,"") ->  | F4: =IF(MPP!G28<=MPP!$C$28,MPP!G29,"") ->  | G4: =IF(MPP!H28<=MPP!$C$28,MPP!H29,"") ->  | H4: =IF(MPP!I28<=MPP!$C$28,MPP!I29,"") ->  | I4: =IF(MPP!J28<=MPP!$C$28,MPP!J29,"") ->  | J4: =IF(MPP!K28<=MPP!$C$28,MPP!K29,"") ->  | K4: =IF(MPP!L28<=MPP!$C$28,MPP!L29,"") ->  | L4: =IF(MPP!M28<=MPP!$C$28,MPP!M29,"") ->  | M4: =IF(MPP!N28<=MPP!$C$28,MPP!N29,"") -> 
A5: =IF(MPP!A30<=MPP!$A$4,MPP!B30,IF(MPP!A30=MPP!$A$4+1,"Total","")) -> Milestone Description | B5: =IF(MPP!A30<=MPP!$A$4,MPP!C30,IF(MPP!A30=MPP!$A$4+1,SUM(MPP!C30:C37),"")) -> 210000 | C5: =IF(MPP!A30<=MPP!$A$4,MPP!D30,IF(MPP!A30=MPP!$A$4+1,SUM(MPP!D30:D37),"")) -> 15000 | D5: =IF(MPP!A30<=MPP!$A$4,MPP!E30,IF(MPP!A30=MPP!$A$4+1,SUM(MPP!E30:E37),"")) -> 0 | E5: =IF(MPP!A30<=MPP!$A$4,MPP!F30,IF(MPP!A30=MPP!$A$4+1,SUM(MPP!F30:F37),"")) -> 0 | F5: =IF(MPP!A30<=MPP!$A$4,MPP!G30,IF(MPP!A30=MPP!$A$4+1,SUM(MPP!G30:G37),"")) -> 0 | G5: =IF(MPP!A30<=MPP!$A$4,MPP!H30,IF(MPP!A30=MPP!$A$4+1,SUM(MPP!H30:H37),"")) -> 0 | H5: =IF(MPP!A30<=MPP!$A$4,MPP!I30,IF(MPP!A30=MPP!$A$4+1,SUM(MPP!I30:I37),"")) -> 0 | I5: =IF(MPP!A30<=MPP!$A$4,MPP!J30,IF(MPP!A30=MPP!$A$4+1,SUM(MPP!J30:J37),"")) -> 0 | J5: =IF(MPP!A30<=MPP!$A$4,MPP!K30,IF(MPP!A30=MPP!$A$4+1,SUM(MPP!K30:K37),"")) -> 0 | K5: =IF(MPP!A30<=MPP!$A$4,MPP!L30,IF(MPP!A30=MPP!$A$4+1,SUM(MPP!L30:L37),"")) -> 0 | L5: =IF(MPP!A30<=MPP!$A$4,MPP!M30,IF(MPP!A30=MPP!$A$4+1,SUM(MPP!M30:M37),"")) -> 0 | M5: =IF(MPP!A30<=MPP!$A$4,MPP!N30,IF(MPP!A30=MPP!$A$4+1,SUM(MPP!N30:N37),"")) -> 0
A6: =IF(MPP!A31<=MPP!$A$4,MPP!B31,IF(MPP!A31=MPP!$A$4+1,"Total","")) -> Total | B6: =IF(MPP!A31<=MPP!$A$4,MPP!C31,IF(MPP!A31=MPP!$A$4+1,SUM(MPP!C30:C37),"")) -> 500000 | C6: =IF(MPP!A31<=MPP!$A$4,MPP!D31,IF(MPP!A31=MPP!$A$4+1,SUM(MPP!D30:DD37),"")) -> 25000 | D6: =IF(MPP!A31<=MPP!$A$4,MPP!E31,IF(MPP!A31=MPP!$A$4+1,SUM(MPP!E30:E37),"")) -> 0 | E6: =IF(MPP!A31<=MPP!$A$4,MPP!F31,IF(MPP!A31=MPP!$A$4+1,SUM(MPP!F30:F37),"")) -> 0 | F6: =IF(MPP!A31<=MPP!$A$4,MPP!G31,IF(MPP!A31=MPP!$A$4+1,SUM(MPP!G30:G37),"")) -> 0 | G6: =IF(MPP!A31<=MPP!$A$4,MPP!H31,IF(MPP!A31=MPP!$A$4+1,SUM(MPP!H30:H37),"")) -> 0 | H6: =IF(MPP!A31<=MPP!$A$4,MPP!I31,IF(MPP!A31=MPP!$A$4+1,SUM(MPP!I30:I37),"")) -> 0 | I6: =IF(MPP!A31<=MPP!$A$4,MPP!J31,IF(MPP!A31=MPP!$A$4+1,SUM(MPP!J30:J37),"")) -> 0 | J6: =IF(MPP!A31<=MPP!$A$4,MPP!K31,IF(MPP!A31=MPP!$A$4+1,SUM(MPP!K30:K37),"")) -> 0 | K6: =IF(MPP!A31<=MPP!$A$4,MPP!L31,IF(MPP!A31=MPP!$A$4+1,SUM(MPP!L30:L37),"")) -> 0 | L6: =IF(MPP!A31<=MPP!$A$4,MPP!M31,IF(MPP!A31=MPP!$A$4+1,SUM(MPP!M30:M37),"")) -> 0 | M6: =IF(MPP!A31<=MPP!$A$4,MPP!N31,IF(MPP!A31=MPP!$A$4+1,SUM(MPP!N30:N37),"")) -> 0
A7: =IF(MPP!A32<=MPP!$A$4,MPP!B32,IF(MPP!A32=MPP!$A$4+1,"Total","")) ->  | B7: =IF(MPP!A32<=MPP!$A$4,MPP!C32,IF(MPP!A32=MPP!$A$4+1,SUM(MPP!C30:C37),"")) ->  | C7: =IF(MPP!A32<=MPP!$A$4,MPP!D32,IF(MPP!A32=MPP!$A$4+1,SUM(MPP!D30:DD37),"")) ->  | D7: =IF(MPP!A32<=MPP!$A$4,MPP!E32,IF(MPP!A32=MPP!$A$4+1,SUM(MPP!E30:E37),"")) ->  | E7: =IF(MPP!A32<=MPP!$A$4,MPP!F32,IF(MPP!A32=MPP!$A$4+1,SUM(MPP!F30:F37),"")) ->  | F7: =IF(MPP!A32<=MPP!$A$4,MPP!G32,IF(MPP!A32=MPP!$A$4+1,SUM(MPP!G30:G37),"")) ->  | G7: =IF(MPP!A32<=MPP!$A$4,MPP!H32,IF(MPP!A32=MPP!$A$4+1,SUM(MPP!H30:H37),"")) ->  | H7: =IF(MPP!A32<=MPP!$A$4,MPP!I32,IF(MPP!A32=MPP!$A$4+1,SUM(MPP!I30:I37),"")) ->  | I7: =IF(MPP!A32<=MPP!$A$4,MPP!J32,IF(MPP!A32=MPP!$A$4+1,SUM(MPP!J30:J37),"")) ->  | J7: =IF(MPP!A32<=MPP!$A$4,MPP!K32,IF(MPP!A32=MPP!$A$4+1,SUM(MPP!K30:K37),"")) ->  | K7: =IF(MPP!A32<=MPP!$A$4,MPP!L32,IF(MPP!A32=MPP!$A$4+1,SUM(MPP!L30:L37),"")) ->  | L7: =IF(MPP!A32<=MPP!$A$4,MPP!M32,IF(MPP!A32=MPP!$A$4+1,SUM(MPP!M30:M37),"")) ->  | M7: =IF(MPP!A32<=MPP!$A$4,MPP!N32,IF(MPP!A32=MPP!$A$4+1,SUM(MPP!N30:N37),"")) -> 
A8: =IF(MPP!A33<=MPP!$A$4,MPP!B33,IF(MPP!A33=MPP!$A$4+1,"Total","")) ->  | B8: =IF(MPP!A33<=MPP!$A$4,MPP!C33,IF(MPP!A33=MPP!$A$4+1,SUM(MPP!C30:C37),"")) ->  | C8: =IF(MPP!A33<=MPP!$A$4,MPP!D33,IF(MPP!A33=MPP!$A$4+1,SUM(MPP!D30:DD37),"")) ->  | D8: =IF(MPP!A33<=MPP!$A$4,MPP!E33,IF(MPP!A33=MPP!$A$4+1,SUM(MPP!E30:E37),"")) ->  | E8: =IF(MPP!A33<=MPP!$A$4,MPP!F33,IF(MPP!A33=MPP!$A$4+1,SUM(MPP!F30:F37),"")) ->  | F8: =IF(MPP!A33<=MPP!$A$4,MPP!G33,IF(MPP!A33=MPP!$A$4+1,SUM(MPP!G30:G37),"")) ->  | G8: =IF(MPP!A33<=MPP!$A$4,MPP!H33,IF(MPP!A33=MPP!$A$4+1,SUM(MPP!H30:H37),"")) ->  | H8: =IF(MPP!A33<=MPP!$A$4,MPP!I33,IF(MPP!A33=MPP!$A$4+1,SUM(MPP!I30:I37),"")) ->  | I8: =IF(MPP!A33<=MPP!$A$4,MPP!J33,IF(MPP!A33=MPP!$A$4+1,SUM(MPP!J30:J37),"")) ->  | J8: =IF(MPP!A33<=MPP!$A$4,MPP!K33,IF(MPP!A33=MPP!$A$4+1,SUM(MPP!K30:K37),"")) ->  | K8: =IF(MPP!A33<=MPP!$A$4,MPP!L33,IF(MPP!A33=MPP!$A$4+1,SUM(MPP!L30:L37),"")) ->  | L8: =IF(MPP!A33<=MPP!$A$4,MPP!M33,IF(MPP!A33=MPP!$A$4+1,SUM(MPP!M30:M37),"")) ->  | M8: =IF(MPP!A33<=MPP!$A$4,MPP!N33,IF(MPP!A33=MPP!$A$4+1,SUM(MPP!N30:N37),"")) -> 
A9: =IF(MPP!A34<=MPP!$A$4,MPP!B34,IF(MPP!A34=MPP!$A$4+1,"Total","")) ->  | B9: =IF(MPP!A34<=MPP!$A$4,MPP!C34,IF(MPP!A34=MPP!$A$4+1,SUM(MPP!C30:C37),"")) ->  | C9: =IF(MPP!A34<=MPP!$A$4,MPP!D34,IF(MPP!A34=MPP!$A$4+1,SUM(MPP!D30:D37),"")) ->  | D9: =IF(MPP!A34<=MPP!$A$4,MPP!E34,IF(MPP!A34=MPP!$A$4+1,SUM(MPP!E30:E37),"")) ->  | E9: =IF(MPP!A34<=MPP!$A$4,MPP!F34,IF(MPP!A34=MPP!$A$4+1,SUM(MPP!F30:F37),"")) ->  | F9: =IF(MPP!A34<=MPP!$A$4,MPP!G34,IF(MPP!A34=MPP!$A$4+1,SUM(MPP!G30:G37),"")) ->  | G9: =IF(MPP!A34<=MPP!$A$4,MPP!H34,IF(MPP!A34=MPP!$A$4+1,SUM(MPP!H30:H37),"")) ->  | H9: =IF(MPP!A34<=MPP!$A$4,MPP!I34,IF(MPP!A34=MPP!$A$4+1,SUM(MPP!I30:I37),"")) ->  | I9: =IF(MPP!A34<=MPP!$A$4,MPP!J34,IF(MPP!A34=MPP!$A$4+1,SUM(MPP!J30:J37),"")) ->  | J9: =IF(MPP!A34<=MPP!$A$4,MPP!K34,IF(MPP!A34=MPP!$A$4+1,SUM(MPP!K30:K37),"")) ->  | K9: =IF(MPP!A34<=MPP!$A$4,MPP!L34,IF(MPP!A34=MPP!$A$4+1,SUM(MPP!L30:L37),"")) ->  | L9: =IF(MPP!A34<=MPP!$A$4,MPP!M34,IF(MPP!A34=MPP!$A$4+1,SUM(MPP!M30:M37),"")) ->  | M9: =IF(MPP!A34<=MPP!$A$4,MPP!N34,IF(MPP!A34=MPP!$A$4+1,SUM(MPP!N30:N37),"")) -> 
A10: =IF(MPP!A35<=MPP!$A$4,MPP!B35,IF(MPP!A35=MPP!$A$4+1,"Total","")) ->  | B10: =IF(MPP!A35<=MPP!$A$4,MPP!C35,IF(MPP!A35=MPP!$A$4+1,SUM(MPP!C30:C37),"")) ->  | C10: =IF(MPP!A35<=MPP!$A$4,MPP!D35,IF(MPP!A35=MPP!$A$4+1,SUM(MPP!D30:D37),"")) ->  | D10: =IF(MPP!A35<=MPP!$A$4,MPP!E35,IF(MPP!A35=MPP!$A$4+1,SUM(MPP!E30:E37),"")) ->  | E10: =IF(MPP!A35<=MPP!$A$4,MPP!F35,IF(MPP!A35=MPP!$A$4+1,SUM(MPP!F30:F37),"")) ->  | F10: =IF(MPP!A35<=MPP!$A$4,MPP!G35,IF(MPP!A35=MPP!$A$4+1,SUM(MPP!G30:G37),"")) ->  | G10: =IF(MPP!A35<=MPP!$A$4,MPP!H35,IF(MPP!A35=MPP!$A$4+1,SUM(MPP!H30:H37),"")) ->  | H10: =IF(MPP!A35<=MPP!$A$4,MPP!I35,IF(MPP!A35=MPP!$A$4+1,SUM(MPP!I30:I37),"")) ->  | I10: =IF(MPP!A35<=MPP!$A$4,MPP!J35,IF(MPP!A35=MPP!$A$4+1,SUM(MPP!J30:J37),"")) ->  | J10: =IF(MPP!A35<=MPP!$A$4,MPP!K35,IF(MPP!A35=MPP!$A$4+1,SUM(MPP!K30:K37),"")) ->  | K10: =IF(MPP!A35<=MPP!$A$4,MPP!L35,IF(MPP!A35=MPP!$A$4+1,SUM(MPP!L30:L37),"")) ->  | L10: =IF(MPP!A35<=MPP!$A$4,MPP!M35,IF(MPP!A35=MPP!$A$4+1,SUM(MPP!M30:M37),"")) ->  | M10: =IF(MPP!A35<=MPP!$A$4,MPP!N35,IF(MPP!A35=MPP!$A$4+1,SUM(MPP!N30:N37),"")) -> 
A11: =IF(MPP!A36<=MPP!$A$4,MPP!B36,IF(MPP!A36=MPP!$A$4+1,"Total","")) ->  | B11: =IF(MPP!A36<=MPP!$A$4,MPP!C36,IF(MPP!A36=MPP!$A$4+1,SUM(MPP!C30:C37),"")) ->  | C11: =IF(MPP!A36<=MPP!$A$4,MPP!D36,IF(MPP!A36=MPP!$A$4+1,SUM(MPP!D30:D37),"")) ->  | D11: =IF(MPP!A36<=MPP!$A$4,MPP!E36,IF(MPP!A36=MPP!$A$4+1,SUM(MPP!E30:E37),"")) ->  | E11: =IF(MPP!A36<=MPP!$A$4,MPP!F36,IF(MPP!A36=MPP!$A$4+1,SUM(MPP!F30:F37),"")) ->  | F11: =IF(MPP!A36<=MPP!$A$4,MPP!G36,IF(MPP!A36=MPP!$A$4+1,SUM(MPP!G30:G37),"")) ->  | G11: =IF(MPP!A36<=MPP!$A$4,MPP!H36,IF(MPP!A36=MPP!$A$4+1,SUM(MPP!H30:H37),"")) ->  | H11: =IF(MPP!A36<=MPP!$A$4,MPP!I36,IF(MPP!A36=MPP!$A$4+1,SUM(MPP!I30:I37),"")) ->  | I11: =IF(MPP!A36<=MPP!$A$4,MPP!J36,IF(MPP!A36=MPP!$A$4+1,SUM(MPP!J30:J37),"")) ->  | J11: =IF(MPP!A36<=MPP!$A$4,MPP!K36,IF(MPP!A36=MPP!$A$4+1,SUM(MPP!K30:K37),"")) ->  | K11: =IF(MPP!A36<=MPP!$A$4,MPP!L36,IF(MPP!A36=MPP!$A$4+1,SUM(MPP!L30:L37),"")) ->  | L11: =IF(MPP!A36<=MPP!$A$4,MPP!M36,IF(MPP!A36=MPP!$A$4+1,SUM(MPP!M30:M37),"")) ->  | M11: =IF(MPP!A36<=MPP!$A$4,MPP!N36,IF(MPP!A36=MPP!$A$4+1,SUM(MPP!N30:N37),"")) -> 
A12: =IF(MPP!A37<=MPP!$A$4,MPP!B37,IF(MPP!A37=MPP!$A$4+1,"Total","")) ->  | B12: =IF(MPP!A37<=MPP!$A$4,MPP!C37,IF(MPP!A37=MPP!$A$4+1,SUM(MPP!C30:C37),"")) ->  | C12: =IF(MPP!A37<=MPP!$A$4,MPP!D37,IF(MPP!A37=MPP!$A$4+1,SUM(MPP!D30:D37),"")) ->  | D12: =IF(MPP!A37<=MPP!$A$4,MPP!E37,IF(MPP!A37=MPP!$A$4+1,SUM(MPP!E30:E37),"")) ->  | E12: =IF(MPP!A37<=MPP!$A$4,MPP!F37,IF(MPP!A37=MPP!$A$4+1,SUM(MPP!F30:F37),"")) ->  | F12: =IF(MPP!A37<=MPP!$A$4,MPP!G37,IF(MPP!A37=MPP!$A$4+1,SUM(MPP!G30:G37),"")) ->  | G12: =IF(MPP!A37<=MPP!$A$4,MPP!H37,IF(MPP!A37=MPP!$A$4+1,SUM(MPP!H30:H37),"")) ->  | H12: =IF(MPP!A37<=MPP!$A$4,MPP!I37,IF(MPP!A37=MPP!$A$4+1,SUM(MPP!I30:I37),"")) ->  | I12: =IF(MPP!A37<=MPP!$A$4,MPP!J37,IF(MPP!A37=MPP!$A$4+1,SUM(MPP!J30:J37),"")) ->  | J12: =IF(MPP!A37<=MPP!$A$4,MPP!K37,IF(MPP!A37=MPP!$A$4+1,SUM(MPP!K30:K37),"")) ->  | K12: =IF(MPP!A37<=MPP!$A$4,MPP!L37,IF(MPP!A37=MPP!$A$4+1,SUM(MPP!L30:L37),"")) ->  | L12: =IF(MPP!A37<=MPP!$A$4,MPP!M37,IF(MPP!A37=MPP!$A$4+1,SUM(MPP!M30:M37),"")) ->  | M12: =IF(MPP!A37<=MPP!$A$4,MPP!N37,IF(MPP!A37=MPP!$A$4+1,SUM(MPP!N30:N37),"")) -> 
A13: =IF(MPP!A38<=MPP!$A$4,MPP!B38,IF(MPP!A38=MPP!$A$4+1,"Total","")) ->  | B13: =IF(MPP!A38<=MPP!$A$4,MPP!C38,IF(MPP!A38=MPP!$A$4+1,SUM(MPP!C30:C37),"")) ->  | C13: =IF(MPP!A38<=MPP!$A$4,MPP!D38,IF(MPP!A38=MPP!$A$4+1,SUM(MPP!D30:D37),"")) ->  | D13: =IF(MPP!A38<=MPP!$A$4,MPP!E38,IF(MPP!A38=MPP!$A$4+1,SUM(MPP!E30:E37),"")) ->  | E13: =IF(MPP!A38<=MPP!$A$4,MPP!F38,IF(MPP!A38=MPP!$A$4+1,SUM(MPP!F30:F37),"")) ->  | F13: =IF(MPP!A38<=MPP!$A$4,MPP!G38,IF(MPP!A38=MPP!$A$4+1,SUM(MPP!G30:G37),"")) ->  | G13: =IF(MPP!A38<=MPP!$A$4,MPP!H38,IF(MPP!A38=MPP!$A$4+1,SUM(MPP!H30:H37),"")) ->  | H13: =IF(MPP!A38<=MPP!$A$4,MPP!I38,IF(MPP!A38=MPP!$A$4+1,SUM(MPP!I30:I37),"")) ->  | I13: =IF(MPP!A38<=MPP!$A$4,MPP!J38,IF(MPP!A38=MPP!$A$4+1,SUM(MPP!J30:J37),"")) ->  | J13: =IF(MPP!A38<=MPP!$A$4,MPP!K38,IF(MPP!A38=MPP!$A$4+1,SUM(MPP!K30:K37),"")) ->  | K13: =IF(MPP!A38<=MPP!$A$4,MPP!L38,IF(MPP!A38=MPP!$A$4+1,SUM(MPP!L30:L37),"")) ->  | L13: =IF(MPP!A38<=MPP!$A$4,MPP!M38,IF(MPP!A38=MPP!$A$4+1,SUM(MPP!M30:M37),"")) ->  | M13: =IF(MPP!A38<=MPP!$A$4,MPP!N38,IF(MPP!A38=MPP!$A$4+1,SUM(MPP!N30:N37),"")) -> 
A17: Phase 2
A18: For Information purposes only:
A19: Amounts in Euro for Prime and Subcontractor(s)
A20: Milestone | B20: =MPP!C29 -> Our company (IT) | C20: =IF(MPP!D41<=MPP!$C$41,MPP!D42,"") -> Subco 1 (AT) | D20: =IF(MPP!E41<=MPP!$C$41,MPP!E42,"") ->  | E20: =IF(MPP!F41<=MPP!$C$41,MPP!F42,"") ->  | F20: =IF(MPP!G41<=MPP!$C$41,MPP!G42,"") ->  | G20: =IF(MPP!H41<=MPP!$C$41,MPP!H42,"") ->  | H20: =IF(MPP!I41<=MPP!$C$41,MPP!I42,"") ->  | I20: =IF(MPP!J41<=MPP!$C$41,MPP!J42,"") ->  | J20: =IF(MPP!K41<=MPP!$C$41,MPP!K42,"") ->  | K20: =IF(MPP!L41<=MPP!$C$41,MPP!L42,"") ->  | L20: =IF(MPP!M41<=MPP!$C$41,MPP!M42,"") ->  | M20: =IF(MPP!N41<=MPP!$C$41,MPP!N42,"") -> 
A21: =IF(MPP!A43<=MPP!$A$16,MPP!B43,IF(MPP!A43=MPP!$A$16+1,"Total","")) -> Milestone Description | B21: =IF(MPP!A43<=MPP!$A$16,MPP!C43,IF(MPP!A43=MPP!$A$16+1,SUM(MPP!C43:C50),"")) -> 140000 | C21: =IF(MPP!A43<=MPP!$A$16,MPP!D43,IF(MPP!A43=MPP!$A$16+1,SUM(MPP!D43:D50),"")) -> 40000 | D21: =IF(MPP!A43<=MPP!$A$16,MPP!E43,IF(MPP!A43=MPP!$A$16+1,SUM(MPP!E43:E50),"")) -> 20000 | E21: =IF(MPP!A43<=MPP!$A$16,MPP!F43,IF(MPP!A43=MPP!$A$16+1,SUM(MPP!F43:F50),"")) -> 0 | F21: =IF(MPP!A43<=MPP!$A$16,MPP!G43,IF(MPP!A43=MPP!$A$16+1,SUM(MPP!G43:G50),"")) -> 0 | G21: =IF(MPP!A43<=MPP!$A$16,MPP!H43,IF(MPP!A43=MPP!$A$16+1,SUM(MPP!H43:H50),"")) -> 0 | H21: =IF(MPP!A43<=MPP!$A$16,MPP!I43,IF(MPP!A43=MPP!$A$16+1,SUM(MPP!I43:I50),"")) -> 0 | I21: =IF(MPP!A43<=MPP!$A$16,MPP!J43,IF(MPP!A43=MPP!$A$16+1,SUM(MPP!J43:J50),"")) -> 0 | J21: =IF(MPP!A43<=MPP!$A$16,MPP!K43,IF(MPP!A43=MPP!$A$16+1,SUM(MPP!K43:K50),"")) -> 0 | K21: =IF(MPP!A43<=MPP!$A$16,MPP!L43,IF(MPP!A43=MPP!$A$16+1,SUM(MPP!L43:L50),"")) -> 0 | L21: =IF(MPP!A43<=MPP!$A$16,MPP!M43,IF(MPP!A43=MPP!$A$16+1,SUM(MPP!M43:M50),"")) -> 0 | M21: =IF(MPP!A43<=MPP!$A$16,MPP!N43,IF(MPP!A43=MPP!$A$16+1,SUM(MPP!N43:N50),"")) -> 0
A22: =IF(MPP!A44<=MPP!$A$16,MPP!B44,IF(MPP!A44=MPP!$A$16+1,"Total","")) -> Total | B22: =IF(MPP!A44<=MPP!$A$16,MPP!C44,IF(MPP!A44=MPP!$A$16+1,SUM(MPP!C43:C50),"")) -> 600000 | C22: =IF(MPP!A44<=MPP!$A$16,MPP!D44,IF(MPP!A44=MPP!$A$16+1,SUM(MPP!D43:D50),"")) -> 100000 | D22: =IF(MPP!A44<=MPP!$A$16,MPP!E44,IF(MPP!A44=MPP!$A$16+1,SUM(MPP!E43:E50),"")) -> 90000 | E22: =IF(MPP!A44<=MPP!$A$16,MPP!F44,IF(MPP!A44=MPP!$A$16+1,SUM(MPP!F43:F50),"")) -> 0 | F22: =IF(MPP!A44<=MPP!$A$16,MPP!G44,IF(MPP!A44=MPP!$A$16+1,SUM(MPP!G43:G50),"")) -> 0 | G22: =IF(MPP!A44<=MPP!$A$16,MPP!H44,IF(MPP!A44=MPP!$A$16+1,SUM(MPP!H43:H50),"")) -> 0 | H22: =IF(MPP!A44<=MPP!$A$16,MPP!I44,IF(MPP!A44=MPP!$A$16+1,SUM(MPP!I43:I50),"")) -> 0 | I22: =IF(MPP!A44<=MPP!$A$16,MPP!J44,IF(MPP!A44=MPP!$A$16+1,SUM(MPP!J43:J50),"")) -> 0 | J22: =IF(MPP!A44<=MPP!$A$16,MPP!K44,IF(MPP!A44=MPP!$A$16+1,SUM(MPP!K43:K50),"")) -> 0 | K22: =IF(MPP!A44<=MPP!$A$16,MPP!L44,IF(MPP!A44=MPP!$A$16+1,SUM(MPP!L43:L50),"")) -> 0 | L22: =IF(MPP!A44<=MPP!$A$16,MPP!M44,IF(MPP!A44=MPP!$A$16+1,SUM(MPP!M43:M50),"")) -> 0 | M22: =IF(MPP!A44<=MPP!$A$16,MPP!N44,IF(MPP!A44=MPP!$A$16+1,SUM(MPP!N43:N50),"")) -> 0
A23: =IF(MPP!A45<=MPP!$A$16,MPP!B45,IF(MPP!A45=MPP!$A$16+1,"Total","")) ->  | B23: =IF(MPP!A45<=MPP!$A$16,MPP!C45,IF(MPP!A45=MPP!$A$16+1,SUM(MPP!C43:C50),"")) ->  | C23: =IF(MPP!A45<=MPP!$A$16,MPP!D45,IF(MPP!A45=MPP!$A$16+1,SUM(MPP!D43:D50),"")) ->  | D23: =IF(MPP!A45<=MPP!$A$16,MPP!E45,IF(MPP!A45=MPP!$A$16+1,SUM(MPP!E43:E50),"")) ->  | E23: =IF(MPP!A45<=MPP!$A$16,MPP!F45,IF(MPP!A45=MPP!$A$16+1,SUM(MPP!F43:F50),"")) ->  | F23: =IF(MPP!A45<=MPP!$A$16,MPP!G45,IF(MPP!A45=MPP!$A$16+1,SUM(MPP!G43:G50),"")) ->  | G23: =IF(MPP!A45<=MPP!$A$16,MPP!H45,IF(MPP!A45=MPP!$A$16+1,SUM(MPP!H43:H50),"")) ->  | H23: =IF(MPP!A45<=MPP!$A$16,MPP!I45,IF(MPP!A45=MPP!$A$16+1,SUM(MPP!I43:I50),"")) ->  | I23: =IF(MPP!A45<=MPP!$A$16,MPP!J45,IF(MPP!A45=MPP!$A$16+1,SUM(MPP!J43:J50),"")) ->  | J23: =IF(MPP!A45<=MPP!$A$16,MPP!K45,IF(MPP!A45=MPP!$A$16+1,SUM(MPP!K43:K50),"")) ->  | K23: =IF(MPP!A45<=MPP!$A$16,MPP!L45,IF(MPP!A45=MPP!$A$16+1,SUM(MPP!L43:L50),"")) ->  | L23: =IF(MPP!A45<=MPP!$A$16,MPP!M45,IF(MPP!A45=MPP!$A$16+1,SUM(MPP!M43:M50),"")) ->  | M23: =IF(MPP!A45<=MPP!$A$16,MPP!N45,IF(MPP!A45=MPP!$A$16+1,SUM(MPP!N43:N50),"")) -> 
A24: =IF(MPP!A46<=MPP!$A$16,MPP!B46,IF(MPP!A46=MPP!$A$16+1,"Total","")) ->  | B24: =IF(MPP!A46<=MPP!$A$16,MPP!C46,IF(MPP!A46=MPP!$A$16+1,SUM(MPP!C43:C50),"")) ->  | C24: =IF(MPP!A46<=MPP!$A$16,MPP!D46,IF(MPP!A46=MPP!$A$16+1,SUM(MPP!D43:D50),"")) ->  | D24: =IF(MPP!A46<=MPP!$A$16,MPP!E46,IF(MPP!A46=MPP!$A$16+1,SUM(MPP!E43:E50),"")) ->  | E24: =IF(MPP!A46<=MPP!$A$16,MPP!F46,IF(MPP!A46=MPP!$A$16+1,SUM(MPP!F43:F50),"")) ->  | F24: =IF(MPP!A46<=MPP!$A$16,MPP!G46,IF(MPP!A46=MPP!$A$16+1,SUM(MPP!G43:G50),"")) ->  | G24: =IF(MPP!A46<=MPP!$A$16,MPP!H46,IF(MPP!A46=MPP!$A$16+1,SUM(MPP!H43:H50),"")) ->  | H24: =IF(MPP!A46<=MPP!$A$16,MPP!I46,IF(MPP!A46=MPP!$A$16+1,SUM(MPP!I43:I50),"")) ->  | I24: =IF(MPP!A46<=MPP!$A$16,MPP!J46,IF(MPP!A46=MPP!$A$16+1,SUM(MPP!J43:J50),"")) ->  | J24: =IF(MPP!A46<=MPP!$A$16,MPP!K46,IF(MPP!A46=MPP!$A$16+1,SUM(MPP!K43:K50),"")) ->  | K24: =IF(MPP!A46<=MPP!$A$16,MPP!L46,IF(MPP!A46=MPP!$A$16+1,SUM(MPP!L43:L50),"")) ->  | L24: =IF(MPP!A46<=MPP!$A$16,MPP!M46,IF(MPP!A46=MPP!$A$16+1,SUM(MPP!M43:M50),"")) ->  | M24: =IF(MPP!A46<=MPP!$A$16,MPP!N46,IF(MPP!A46=MPP!$A$16+1,SUM(MPP!N43:N50),"")) -> 
A25: =IF(MPP!A47<=MPP!$A$16,MPP!B47,IF(MPP!A47=MPP!$A$16+1,"Total","")) ->  | B25: =IF(MPP!A47<=MPP!$A$16,MPP!C47,IF(MPP!A47=MPP!$A$16+1,SUM(MPP!C43:C50),"")) ->  | C25: =IF(MPP!A47<=MPP!$A$16,MPP!D47,IF(MPP!A47=MPP!$A$16+1,SUM(MPP!D43:D50),"")) ->  | D25: =IF(MPP!A47<=MPP!$A$16,MPP!E47,IF(MPP!A47=MPP!$A$16+1,SUM(MPP!E43:E50),"")) ->  | E25: =IF(MPP!A47<=MPP!$A$16,MPP!F47,IF(MPP!A47=MPP!$A$16+1,SUM(MPP!F43:F50),"")) ->  | F25: =IF(MPP!A47<=MPP!$A$16,MPP!G47,IF(MPP!A47=MPP!$A$16+1,SUM(MPP!G43:G50),"")) ->  | G25: =IF(MPP!A47<=MPP!$A$16,MPP!H47,IF(MPP!A47=MPP!$A$16+1,SUM(MPP!H43:H50),"")) ->  | H25: =IF(MPP!A47<=MPP!$A$16,MPP!I47,IF(MPP!A47=MPP!$A$16+1,SUM(MPP!I43:I50),"")) ->  | I25: =IF(MPP!A47<=MPP!$A$16,MPP!J47,IF(MPP!A47=MPP!$A$16+1,SUM(MPP!J43:J50),"")) ->  | J25: =IF(MPP!A47<=MPP!$A$16,MPP!K47,IF(MPP!A47=MPP!$A$16+1,SUM(MPP!K43:K50),"")) ->  | K25: =IF(MPP!A47<=MPP!$A$16,MPP!L47,IF(MPP!A47=MPP!$A$16+1,SUM(MPP!L43:L50),"")) ->  | L25: =IF(MPP!A47<=MPP!$A$16,MPP!M47,IF(MPP!A47=MPP!$A$16+1,SUM(MPP!M43:M50),"")) ->  | M25: =IF(MPP!A47<=MPP!$A$16,MPP!N47,IF(MPP!A47=MPP!$A$16+1,SUM(MPP!N43:N50),"")) -> 
A26: =IF(MPP!A48<=MPP!$A$16,MPP!B48,IF(MPP!A48=MPP!$A$16+1,"Total","")) ->  | B26: =IF(MPP!A48<=MPP!$A$16,MPP!C48,IF(MPP!A48=MPP!$A$16+1,SUM(MPP!C43:CC50),"")) ->  | C26: =IF(MPP!A48<=MPP!$A$16,MPP!D48,IF(MPP!A48=MPP!$A$16+1,SUM(MPP!D43:D50),"")) ->  | D26: =IF(MPP!A48<=MPP!$A$16,MPP!E48,IF(MPP!A48=MPP!$A$16+1,SUM(MPP!E43:E50),"")) ->  | E26: =IF(MPP!A48<=MPP!$A$16,MPP!F48,IF(MPP!A48=MPP!$A$16+1,SUM(MPP!F43:F50),"")) ->  | F26: =IF(MPP!A48<=MPP!$A$16,MPP!G48,IF(MPP!A48=MPP!$A$16+1,SUM(MPP!G43:G50),"")) ->  | G26: =IF(MPP!A48<=MPP!$A$16,MPP!H48,IF(MPP!A48=MPP!$A$16+1,SUM(MPP!H43:H50),"")) ->  | H26: =IF(MPP!A48<=MPP!$A$16,MPP!I48,IF(MPP!A48=MPP!$A$16+1,SUM(MPP!I43:I50),"")) ->  | I26: =IF(MPP!A48<=MPP!$A$16,MPP!J48,IF(MPP!A48=MPP!$A$16+1,SUM(MPP!J43:J50),"")) ->  | J26: =IF(MPP!A48<=MPP!$A$16,MPP!K48,IF(MPP!A48=MPP!$A$16+1,SUM(MPP!K43:K50),"")) ->  | K26: =IF(MPP!A48<=MPP!$A$16,MPP!L48,IF(MPP!A48=MPP!$A$16+1,SUM(MPP!L43:L50),"")) ->  | L26: =IF(MPP!A48<=MPP!$A$16,MPP!M48,IF(MPP!A48=MPP!$A$16+1,SUM(MPP!M43:M50),"")) ->  | M26: =IF(MPP!A48<=MPP!$A$16,MPP!N48,IF(MPP!A48=MPP!$A$16+1,SUM(MPP!N43:N50),"")) -> 
A27: =IF(MPP!A49<=MPP!$A$16,MPP!B49,IF(MPP!A49=MPP!$A$16+1,"Total","")) ->  | B27: =IF(MPP!A49<=MPP!$A$16,MPP!C49,IF(MPP!A49=MPP!$A$16+1,SUM(MPP!C43:CC50),"")) ->  | C27: =IF(MPP!A49<=MPP!$A$16,MPP!D49,IF(MPP!A49=MPP!$A$16+1,SUM(MPP!D43:D50),"")) ->  | D27: =IF(MPP!A49<=MPP!$A$16,MPP!E49,IF(MPP!A49=MPP!$A$16+1,SUM(MPP!E43:E50),"")) ->  | E27: =IF(MPP!A49<=MPP!$A$16,MPP!F49,IF(MPP!A49=MPP!$A$16+1,SUM(MPP!F43:F50),"")) ->  | F27: =IF(MPP!A49<=MPP!$A$16,MPP!G49,IF(MPP!A49=MPP!$A$16+1,SUM(MPP!G43:G50),"")) ->  | G27: =IF(MPP!A49<=MPP!$A$16,MPP!H49,IF(MPP!A49=MPP!$A$16+1,SUM(MPP!H43:H50),"")) ->  | H27: =IF(MPP!A49<=MPP!$A$16,MPP!I49,IF(MPP!A49=MPP!$A$16+1,SUM(MPP!I43:I50),"")) ->  | I27: =IF(MPP!A49<=MPP!$A$16,MPP!J49,IF(MPP!A49=MPP!$A$16+1,SUM(MPP!J43:J50),"")) ->  | J27: =IF(MPP!A49<=MPP!$A$16,MPP!K49,IF(MPP!A49=MPP!$A$16+1,SUM(MPP!K43:K50),"")) ->  | K27: =IF(MPP!A49<=MPP!$A$16,MPP!L49,IF(MPP!A49=MPP!$A$16+1,SUM(MPP!L43:L50),"")) ->  | L27: =IF(MPP!A49<=MPP!$A$16,MPP!M49,IF(MPP!A49=MPP!$A$16+1,SUM(MPP!M43:M50),"")) ->  | M27: =IF(MPP!A49<=MPP!$A$16,MPP!N49,IF(MPP!A49=MPP!$A$16+1,SUM(MPP!N43:N50),"")) -> 
A28: =IF(MPP!A50<=MPP!$A$16,MPP!B50,IF(MPP!A50=MPP!$A$16+1,"Total","")) ->  | B28: =IF(MPP!A50<=MPP!$A$16,MPP!C50,IF(MPP!A50=MPP!$A$16+1,SUM(MPP!C43:CC50),"")) ->  | C28: =IF(MPP!A50<=MPP!$A$16,MPP!D50,IF(MPP!A50=MPP!$A$16+1,SUM(MPP!D43:D50),"")) ->  | D28: =IF(MPP!A50<=MPP!$A$16,MPP!E50,IF(MPP!A50=MPP!$A$16+1,SUM(MPP!E43:E50),"")) ->  | E28: =IF(MPP!A50<=MPP!$A$16,MPP!F50,IF(MPP!A50=MPP!$A$16+1,SUM(MPP!F43:F50),"")) ->  | F28: =IF(MPP!A50<=MPP!$A$16,MPP!G50,IF(MPP!A50=MPP!$A$16+1,SUM(MPP!G43:G50),"")) ->  | G28: =IF(MPP!A50<=MPP!$A$16,MPP!H50,IF(MPP!A50=MPP!$A$16+1,SUM(MPP!H43:H50),"")) ->  | H28: =IF(MPP!A50<=MPP!$A$16,MPP!I50,IF(MPP!A50=MPP!$A$16+1,SUM(MPP!I43:I50),"")) ->  | I28: =IF(MPP!A50<=MPP!$A$16,MPP!J50,IF(MPP!A50=MPP!$A$16+1,SUM(MPP!J43:J50),"")) ->  | J28: =IF(MPP!A50<=MPP!$A$16,MPP!K50,IF(MPP!A50=MPP!$A$16+1,SUM(MPP!K43:K50),"")) ->  | K28: =IF(MPP!A50<=MPP!$A$16,MPP!L50,IF(MPP!A50=MPP!$A$16+1,SUM(MPP!L43:L50),"")) ->  | L28: =IF(MPP!A50<=MPP!$A$16,MPP!M50,IF(MPP!A50=MPP!$A$16+1,SUM(MPP!M43:M50),"")) ->  | M28: =IF(MPP!A50<=MPP!$A$16,MPP!N50,IF(MPP!A50=MPP!$A$16+1,SUM(MPP!N43:N50),"")) -> 
A29: =IF(MPP!A51<=MPP!$A$16,MPP!B51,IF(MPP!A51=MPP!$A$16+1,"Total","")) ->  | B29: =IF(MPP!A51<=MPP!$A$16,MPP!C51,IF(MPP!A51=MPP!$A$16+1,SUM(MPP!C43:C50),"")) ->  | C29: =IF(MPP!A51<=MPP!$A$16,MPP!D51,IF(MPP!A51=MPP!$A$16+1,SUM(MPP!D43:D50),"")) ->  | D29: =IF(MPP!A51<=MPP!$A$16,MPP!E51,IF(MPP!A51=MPP!$A$16+1,SUM(MPP!E43:E50),"")) ->  | E29: =IF(MPP!A51<=MPP!$A$16,MPP!F51,IF(MPP!A51=MPP!$A$16+1,SUM(MPP!F43:F50),"")) ->  | F29: =IF(MPP!A51<=MPP!$A$16,MPP!G51,IF(MPP!A51=MPP!$A$16+1,SUM(MPP!G43:G50),"")) ->  | G29: =IF(MPP!A51<=MPP!$A$16,MPP!H51,IF(MPP!A51=MPP!$A$16+1,SUM(MPP!H43:H50),"")) ->  | H29: =IF(MPP!A51<=MPP!$A$16,MPP!I51,IF(MPP!A51=MPP!$A$16+1,SUM(MPP!I43:I50),"")) ->  | I29: =IF(MPP!A51<=MPP!$A$16,MPP!J51,IF(MPP!A51=MPP!$A$16+1,SUM(MPP!J43:J50),"")) ->  | J29: =IF(MPP!A51<=MPP!$A$16,MPP!K51,IF(MPP!A51=MPP!$A$16+1,SUM(MPP!K43:K50),"")) ->  | K29: =IF(MPP!A51<=MPP!$A$16,MPP!L51,IF(MPP!A51=MPP!$A$16+1,SUM(MPP!L43:L50),"")) ->  | L29: =IF(MPP!A51<=MPP!$A$16,MPP!M51,IF(MPP!A51=MPP!$A$16+1,SUM(MPP!M43:M50),"")) ->  | M29: =IF(MPP!A51<=MPP!$A$16,MPP!N51,IF(MPP!A51=MPP!$A$16+1,SUM(MPP!N43:N50),"")) -> 

Sheet TableAdvance
A1: Phase 1 - Advance Breakdown | J1: Scroll down for Phase 2 table
A2: For Information purposes only:
A3: Amounts in Euro for Contractor and Subcontractor(s)
A4: Prime (P) / Subco (SI) | B4: ="Company" & CHAR(10) & "Name" -> Company Name | C4: Vendor Code (at contract signature) | D4: Country (ISO code) | E4: Advance Payment (in Euro) | F4: Offset against | G4: Offset by Euro | H4: Condition for release of the Advance Payment (if applicable)
A5: =IF(ADV!A3="Yes",ADV!D3,"") -> P | B5: =IF(A5="","",ADV!E3) -> Our Company | C5: =IF(A5="","",ADV!F3) -> 100 xxx-xxx | D5: =IF(A5="","",ADV!G3) -> IT | E5: =IF(A5="","",ADV!H3) -> 50000 | F5: =IF(A5="","",TRIM(ADV!I3&CHAR(10)&ADV!I4&CHAR(10)&ADV!I5&CHAR(10)&ADV!I6&CHAR(10)&ADV!I7&CHAR(10)&ADV!I8&CHAR(10)&ADV!I9&CHAR(10)&ADV!I10&CHAR(10))) -> Milestone 1 Milestone 2 | G5: =IF(A5="","",TRIM(ADV!J3&CHAR(10)&ADV!J4&CHAR(10)&ADV!J5&CHAR(10)&ADV!J6&CHAR(10)&ADV!J7&CHAR(10)&ADV!J8&CHAR(10)&ADV!J9&CHAR(10)&ADV!J10&CHAR(10))) -> 25000 25000 | H5: =IF(A5="","",ADV!K3) -> After signature of the Contract by both Parties
A6: =IF(ADV!A11="Yes",ADV!D11,"") -> SI | B6: =IF(A6="","",ADV!E11) -> Subco 1 | C6: =IF(A6="","",ADV!F11) -> 100 xxx-xxx | D6: =IF(A6="","",ADV!G11) -> AT | E6: =IF(A6="","",ADV!H11) -> 4000 | F6: =IF(A6<>"",TRIM(ADV!I11&CHAR(10)&ADV!I12&CHAR(10)&ADV!I13&CHAR(10)&ADV!I14&CHAR(10)&ADV!I15&CHAR(10)&ADV!I16&CHAR(10)&ADV!I17&CHAR(10)&ADV!I18&CHAR(10)),"") -> Milestone 1 Milestone 2 | G6: =IF(B6<>"",TRIM(ADV!J11&CHAR(10)&ADV!J12&CHAR(10)&ADV!J13&CHAR(10)&ADV!J14&CHAR(10)&ADV!J15&CHAR(10)&ADV!J16&CHAR(10)&ADV!J17&CHAR(10)&ADV!J18&CHAR(10)),"") -> 2000 2000 | H6: =IF(A6="","",ADV!K11) -> After signature of the Contract by both Parties
A7: =IF(ADV!A19="Yes",ADV!D19,"") ->  | B7: =IF(A7="","",ADV!E19) ->  | C7: =IF(A7="","",ADV!F19) ->  | D7: =IF(C7="","",ADV!G19) ->  | E7: =IF(D7="","",ADV!H19) ->  | F7: =IF(A7<>"",TRIM(ADV!I19&CHAR(10)&ADV!I20&CHAR(10)&ADV!I21&CHAR(10)&ADV!I22&CHAR(10)&ADV!I23&CHAR(10)&ADV!I24&CHAR(10)&ADV!I25&CHAR(10)&ADV!I26),"") ->  | G7: =IF(B7<>"",TRIM(ADV!J19&CHAR(10)&ADV!J20&CHAR(10)&ADV!J21&CHAR(10)&ADV!J22&CHAR(10)&ADV!J23&CHAR(10)&ADV!J24&CHAR(10)&ADV!J25&CHAR(10)&ADV!J26),"") ->  | H7: =IF(A7="","",ADV!K19) -> 
A8: =IF(ADV!A27="Yes",ADV!D27,"") ->  | B8: =IF(A8="","",ADV!E27) ->  | C8: =IF(A8="","",ADV!F27) ->  | D8: =IF(C8="","",ADV!G27) ->  | E8: =IF(D8="","",ADV!H27) ->  | F8: =IF(A8<>"",TRIM(ADV!I27&CHAR(10)&ADV!I28&CHAR(10)&ADV!I29&CHAR(10)&ADV!I30&CHAR(10)&ADV!I31&CHAR(10)&ADV!I32&CHAR(10)&ADV!I33&CHAR(10)&ADV!I34),"") ->  | G8: =IF(B8<>"",TRIM(ADV!J27&CHAR(10)&ADV!J28&CHAR(10)&ADV!J29&CHAR(10)&ADV!J30&CHAR(10)&ADV!J31&CHAR(10)&ADV!J32&CHAR(10)&ADV!J33&CHAR(10)&ADV!J34),"") ->  | H8: =IF(A8="","",ADV!K27) -> 
A9: =IF(ADV!A35="Yes",ADV!D35,"") ->  | B9: =IF(A9="","",ADV!E35) ->  | C9: =IF(A9="","",ADV!F35) ->  | D9: =IF(C9="","",ADV!G35) ->  | E9: =IF(D9="","",ADV!H35) ->  | F9: =IF(A9<>"",TRIM(ADV!I35&CHAR(10)&ADV!I36&CHAR(10)&ADV!I37&CHAR(10)&ADV!I38&CHAR(10)&ADV!I39&CHAR(10)&ADV!I40&CHAR(10)&ADV!I41&CHAR(10)&ADV!I42),"") ->  | G9: =IF(B9<>"",TRIM(ADV!J35&CHAR(10)&ADV!J36&CHAR(10)&ADV!J37&CHAR(10)&ADV!J38&CHAR(10)&ADV!J39&CHAR(10)&ADV!J40&CHAR(10)&ADV!J41&CHAR(10)&ADV!J42),"") ->  | H9: =IF(A9="","",ADV!K35) -> 
A10: =IF(ADV!A43="Yes",ADV!D43,"") ->  | B10: =IF(A10="","",ADV!E43) ->  | C10: =IF(A10="","",ADV!F43) ->  | D10: =IF(C10="","",ADV!G43) ->  | E10: =IF(D10="","",ADV!H43) ->  | F10: =IF(A10<>"",TRIM(ADV!I43&CHAR(10)&ADV!I44&CHAR(10)&ADV!I45&CHAR(10)&ADV!I46&CHAR(10)&ADV!I47&CHAR(10)&ADV!I48&CHAR(10)&ADV!I49&CHAR(10)&ADV!I50),"") ->  | G10: =IF(B10<>"",TRIM(ADV!J43&CHAR(10)&ADV!J44&CHAR(10)&ADV!J45&CHAR(10)&ADV!J46&CHAR(10)&ADV!J47&CHAR(10)&ADV!J48&CHAR(10)&ADV!J49&CHAR(10)&ADV!J50),"") ->  | H10: =IF(A10="","",ADV!K43) -> 
A11: =IF(ADV!A51="Yes",ADV!D51,"") ->  | B11: =IF(A11="","",ADV!E51) ->  | C11: =IF(A11="","",ADV!F51) ->  | D11: =IF(C11="","",ADV!G51) ->  | E11: =IF(D11="","",ADV!H51) ->  | F11: =IF(A11<>"",TRIM(ADV!I51&CHAR(10)&ADV!I52&CHAR(10)&ADV!I53&CHAR(10)&ADV!I54&CHAR(10)&ADV!I55&CHAR(10)&ADV!I56&CHAR(10)&ADV!I57&CHAR(10)&ADV!I58),"") ->  | G11: =IF(B11<>"",TRIM(ADV!J51&CHAR(10)&ADV!J52&CHAR(10)&ADV!J53&CHAR(10)&ADV!J54&CHAR(10)&ADV!J55&CHAR(10)&ADV!J56&CHAR(10)&ADV!J57&CHAR(10)&ADV!J58),"") ->  | H11: =IF(A11="","",ADV!K51) -> 
A12: =IF(ADV!A59="Yes",ADV!D59,"") ->  | B12: =IF(A12="","",ADV!E59) ->  | C12: =IF(A12="","",ADV!F59) ->  | D12: =IF(C12="","",ADV!G59) ->  | E12: =IF(D12="","",ADV!H59) ->  | F12: =IF(A12<>"",TRIM(ADV!I59&CHAR(10)&ADV!I60&CHAR(10)&ADV!I61&CHAR(10)&ADV!I62&CHAR(10)&ADV!I63&CHAR(10)&ADV!I64&CHAR(10)&ADV!I65&CHAR(10)&ADV!I66),"") ->  | G12: =IF(B12<>"",TRIM(ADV!J59&CHAR(10)&ADV!J60&CHAR(10)&ADV!J61&CHAR(10)&ADV!J62&CHAR(10)&ADV!J63&CHAR(10)&ADV!J64&CHAR(10)&ADV!J65&CHAR(10)&ADV!J66),"") ->  | H12: =IF(A12="","",ADV!K59) -> 
A13: =IF(ADV!A67="Yes",ADV!D67,"") ->  | B13: =IF(A13="","",ADV!E67) ->  | C13: =IF(A13="","",ADV!F67) ->  | D13: =IF(C13="","",ADV!G67) ->  | E13: =IF(D13="","",ADV!H67) ->  | F13: =IF(A13<>"",TRIM(ADV!I67&CHAR(10)&ADV!I68&CHAR(10)&ADV!I69&CHAR(10)&ADV!I70&CHAR(10)&ADV!I71&CHAR(10)&ADV!I72&CHAR(10)&ADV!I73&CHAR(10)&ADV!I74),"") ->  | G13: =IF(B13<>"",TRIM(ADV!J67&CHAR(10)&ADV!J68&CHAR(10)&ADV!J69&CHAR(10)&ADV!J70&CHAR(10)&ADV!J71&CHAR(10)&ADV!J72&CHAR(10)&ADV!J73&CHAR(10)&ADV!J74),"") ->  | H13: =IF(A13="","",ADV!K67) -> 
A14: =IF(ADV!A75="Yes",ADV!D75,"") ->  | B14: =IF(A14="","",ADV!E75) ->  | C14: =IF(A14="","",ADV!F75) ->  | D14: =IF(C14="","",ADV!G75) ->  | E14: =IF(D14="","",ADV!H75) ->  | F14: =IF(A14<>"",TRIM(ADV!I75&CHAR(10)&ADV!I76&CHAR(10)&ADV!I77&CHAR(10)&ADV!I78&CHAR(10)&ADV!I79&CHAR(10)&ADV!I80&CHAR(10)&ADV!I81&CHAR(10)&ADV!I82),"") ->  | G14: =IF(B14<>"",TRIM(ADV!J75&CHAR(10)&ADV!J76&CHAR(10)&ADV!J77&CHAR(10)&ADV!J78&CHAR(10)&ADV!J79&CHAR(10)&ADV!J80&CHAR(10)&ADV!J81&CHAR(10)&ADV!J82),"") ->  | H14: =IF(A14="","",ADV!K75) -> 
A15: =IF(ADV!A83="Yes",ADV!D83,"") ->  | B15: =IF(A15="","",ADV!E83) ->  | C15: =IF(A15="","",ADV!F83) ->  | D15: =IF(C15="","",ADV!G83) ->  | E15: =IF(D15="","",ADV!H83) ->  | F15: =IF(A15<>"",TRIM(ADV!I75&CHAR(10)&ADV!I76&CHAR(10)&ADV!I77&CHAR(10)&ADV!I78&CHAR(10)&ADV!I79&CHAR(10)&ADV!I80&CHAR(10)&ADV!I81&CHAR(10)&ADV!I82),"") ->  | G15: =IF(B15<>"",TRIM(ADV!J75&CHAR(10)&ADV!J76&CHAR(10)&ADV!J77&CHAR(10)&ADV!J78&CHAR(10)&ADV!J79&CHAR(10)&ADV!J80&CHAR(10)&ADV!J81&CHAR(10)&ADV!J82),"") ->  | H15: =IF(A15="","",ADV!K83) -> 
A16: =IF(ADV!A91="Yes",ADV!D91,"") ->  | B16: =IF(A16="","",ADV!E91) ->  | C16: =IF(A16="","",ADV!F91) ->  | D16: =IF(C16="","",ADV!G91) ->  | E16: =IF(D16="","",ADV!H91) ->  | F16: =IF(A16<>"",TRIM(ADV!I91&CHAR(10)&ADV!I92&CHAR(10)&ADV!I93&CHAR(10)&ADV!I94&CHAR(10)&ADV!I95&CHAR(10)&ADV!I96&CHAR(10)&ADV!I97&CHAR(10)&ADV!I98),"") ->  | G16: =IF(B16<>"",TRIM(ADV!J91&CHAR(10)&ADV!J92&CHAR(10)&ADV!J93&CHAR(10)&ADV!J94&CHAR(10)&ADV!J95&CHAR(10)&ADV!J96&CHAR(10)&ADV!J97&CHAR(10)&ADV!J98),"") ->  | H16: =IF(A16="","",ADV!K91) -> 
A19: Phase 2 - Advance Breakdown
A20: For Information purposes only:
A21: Amounts in Euro for Contractor and Subcontractor(s)
A22: Prime (P) / Subco (SI) | B22: ="Company" & CHAR(10) & "Name" -> Company Name | C22: Vendor Code (at contract signature) | D22: Country (ISO code) | E22: Advance Payment (in Euro) | F22: Offset against | G22: Offset by Euro | H22: Condition for release of the Advance Payment (if applicable)
A23: =IF(ADV!A104="Yes",ADV!D104,"") -> P | B23: =IF(A23="","",ADV!E104) -> Our Company | C23: =IF(A23="","",ADV!F104) -> 100 xxx-xxx | D23: =IF(A23="","",ADV!G104) -> IT | E23: =IF(A23="","",ADV!H104) -> 50000 | F23: =IF(A23="","",TRIM(ADV!I104&CHAR(10)&ADV!I105&CHAR(10)&ADV!I106&CHAR(10)&ADV!I107&CHAR(10)&ADV!I108&CHAR(10)&ADV!I109&CHAR(10)&ADV!I110&CHAR(10)&ADV!I111&CHAR(10))) -> Milestone 1 Milestone 2 Milestone 3 Milestone 4 | G23: =IF(A23="","",TRIM(ADV!J104&CHAR(10)&ADV!J105&CHAR(10)&ADV!J106&CHAR(10)&ADV!J107&CHAR(10)&ADV!J108&CHAR(10)&ADV!J109&CHAR(10)&ADV!J110&CHAR(10)&ADV!J111&CHAR(10))) -> 10000 10000 10000 10000 | H23: =IF(A23="","",ADV!K104) -> After signature of the Contract by both Parties
A24: =IF(ADV!A112="Yes",ADV!D112,"") ->  | B24: =IF(A24="","",ADV!E112) ->  | C24: =IF(A24="","",ADV!F112) ->  | D24: =IF(A24="","",ADV!G112) ->  | E24: =IF(A24="","",ADV!H112) ->  | F24: =IF(A24<>"",TRIM(ADV!I112&CHAR(10)&ADV!I113&CHAR(10)&ADV!I114&CHAR(10)&ADV!I115&CHAR(10)&ADV!I116&CHAR(10)&ADV!I117&CHAR(10)&ADV!I118&CHAR(10)&ADV!I119&CHAR(10)),"") ->  | G24: =IF(B24<>"",TRIM(ADV!J112&CHAR(10)&ADV!J113&CHAR(10)&ADV!J114&CHAR(10)&ADV!J115&CHAR(10)&ADV!J116&CHAR(10)&ADV!J117&CHAR(10)&ADV!J118&CHAR(10)&ADV!J119&CHAR(10)),"") ->  | H24: =IF(A24="","",ADV!K112) -> 
A25: =IF(ADV!A120="Yes",ADV!D120,"") ->  | B25: =IF(A25="","",ADV!E120) ->  | C25: =IF(A25="","",ADV!F120) ->  | D25: =IF(C25="","",ADV!G120) ->  | E25: =IF(D25="","",ADV!H120) ->  | F25: =IF(A25<>"",TRIM(ADV!I120&CHAR(10)&ADV!I121&CHAR(10)&ADV!I122&CHAR(10)&ADV!I123&CHAR(10)&ADV!I124&CHAR(10)&ADV!I125&CHAR(10)&ADV!I126&CHAR(10)&ADV!I127),"") ->  | G25: =IF(B25<>"",TRIM(ADV!J120&CHAR(10)&ADV!J121&CHAR(10)&ADV!J122&CHAR(10)&ADV!J123&CHAR(10)&ADV!J124&CHAR(10)&ADV!J125&CHAR(10)&ADV!J126&CHAR(10)&ADV!J127),"") ->  | H25: =IF(A25="","",ADV!K120) -> 
A26: =IF(ADV!A128="Yes",ADV!D128,"") ->  | B26: =IF(A26="","",ADV!E128) ->  | C26: =IF(A26="","",ADV!F128) ->  | D26: =IF(C26="","",ADV!G128) ->  | E26: =IF(D26="","",ADV!H128) ->  | F26: =IF(A26<>"",TRIM(ADV!I128&CHAR(10)&ADV!I129&CHAR(10)&ADV!I130&CHAR(10)&ADV!I131&CHAR(10)&ADV!I132&CHAR(10)&ADV!I133&CHAR(10)&ADV!I134&CHAR(10)&ADV!I135),"") ->  | G26: =IF(B26<>"",TRIM(ADV!J128&CHAR(10)&ADV!J129&CHAR(10)&ADV!J130&CHAR(10)&ADV!J131&CHAR(10)&ADV!J132&CHAR(10)&ADV!J133&CHAR(10)&ADV!J134&CHAR(10)&ADV!J135),"") ->  | H26: =IF(A26="","",ADV!K128) -> 
A27: =IF(ADV!A136="Yes",ADV!D136,"") ->  | B27: =IF(A27="","",ADV!E136) ->  | C27: =IF(A27="","",ADV!F136) ->  | D27: =IF(C27="","",ADV!G136) ->  | E27: =IF(D27="","",ADV!H136) ->  | F27: =IF(A27<>"",TRIM(ADV!I136&CHAR(10)&ADV!I137&CHAR(10)&ADV!I138&CHAR(10)&ADV!I139&CHAR(10)&ADV!I140&CHAR(10)&ADV!I141&CHAR(10)&ADV!I142&CHAR(10)&ADV!I143),"") ->  | G27: =IF(B27<>"",TRIM(ADV!J136&CHAR(10)&ADV!J137&CHAR(10)&ADV!J138&CHAR(10)&ADV!J139&CHAR(10)&ADV!J140&CHAR(10)&ADV!J141&CHAR(10)&ADV!J142&CHAR(10)&ADV!J143),"") ->  | H27: =IF(A27="","",ADV!K136) -> 
A28: =IF(ADV!A144="Yes",ADV!D144,"") ->  | B28: =IF(A28="","",ADV!E144) ->  | C28: =IF(A28="","",ADV!F144) ->  | D28: =IF(C28="","",ADV!G144) ->  | E28: =IF(D28="","",ADV!H144) ->  | F28: =IF(A28<>"",TRIM(ADV!I144&CHAR(10)&ADV!I145&CHAR(10)&ADV!I146&CHAR(10)&ADV!I147&CHAR(10)&ADV!I148&CHAR(10)&ADV!I149&CHAR(10)&ADV!I150&CHAR(10)&ADV!I151),"") ->  | G28: =IF(B28<>"",TRIM(ADV!J144&CHAR(10)&ADV!J145&CHAR(10)&ADV!J146&CHAR(10)&ADV!J147&CHAR(10)&ADV!J148&CHAR(10)&ADV!J149&CHAR(10)&ADV!J150&CHAR(10)&ADV!J151),"") ->  | H28: =IF(A28="","",ADV!K144) -> 
A29: =IF(ADV!A152="Yes",ADV!D152,"") ->  | B29: =IF(A29="","",ADV!E152) ->  | C29: =IF(A29="","",ADV!F152) ->  | D29: =IF(C29="","",ADV!G152) ->  | E29: =IF(D29="","",ADV!H152) ->  | F29: =IF(A29<>"",TRIM(ADV!I152&CHAR(10)&ADV!I153&CHAR(10)&ADV!I154&CHAR(10)&ADV!I155&CHAR(10)&ADV!I156&CHAR(10)&ADV!I157&CHAR(10)&ADV!I158&CHAR(10)&ADV!I159),"") ->  | G29: =IF(B29<>"",TRIM(ADV!J152&CHAR(10)&ADV!J153&CHAR(10)&ADV!J154&CHAR(10)&ADV!J155&CHAR(10)&ADV!J156&CHAR(10)&ADV!J157&CHAR(10)&ADV!J158&CHAR(10)&ADV!J159),"") ->  | H29: =IF(A29="","",ADV!K152) -> 
A30: =IF(ADV!A160="Yes",ADV!D160,"") ->  | B30: =IF(A30="","",ADV!E160) ->  | C30: =IF(A30="","",ADV!F160) ->  | D30: =IF(C30="","",ADV!G160) ->  | E30: =IF(D30="","",ADV!H160) ->  | F30: =IF(A30<>"",TRIM(ADV!I160&CHAR(10)&ADV!I161&CHAR(10)&ADV!I162&CHAR(10)&ADV!I163&CHAR(10)&ADV!I164&CHAR(10)&ADV!I165&CHAR(10)&ADV!I166&CHAR(10)&ADV!I167),"") ->  | G30: =IF(B30<>"",TRIM(ADV!J160&CHAR(10)&ADV!J161&CHAR(10)&ADV!J162&CHAR(10)&ADV!J163&CHAR(10)&ADV!J164&CHAR(10)&ADV!J165&CHAR(10)&ADV!J166&CHAR(10)&ADV!J167),"") ->  | H30: =IF(A30="","",ADV!K160) -> 
A31: =IF(ADV!A168="Yes",ADV!D168,"") ->  | B31: =IF(A31="","",ADV!E168) ->  | C31: =IF(A31="","",ADV!F168) ->  | D31: =IF(C31="","",ADV!G168) ->  | E31: =IF(D31="","",ADV!H168) ->  | F31: =IF(A31<>"",TRIM(ADV!I168&CHAR(10)&ADV!I169&CHAR(10)&ADV!I170&CHAR(10)&ADV!I171&CHAR(10)&ADV!I172&CHAR(10)&ADV!I173&CHAR(10)&ADV!I174&CHAR(10)&ADV!I175),"") ->  | G31: =IF(B31<>"",TRIM(ADV!J168&CHAR(10)&ADV!J169&CHAR(10)&ADV!J170&CHAR(10)&ADV!J171&CHAR(10)&ADV!J172&CHAR(10)&ADV!J173&CHAR(10)&ADV!J174&CHAR(10)&ADV!J175),"") ->  | H31: =IF(A31="","",ADV!K168) -> 
A32: =IF(ADV!A176="Yes",ADV!D176,"") ->  | B32: =IF(A32="","",ADV!E176) ->  | C32: =IF(A32="","",ADV!F176) ->  | D32: =IF(C32="","",ADV!G176) ->  | E32: =IF(D32="","",ADV!H176) ->  | F32: =IF(A32<>"",TRIM(ADV!I176&CHAR(10)&ADV!I177&CHAR(10)&ADV!I178&CHAR(10)&ADV!I179&CHAR(10)&ADV!I180&CHAR(10)&ADV!I181&CHAR(10)&ADV!I182&CHAR(10)&ADV!I183),"") ->  | G32: =IF(B32<>"",TRIM(ADV!J176&CHAR(10)&ADV!J177&CHAR(10)&ADV!J178&CHAR(10)&ADV!J179&CHAR(10)&ADV!J180&CHAR(10)&ADV!J181&CHAR(10)&ADV!J182&CHAR(10)&ADV!J183),"") ->  | H32: =IF(A32="","",ADV!K176) -> 
A33: =IF(ADV!A184="Yes",ADV!D184,"") ->  | B33: =IF(A33="","",ADV!E184) ->  | C33: =IF(A33="","",ADV!F184) ->  | D33: =IF(C33="","",ADV!G184) ->  | E33: =IF(D33="","",ADV!H184) ->  | F33: =IF(A33<>"",TRIM(ADV!I184&CHAR(10)&ADV!I185&CHAR(10)&ADV!I186&CHAR(10)&ADV!I187&CHAR(10)&ADV!I188&CHAR(10)&ADV!I189&CHAR(10)&ADV!I190&CHAR(10)&ADV!I191),"") ->  | G33: =IF(B33<>"",TRIM(ADV!J184&CHAR(10)&ADV!J185&CHAR(10)&ADV!J186&CHAR(10)&ADV!J187&CHAR(10)&ADV!J188&CHAR(10)&ADV!J189&CHAR(10)&ADV!J190&CHAR(10)&ADV!J191),"") ->  | H33: =IF(A33="","",ADV!K184) -> 
A34: =IF(ADV!A192="Yes",ADV!D192,"") ->  | B34: =IF(A34="","",ADV!E192) ->  | C34: =IF(A34="","",ADV!F192) ->  | D34: =IF(C34="","",ADV!G192) ->  | E34: =IF(D34="","",ADV!H192) ->  | F34: =IF(A34<>"",TRIM(ADV!I192&CHAR(10)&ADV!I193&CHAR(10)&ADV!I194&CHAR(10)&ADV!I195&CHAR(10)&ADV!I196&CHAR(10)&ADV!I197&CHAR(10)&ADV!I198&CHAR(10)&ADV!I199),"") ->  | G34: =IF(B34<>"",TRIM(ADV!J192&CHAR(10)&ADV!J193&CHAR(10)&ADV!J194&CHAR(10)&ADV!J195&CHAR(10)&ADV!J196&CHAR(10)&ADV!J197&CHAR(10)&ADV!J198&CHAR(10)&ADV!J199),"") ->  | H34: =IF(A34="","",ADV!K192) -> 

Sheet rawdata (hidden)
A1: nbSubPhase1 | B1: =Overview!B8 -> 1
A2: nbMSPhase1 | B2: =Overview!B10 -> 1
A3: nbSubPhase2 | B3: =Overview!B9 -> 1
A4: nbMSPhase2 | B4: =Overview!B11 -> 1
A5: nbOffsetPhase1 | B5: =COUNTA(ADV!I3:I10) -> 2
A6: nbOffsetPhase2 | B6: =COUNTA(ADV!I104:I111) -> 4
A7: Advance Payment Phase 1 | B7: =Overview!B12="yes" -> TRUE
A8: Advance Payment Phase 2 | B8: =Overview!B13="yes" -> TRUE
A9: nbEntityWithAdvancePhase 1 | B9: =COUNTIF(Consortium!G3:G14,"Yes") -> 2
A10: nbEntityWithAdvancePhase 2 | B10: =COUNTIF(Consortium!O3:O14,"Yes") -> 1
A11: nbPhases | B11: =Overview!B7 -> 2
A12: nbRow | B12: =COUNTA(A13:A166) -> 65
A13: =ESAcst!B1 -> chapPhases | B13: =ESAcst!C1 -> Part IV
A14: =ESAcst!B2 -> chapSoft | B14: =ESAcst!C2 -> Part IV Chapter 6.2
A15: =ESAcst!B3 -> chapHard | B15: =ESAcst!C3 -> Part IV Chapter 6.1
A16: =ESAcst!B4 -> chapFlight | B16: =IF(options!B4,ESAcst!C4," ") -> Part III Chapter 9.4
A17: =ESAcst!B5 -> chapPers | B17: =ESAcst!C5 -> Part V Chapter 7
A18: ContractorName | B18: =Overview!B5 -> Our company
A19: ContractorCity | B19: =Contact!C9 -> My City
A20: ContractorCountry | B20: =Consortium!C3 -> IT
A21: ActivityName | B21: =Overview!B2 -> Our Awesome Project
A22: ContactPrefix | B22: =Contact!C3 -> Mr.
A23: ContactFirstName | B23: =Contact!C4 -> John
A24: ContactLastName | B24: =Contact!C5 -> Doe
A25: ContactTitle | B25: =Contact!C6 -> Head of Programs
A26: ContractorAddress | B26: =Contact!C11 -> My Address, 123 123-456 My City, My Country
A27: RefProposal | B27: =ESA_fills!C9 -> AC-1999-123456
A28: DateProposal | B28: =ESA_fills!B9 -> 2020-01-01
A29: RefResponseNego | B29: =ESA_fills!C10 -> Re: AO/1-9090/17/NL/MO - a great proposal
A30: DateResponseNego | B30: =ESA_fills!B10 -> 2020-02-01
A31: NegoMeeting | B31: =IF(ESA_fills!B11=""," ",CONCATENATE("- The Minutes of the negotiation meeting held on ", TEXT(ESA_fills!B11,"dd mmmm yyyy"), " ref. ", ESA_fills!C11, " not attached hereto but known to both parties.")) -> - The Minutes of the negotiation meeting held on 01 March 2020 ref. MoM-1999-11-01 not attached hereto but known to both parties.
A32: PriceProposalNumber | B32: =Overview!B3 -> 1315000
A33: PriceProposalText | B33: =SpellNumber(B32) -> One Million Three Hundred Fifteen Thousand
A34: CostProposalNumber | B34: =Overview!B4 -> 2430000
A35: CostProposalText | B35: =SpellNumber(B34) -> Two Million Four Hundred Thirty Thousand
A36: DateDelivery | B36: =Overview!B15 -> 2023-12-18
A37: PrefixTO | B37: =ESA_fills!C16 -> 
A38: FirstNameTO | B38: =ESA_fills!C17 -> 
A39: LastNameTO | B39: =ESA_fills!C18 -> 
A40: AddressTO | B40: =ESA_fills!C19 -> 
A41: PhoneTO | B41: =ESA_fills!C20 -> 
A42: EmailTO | B42: =ESA_fills!C21 -> nathalie.schwarz@esa.int
A43: PrefixCO | B43: =ESA_fills!C25 -> 0
A44: FirstNameCO | B44: =ESA_fills!C26 -> 0
A45: LastNameCO | B45: =ESA_fills!C27 -> 0
A46: AddressCO | B46: =ESA_fills!C28 -> 0
A47: PhoneCO | B47: =ESA_fills!C29 -> 0
A48: EmailCO | B48: =ESA_fills!C30 -> 
A49: PrefixTOCie | B49: =Contact!C15 -> Mr.
A50: FirstNameTOCie | B50: =Contact!C16 -> John
A51: LastNameTOCie | B51: =Contact!C17 -> Doe
A52: AddressTOCie | B52: =Contact!C18 -> My Address, 123 123-456 My City, My Country
A53: PhoneTOCie | B53: =Contact!C19 -> (+XX) 123 456 789
A54: EmailTOCie | B54: =Contact!C20 -> myemail@myawesomecompany.com
A55: PrefixCOCie | B55: =Contact!C24 -> Ms.
A56: FirstNameCOCie | B56: =Contact!C25 -> Julianne
A57: LastNameCOCie | B57: =Contact!C26 -> Foo
A58: AddressCOCie | B58: =Contact!C27 -> My Address, 123 123-456 My City, My Country
A59: PhoneCOCie | B59: =Contact!C28 -> (+XX) 123 456 789
A60: EmailCOCie | B60: =Contact!C29 -> myemail@myawesomecompany.com
A61: PrefixDOCie | B61: =Contact!C33 -> Mr.
A62: FirstNameDOCie | B62: =Contact!C34 -> Mark
A63: LastNameDOCie | B63: =Contact!C35 -> Smith
A64: AddressDOCie | B64: =Contact!C36 -> My Address, 123 123-456 My City, My Country
A65: PhoneDOCie | B65: =Contact!C37 -> (+XX) 123 456 789
A66: EmailDOCie | B66: =Contact!C38 -> myemail@myawesomecompany.com
A67: RefGCC | B67: =ESA_fills!B1 -> ESA/REG/002 rev. 3
A68: RefContract | B68: =ESA_fills!B2 -> ESA Contract No. 4000xxxxxx/20/I-NS
A69: datesPhases | B69: =CONCATENATE(Overview!D22,CHAR(10),CHAR(10),Overview!D23) & " " -> The draft Phase 1 Report, shall be submitted by email in electronic searchable, indexed and not encrypted PDF and original (WORD)format for approval, to the Agency’s Technical Officer specified in Article 5, Clause 5, Sub-Clause 5.1 a) of the Contract, not later than 02 September 2022
A70: nbPhases | B70: =B11 -> 2
A71: PhaseDesc | B71: =IF(B11=1,"",IF(B11=2,"Phase 1 ending on the "& TEXT(Overview!B22, "dd/mm/yyyy") &" and Phase 2 ending on the "& TEXT(Overview!B16, "dd/mm/yyyy"),"Phase 1 ending on the "& TEXT(Overview!B22,"dd/mm/yyyy") & ", Phase 2 ending on the " & TEXT(Overview!B23,"dd/mm/yyyy") & " and Phase 3 ending on the "& TEXT(Overview!B16,"dd/mm/yyyy"))) & " " -> Phase 1 ending on the 30/09/2022 and Phase 2 ending on the 15/01/2024
A72: refKP | B72: =IF(ESA_fills!B5=references!B49,"the Minutes of the negotiation meeting referred to in Article 1.2 above.", "the Contractor’s Proposal referred to in Article 1.2 above.") -> the Minutes of the negotiation meeting referred to in Article 1.2 above.
A73: bipr | B73: =Overview!$B$30 -> My Software
A74: dateLaunchDelivery | B74: =IF(options!B4,FlightItem!B3," ") -> 2023-01-15
A75: nameFlightItem | B75: =IF(options!B4,FlightItem!B2," ") -> some sub-system
A76: dateAlternativeFlight | B76: =IF(options!B4,FlightItem!B4," ") -> 2023-06-15
A77: DateDeliverySW | B77: =IF(options!B10,B36,"") -> 

Sheet options (hidden)
A1: numOptions | B1: =COUNTA(A2:A131) -> 12
A2: optionPhased | B2: =Overview!B7>1 -> TRUE
A3: optionSub | B3: =Overview!B8>0 -> TRUE
A4: optionFlight | B4: =IF(FlightItem!B1="yes",TRUE,FALSE) -> TRUE
A5: optionItaly | B5: =Consortium!C3="IT" -> TRUE
A6: optionCovid | B6: =Overview!B17="yes" -> FALSE
A7: optionDig | B7: =Overview!B18="yes" -> TRUE
A8: optionBipr | B8: =Overview!B29>0 -> TRUE
A9: optionSubFlight | B9: =AND(IF(FlightItem!B5="yes",TRUE,FALSE),B3) -> FALSE
A10: optionSW | B10: =Overview!B25="yes" -> FALSE
A11: optionHW | B11: =Overview!B26="yes" -> FALSE
A12: optionPhase1ADV | B12: =Overview!B12="yes" -> TRUE
A13: optionPhase2ADV | B13: =Overview!B13="yes" -> TRUE

Sheet references (hidden)
A1: ESRIN | B1: ESA – ESRIN Largo Galileo Galilei, 1 00044 FRASCATI, Italy
A2: ESTEC | B2: ESA – ESTEC Keplerlaan 1, 2201 AZ Noordwijk, The Netherlands
A3: ESOC | B3: ESA – ESOC Robert-Bosch Strasse 5, 64293 Darmstadt, Germany
A4: ESAC | B4: ESA – ESAC Camino Bajo del Castillo s/n, 28692 Villafranca del Castillo, Madrid, Espagne
A5: ECSAT | B5: ESA – ECSAT Fermi Avenue Harwell Campus Didcot, Oxfordshire OX11 0FD United Kingdom
A6: EAC | B6: ESA – EAC Linder Hoehe, 51147 Köln, Allemagne
A7: ESA HQ | B7: ESA – ESA HQ Bertrand 24 rue du Général Bertrand CS 30798 75345 Paris CEDEX 7 France
B10: Austria | C10: AT
B11: Belgium | C11: BE
B12: Switzerland | C12: CH
B13: Czech Republic | C13: CZ
B14: Germany | C14: DE
B15: Denmark | C15: DK
B16: Spain | C16: ES
B17: Finland | C17: FI
B18: France | C18: FR
B19: Greece | C19: GR
B20: Ireland | C20: IE
B21: Italy | C21: IT
B22: Luxembourg | C22: LU
B23: Netherlands | C23: NL
B24: Norway | C24: NO
B25: Poland | C25: PL
B26: Portugal | C26: PT
B27: Romania | C27: RO
B28: Sweden | C28: SE
B29: United Kingdom | C29: UK
B30: Slovenia | C30: SL
B31: Estonia | C31: EE
C38: yes
C39: no
B46: Weeks before final delivery | C46: 4
B48: key personel reference
B49: nego MoM
B50: proposal

Sheet ESADirectory (hidden)
M1: =IF(L1="", "no email",LOWER(L1)) -> no email | N1: =LEFT(A1, SEARCH(",",A1,1)-1) ->  | O1: =RIGHT(A1, LEN(A1) -SEARCH(",",A1,1)-1) ->  | P1: =VLOOKUP(K1,references!$A$1:$B$7,2,FALSE) -> 
M2: =IF(L2="", "no email",LOWER(L2)) -> no email | N2: =LEFT(A2, SEARCH(",",A2,1)-1) ->  | O2: =RIGHT(A2, LEN(A2) -SEARCH(",",A2,1)-1) ->  | P2: =VLOOKUP(K2,references!$A$1:$B$7,2,FALSE) -> 
M3: no email | P3: =VLOOKUP(K3,references!$A$1:$B$7,2,FALSE) -> 
M4: no email | P4: =VLOOKUP(K4,references!$A$1:$B$7,2,FALSE) -> 
M5: no email | P5: =VLOOKUP(K5,references!$A$1:$B$7,2,FALSE) -> 
M6: no email | P6: =VLOOKUP(K6,references!$A$1:$B$7,2,FALSE) -> 
M7: no email | P7: =VLOOKUP(K7,references!$A$1:$B$7,2,FALSE) -> 
M8: no email | P8: =VLOOKUP(K8,references!$A$1:$B$7,2,FALSE) -> 
M9: no email | P9: =VLOOKUP(K9,references!$A$1:$B$7,2,FALSE) -> 
M10: no email | P10: =VLOOKUP(K10,references!$A$1:$B$7,2,FALSE) -> 
M11: no email | P11: =VLOOKUP(K11,references!$A$1:$B$7,2,FALSE) -> 
M12: no email | P12: =VLOOKUP(K12,references!$A$1:$B$7,2,FALSE) -> 
M13: no email | P13: =VLOOKUP(K13,references!$A$1:$B$7,2,FALSE) -> 
M14: no email | P14: =VLOOKUP(K14,references!$A$1:$B$7,2,FALSE) -> 
M15: no email | P15: =VLOOKUP(K15,references!$A$1:$B$7,2,FALSE) -> 
M16: no email | P16: =VLOOKUP(K16,references!$A$1:$B$7,2,FALSE) -> 
M17: no email | P17: =VLOOKUP(K17,references!$A$1:$B$7,2,FALSE) -> 
M18: no email | P18: =VLOOKUP(K18,references!$A$1:$B$7,2,FALSE) -> 
M19: no email | P19: =VLOOKUP(K19,references!$A$1:$B$7,2,FALSE) -> 
M20: no email | P20: =VLOOKUP(K20,references!$A$1:$B$7,2,FALSE) -> 
M21: no email | P21: =VLOOKUP(K21,references!$A$1:$B$7,2,FALSE) -> 
M22: no email | P22: =VLOOKUP(K22,references!$A$1:$B$7,2,FALSE) -> 
M23: no email | P23: =VLOOKUP(K23,references!$A$1:$B$7,2,FALSE) -> 
M24: no email | P24: =VLOOKUP(K24,references!$A$1:$B$7,2,FALSE) -> 
M25: no email | P25: =VLOOKUP(K25,references!$A$1:$B$7,2,FALSE) -> 
M26: no email | P26: =VLOOKUP(K26,references!$A$1:$B$7,2,FALSE) -> 
M27: no email | P27: =VLOOKUP(K27,references!$A$1:$B$7,2,FALSE) -> 
M28: no email | P28: =VLOOKUP(K28,references!$A$1:$B$7,2,FALSE) -> 
M29: no email | P29: =VLOOKUP(K29,references!$A$1:$B$7,2,FALSE) -> 
M30: no email | P30: =VLOOKUP(K30,references!$A$1:$B$7,2,FALSE) -> 
M31: no email | P31: =VLOOKUP(K31,references!$A$1:$B$7,2,FALSE) -> 
M32: no email | P32: =VLOOKUP(K32,references!$A$1:$B$7,2,FALSE) -> 
M33: no email | P33: =VLOOKUP(K33,references!$A$1:$B$7,2,FALSE) -> 
M34: no email | P34: =VLOOKUP(K34,references!$A$1:$B$7,2,FALSE) -> 
M35: no email | P35: =VLOOKUP(K35,references!$A$1:$B$7,2,FALSE) -> 
M36: no email | P36: =VLOOKUP(K36,references!$A$1:$B$7,2,FALSE) -> 
M37: no email | P37: =VLOOKUP(K37,references!$A$1:$B$7,2,FALSE) -> 
M38: no email | P38: =VLOOKUP(K38,references!$A$1:$B$7,2,FALSE) -> 
M39: no email | P39: =VLOOKUP(K39,references!$A$1:$B$7,2,FALSE) -> 
M40: no email | P40: =VLOOKUP(K40,references!$A$1:$B$7,2,FALSE) -> 
M41: no email | P41: =VLOOKUP(K41,references!$A$1:$B$7,2,FALSE) -> 
M42: no email | P42: =VLOOKUP(K42,references!$A$1:$B$7,2,FALSE) -> 
M43: no email | P43: =VLOOKUP(K43,references!$A$1:$B$7,2,FALSE) -> 
M44: no email | P44: =VLOOKUP(K44,references!$A$1:$B$7,2,FALSE) -> 
M45: no email | P45: =VLOOKUP(K45,references!$A$1:$B$7,2,FALSE) -> 
M46: no email | P46: =VLOOKUP(K46,references!$A$1:$B$7,2,FALSE) -> 
M47: no email | P47: =VLOOKUP(K47,references!$A$1:$B$7,2,FALSE) -> 
M48: no email | P48: =VLOOKUP(K48,references!$A$1:$B$7,2,FALSE) -> 
M49: no email | P49: =VLOOKUP(K49,references!$A$1:$B$7,2,FALSE) -> 
M50: no email | P50: =VLOOKUP(K50,references!$A$1:$B$7,2,FALSE) -> 
M51: no email | P51: =VLOOKUP(K51,references!$A$1:$B$7,2,FALSE) -> 
M52: no email | P52: =VLOOKUP(K52,references!$A$1:$B$7,2,FALSE) -> 
M53: no email | P53: =VLOOKUP(K53,references!$A$1:$B$7,2,FALSE) -> 
M54: no email | P54: =VLOOKUP(K54,references!$A$1:$B$7,2,FALSE) -> 
M55: no email | P55: =VLOOKUP(K55,references!$A$1:$B$7,2,FALSE) -> 
M56: no email | P56: =VLOOKUP(K56,references!$A$1:$B$7,2,FALSE) -> 
M57: no email | P57: =VLOOKUP(K57,references!$A$1:$B$7,2,FALSE) -> 
M58: no email | P58: =VLOOKUP(K58,references!$A$1:$B$7,2,FALSE) -> 
M59: no email | P59: =VLOOKUP(K59,references!$A$1:$B$7,2,FALSE) -> 
M60: no email | P60: =VLOOKUP(K60,references!$A$1:$B$7,2,FALSE) -> 
M61: no email | P61: =VLOOKUP(K61,references!$A$1:$B$7,2,FALSE) -> 
M62: no email | P62: =VLOOKUP(K62,references!$A$1:$B$7,2,FALSE) -> 
M63: no email | P63: =VLOOKUP(K63,references!$A$1:$B$7,2,FALSE) -> 
M64: no email | P64: =VLOOKUP(K64,references!$A$1:$B$7,2,FALSE) -> 
M65: no email | P65: =VLOOKUP(K65,references!$A$1:$B$7,2,FALSE) -> 
M66: =IF(L66="", "no email",LOWER(L66)) -> no email | N66: =LEFT(A66, SEARCH(",",A66,1)-1) ->  | O66: =RIGHT(A66, LEN(A66) -SEARCH(",",A66,1)-1) ->  | P66: =VLOOKUP(K66,references!$A$1:$B$7,2,FALSE) -> 
M67: no email | P67: =VLOOKUP(K67,references!$A$1:$B$7,2,FALSE) -> 
M68: no email | P68: =VLOOKUP(K68,references!$A$1:$B$7,2,FALSE) -> 
M69: no email | P69: =VLOOKUP(K69,references!$A$1:$B$7,2,FALSE) -> 
M70: no email | P70: =VLOOKUP(K70,references!$A$1:$B$7,2,FALSE) -> 
M71: no email | P71: =VLOOKUP(K71,references!$A$1:$B$7,2,FALSE) -> 
M72: no email | P72: =VLOOKUP(K72,references!$A$1:$B$7,2,FALSE) -> 
M73: no email | P73: =VLOOKUP(K73,references!$A$1:$B$7,2,FALSE) -> 
M74: no email | P74: =VLOOKUP(K74,references!$A$1:$B$7,2,FALSE) -> 
M75: no email | P75: =VLOOKUP(K75,references!$A$1:$B$7,2,FALSE) -> 
M76: no email | P76: =VLOOKUP(K76,references!$A$1:$B$7,2,FALSE) -> 
M77: no email | P77: =VLOOKUP(K77,references!$A$1:$B$7,2,FALSE) -> 
M78: no email | P78: =VLOOKUP(K78,references!$A$1:$B$7,2,FALSE) -> 
M79: no email | P79: =VLOOKUP(K79,references!$A$1:$B$7,2,FALSE) -> 
M80: no email | P80: =VLOOKUP(K80,references!$A$1:$B$7,2,FALSE) -> 
M81: no email | P81: =VLOOKUP(K81,references!$A$1:$B$7,2,FALSE) -> 
M82: no email | P82: =VLOOKUP(K82,references!$A$1:$B$7,2,FALSE) -> 
M83: no email | P83: =VLOOKUP(K83,references!$A$1:$B$7,2,FALSE) -> 
M84: no email | P84: =VLOOKUP(K84,references!$A$1:$B$7,2,FALSE) -> 
M85: no email | P85: =VLOOKUP(K85,references!$A$1:$B$7,2,FALSE) -> 
M86: no email | P86: =VLOOKUP(K86,references!$A$1:$B$7,2,FALSE) -> 
M87: no email | P87: =VLOOKUP(K87,references!$A$1:$B$7,2,FALSE) -> 
M88: no email | P88: =VLOOKUP(K88,references!$A$1:$B$7,2,FALSE) -> 
M89: no email | P89: =VLOOKUP(K89,references!$A$1:$B$7,2,FALSE) -> 
M90: no email | P90: =VLOOKUP(K90,references!$A$1:$B$7,2,FALSE) -> 
M91: no email | P91: =VLOOKUP(K91,references!$A$1:$B$7,2,FALSE) -> 
M92: no email | P92: =VLOOKUP(K92,references!$A$1:$B$7,2,FALSE) -> 
M93: no email | P93: =VLOOKUP(K93,references!$A$1:$B$7,2,FALSE) -> 
M94: no email | P94: =VLOOKUP(K94,references!$A$1:$B$7,2,FALSE) -> 
M95: no email | P95: =VLOOKUP(K95,references!$A$1:$B$7,2,FALSE) -> 
M96: no email | P96: =VLOOKUP(K96,references!$A$1:$B$7,2,FALSE) -> 
M97: no email | P97: =VLOOKUP(K97,references!$A$1:$B$7,2,FALSE) -> 
M98: no email | P98: =VLOOKUP(K98,references!$A$1:$B$7,2,FALSE) -> 
M99: no email | P99: =VLOOKUP(K99,references!$A$1:$B$7,2,FALSE) -> 
M100: no email | P100: =VLOOKUP(K100,references!$A$1:$B$7,2,FALSE) -> 
M101: no email | P101: =VLOOKUP(K101,references!$A$1:$B$7,2,FALSE) -> 
M102: no email | P102: =VLOOKUP(K102,references!$A$1:$B$7,2,FALSE) -> 
M103: no email | P103: =VLOOKUP(K103,references!$A$1:$B$7,2,FALSE) -> 
M104: no email | P104: =VLOOKUP(K104,references!$A$1:$B$7,2,FALSE) -> 
M105: no email | P105: =VLOOKUP(K105,references!$A$1:$B$7,2,FALSE) -> 
M106: no email | P106: =VLOOKUP(K106,references!$A$1:$B$7,2,FALSE) -> 
M107: no email | P107: =VLOOKUP(K107,references!$A$1:$B$7,2,FALSE) -> 
M108: no email | P108: =VLOOKUP(K108,references!$A$1:$B$7,2,FALSE) -> 
M109: no email | P109: =VLOOKUP(K109,references!$A$1:$B$7,2,FALSE) -> 
M110: no email | P110: =VLOOKUP(K110,references!$A$1:$B$7,2,FALSE) -> 
M111: no email | P111: =VLOOKUP(K111,references!$A$1:$B$7,2,FALSE) -> 
M112: no email | P112: =VLOOKUP(K112,references!$A$1:$B$7,2,FALSE) -> 
M113: no email | P113: =VLOOKUP(K113,references!$A$1:$B$7,2,FALSE) -> 
M114: no email | P114: =VLOOKUP(K114,references!$A$1:$B$7,2,FALSE) -> 
M115: no email | P115: =VLOOKUP(K115,references!$A$1:$B$7,2,FALSE) -> 
M116: no email | P116: =VLOOKUP(K116,references!$A$1:$B$7,2,FALSE) -> 
M117: no email | P117: =VLOOKUP(K117,references!$A$1:$B$7,2,FALSE) -> 
M118: no email | P118: =VLOOKUP(K118,references!$A$1:$B$7,2,FALSE) -> 
M119: no email | P119: =VLOOKUP(K119,references!$A$1:$B$7,2,FALSE) -> 
M120: no email | P120: =VLOOKUP(K120,references!$A$1:$B$7,2,FALSE) -> 
M121: no email | P121: =VLOOKUP(K121,references!$A$1:$B$7,2,FALSE) -> 
M122: no email | P122: =VLOOKUP(K122,references!$A$1:$B$7,2,FALSE) -> 
M123: no email | P123: =VLOOKUP(K123,references!$A$1:$B$7,2,FALSE) -> 
M124: no email | P124: =VLOOKUP(K124,references!$A$1:$B$7,2,FALSE) -> 
M125: no email | P125: =VLOOKUP(K125,references!$A$1:$B$7,2,FALSE) -> 
M126: no email | P126: =VLOOKUP(K126,references!$A$1:$B$7,2,FALSE) -> 
M127: no email | P127: =VLOOKUP(K127,references!$A$1:$B$7,2,FALSE) -> 
M128: no email | P128: =VLOOKUP(K128,references!$A$1:$B$7,2,FALSE) -> 
M129: no email | P129: =VLOOKUP(K129,references!$A$1:$B$7,2,FALSE) -> 
M130: =IF(L130="", "no email",LOWER(L130)) -> no email | N130: =LEFT(A130, SEARCH(",",A130,1)-1) ->  | O130: =RIGHT(A130, LEN(A130) -SEARCH(",",A130,1)-1) ->  | P130: =VLOOKUP(K130,references!$A$1:$B$7,2,FALSE) -> 
M131: no email | P131: =VLOOKUP(K131,references!$A$1:$B$7,2,FALSE) -> 
M132: no email | P132: =VLOOKUP(K132,references!$A$1:$B$7,2,FALSE) -> 
M133: no email | P133: =VLOOKUP(K133,references!$A$1:$B$7,2,FALSE) -> 
M134: no email | P134: =VLOOKUP(K134,references!$A$1:$B$7,2,FALSE) -> 
M135: no email | P135: =VLOOKUP(K135,references!$A$1:$B$7,2,FALSE) -> 
M136: no email | P136: =VLOOKUP(K136,references!$A$1:$B$7,2,FALSE) -> 
M137: no email | P137: =VLOOKUP(K137,references!$A$1:$B$7,2,FALSE) -> 
M138: no email | P138: =VLOOKUP(K138,references!$A$1:$B$7,2,FALSE) -> 
M139: no email | P139: =VLOOKUP(K139,references!$A$1:$B$7,2,FALSE) -> 
M140: no email | P140: =VLOOKUP(K140,references!$A$1:$B$7,2,FALSE) -> 
M141: no email | P141: =VLOOKUP(K141,references!$A$1:$B$7,2,FALSE) -> 
M142: no email | P142: =VLOOKUP(K142,references!$A$1:$B$7,2,FALSE) -> 
M143: no email | P143: =VLOOKUP(K143,references!$A$1:$B$7,2,FALSE) -> 
M144: no email | P144: =VLOOKUP(K144,references!$A$1:$B$7,2,FALSE) -> 
M145: no email | P145: =VLOOKUP(K145,references!$A$1:$B$7,2,FALSE) -> 
M146: no email | P146: =VLOOKUP(K146,references!$A$1:$B$7,2,FALSE) -> 
M147: no email | P147: =VLOOKUP(K147,references!$A$1:$B$7,2,FALSE) -> 
M148: no email | P148: =VLOOKUP(K148,references!$A$1:$B$7,2,FALSE) -> 
M149: no email | P149: =VLOOKUP(K149,references!$A$1:$B$7,2,FALSE) -> 
M150: no email | P150: =VLOOKUP(K150,references!$A$1:$B$7,2,FALSE) -> 
M151: no email | P151: =VLOOKUP(K151,references!$A$1:$B$7,2,FALSE) -> 
M152: no email | P152: =VLOOKUP(K152,references!$A$1:$B$7,2,FALSE) -> 
M153: no email | P153: =VLOOKUP(K153,references!$A$1:$B$7,2,FALSE) -> 
M154: no email | P154: =VLOOKUP(K154,references!$A$1:$B$7,2,FALSE) -> 
M155: no email | P155: =VLOOKUP(K155,references!$A$1:$B$7,2,FALSE) -> 
M156: no email | P156: =VLOOKUP(K156,references!$A$1:$B$7,2,FALSE) -> 
M157: no email | P157: =VLOOKUP(K157,references!$A$1:$B$7,2,FALSE) -> 
M158: no email | P158: =VLOOKUP(K158,references!$A$1:$B$7,2,FALSE) -> 
M159: no email | P159: =VLOOKUP(K159,references!$A$1:$B$7,2,FALSE) -> 
M160: no email | P160: =VLOOKUP(K160,references!$A$1:$B$7,2,FALSE) -> 
M161: no email | P161: =VLOOKUP(K161,references!$A$1:$B$7,2,FALSE) -> 
M162: no email | P162: =VLOOKUP(K162,references!$A$1:$B$7,2,FALSE) -> 
M163: no email | P163: =VLOOKUP(K163,references!$A$1:$B$7,2,FALSE) -> 
M164: no email | P164: =VLOOKUP(K164,references!$A$1:$B$7,2,FALSE) -> 
M165: no email | P165: =VLOOKUP(K165,references!$A$1:$B$7,2,FALSE) -> 
M166: no email | P166: =VLOOKUP(K166,references!$A$1:$B$7,2,FALSE) -> 
M167: no email | P167: =VLOOKUP(K167,references!$A$1:$B$7,2,FALSE) -> 
M168: no email | P168: =VLOOKUP(K168,references!$A$1:$B$7,2,FALSE) -> 
M169: no email | P169: =VLOOKUP(K169,references!$A$1:$B$7,2,FALSE) -> 
M170: no email | P170: =VLOOKUP(K170,references!$A$1:$B$7,2,FALSE) -> 
M171: no email | P171: =VLOOKUP(K171,references!$A$1:$B$7,2,FALSE) -> 
M172: no email | P172: =VLOOKUP(K172,references!$A$1:$B$7,2,FALSE) -> 
M173: no email | P173: =VLOOKUP(K173,references!$A$1:$B$7,2,FALSE) -> 
M174: no email | P174: =VLOOKUP(K174,references!$A$1:$B$7,2,FALSE) -> 
M175: no email | P175: =VLOOKUP(K175,references!$A$1:$B$7,2,FALSE) -> 
M176: no email | P176: =VLOOKUP(K176,references!$A$1:$B$7,2,FALSE) -> 
M177: no email | P177: =VLOOKUP(K177,references!$A$1:$B$7,2,FALSE) -> 
M178: no email | P178: =VLOOKUP(K178,references!$A$1:$B$7,2,FALSE) -> 
M179: no email | P179: =VLOOKUP(K179,references!$A$1:$B$7,2,FALSE) -> 
M180: no email | P180: =VLOOKUP(K180,references!$A$1:$B$7,2,FALSE) -> 
M181: no email | P181: =VLOOKUP(K181,references!$A$1:$B$7,2,FALSE) -> 
M182: no email | P182: =VLOOKUP(K182,references!$A$1:$B$7,2,FALSE) -> 
M183: no email | P183: =VLOOKUP(K183,references!$A$1:$B$7,2,FALSE) -> 
M184: no email | P184: =VLOOKUP(K184,references!$A$1:$B$7,2,FALSE) -> 
M185: no email | P185: =VLOOKUP(K185,references!$A$1:$B$7,2,FALSE) -> 
M186: no email | P186: =VLOOKUP(K186,references!$A$1:$B$7,2,FALSE) -> 
M187: no email | P187: =VLOOKUP(K187,references!$A$1:$B$7,2,FALSE) -> 
M188: no email | P188: =VLOOKUP(K188,references!$A$1:$B$7,2,FALSE) -> 
M189: no email | P189: =VLOOKUP(K189,references!$A$1:$B$7,2,FALSE) -> 
M190: no email | P190: =VLOOKUP(K190,references!$A$1:$B$7,2,FALSE) -> 
M191: no email | P191: =VLOOKUP(K191,references!$A$1:$B$7,2,FALSE) -> 
M192: no email | P192: =VLOOKUP(K192,references!$A$1:$B$7,2,FALSE) -> 
M193: no email | P193: =VLOOKUP(K193,references!$A$1:$B$7,2,FALSE) -> 
M194: =IF(L194="", "no email",LOWER(L194)) -> no email | N194: =LEFT(A194, SEARCH(",",A194,1)-1) ->  | O194: =RIGHT(A194, LEN(A194) -SEARCH(",",A194,1)-1) ->  | P194: =VLOOKUP(K194,references!$A$1:$B$7,2,FALSE) -> 
M195: no email | P195: =VLOOKUP(K195,references!$A$1:$B$7,2,FALSE) -> 
M196: no email | P196: =VLOOKUP(K196,references!$A$1:$B$7,2,FALSE) -> 
M197: no email | P197: =VLOOKUP(K197,references!$A$1:$B$7,2,FALSE) -> 
M198: no email | P198: =VLOOKUP(K198,references!$A$1:$B$7,2,FALSE) -> 
M199: no email | P199: =VLOOKUP(K199,references!$A$1:$B$7,2,FALSE) -> 
M200: no email | P200: =VLOOKUP(K200,references!$A$1:$B$7,2,FALSE) -> 
... 6008 more rows

Sheet ESAcst (hidden)
A1: Phases chapter | B1: chapPhases | C1: Part IV
A2: Software chapter | B2: chapSoft | C2: Part IV Chapter 6.2
A3: Hardware chapter | B3: chapHard | C3: Part IV Chapter 6.1
A4: Flight Item chapter | B4: chapFlight | C4: Part III Chapter 9.4
A5: Key Personnel Chapter | B5: chapPers | C5: Part V Chapter 7

Sheet InCubedMembers (hidden)
A1: Name | B1: Member is SP | C1: Role | D1: Competence areas | E1: Item Type | F1: Path | G1: Contractor? | H1: email lower | I1: 2 | J1: 15 | K1: 14 | L1: 16 | M1: 3
A2: Michele Castorina | B2: Michele.Castorina@esa.int | C2: TO | E2: Item | F2: departments/EOP-8/EOP-8L/Lists/Members TO | G2: FALSE | H2: =LOWER(InCubedMembers[[#This Row],[Member is SP]]) -> michele.castorina@esa.int | I2: =INDEX(ESADirectory!$B$1:$B$6216,MATCH(TRUE,INDEX(ESADirectory!$M$1:$M$6216=InCubedMembers[[#This Row],[email lower]],0),0)) ->  | J2: =INDEX(ESADirectory!$O$1:$O$6216,MATCH(TRUE,INDEX(ESADirectory!$M$1:$M$6216=InCubedMembers[[#This Row],[email lower]],0),0)) ->  | K2: =INDEX(ESADirectory!$N$1:$N$6216,MATCH(TRUE,INDEX(ESADirectory!$M$1:$M$6216=InCubedMembers[[#This Row],[email lower]],0),0)) ->  | L2: =INDEX(ESADirectory!$P$1:$P$6216,MATCH(TRUE,INDEX(ESADirectory!$M$1:$M$6216=InCubedMembers[[#This Row],[email lower]],0),0)) ->  | M2: =INDEX(ESADirectory!$C$1:$C$6216,MATCH(TRUE,INDEX(ESADirectory!$M$1:$M$6216=InCubedMembers[[#This Row],[email lower]],0),0)) -> 
A3: Amanda Regan | B3: Amanda.Regan@esa.int | C3: TO | E3: Item | F3: departments/EOP-8/EOP-8L/Lists/Members TO | G3: FALSE | H3: =LOWER(InCubedMembers[[#This Row],[Member is SP]]) -> amanda.regan@esa.int | I3: =INDEX(ESADirectory!$B$1:$B$6216,MATCH(TRUE,INDEX(ESADirectory!$M$1:$M$6216=InCubedMembers[[#This Row],[email lower]],0),0)) ->  | J3: =INDEX(ESADirectory!$O$1:$O$6216,MATCH(TRUE,INDEX(ESADirectory!$M$1:$M$6216=InCubedMembers[[#This Row],[email lower]],0),0)) ->  | K3: =INDEX(ESADirectory!$N$1:$N$6216,MATCH(TRUE,INDEX(ESADirectory!$M$1:$M$6216=InCubedMembers[[#This Row],[email lower]],0),0)) ->  | L3: =INDEX(ESADirectory!$P$1:$P$6216,MATCH(TRUE,INDEX(ESADirectory!$M$1:$M$6216=InCubedMembers[[#This Row],[email lower]],0),0)) ->  | M3: =INDEX(ESADirectory!$C$1:$C$6216,MATCH(TRUE,INDEX(ESADirectory!$M$1:$M$6216=InCubedMembers[[#This Row],[email lower]],0),0)) -> 
A4: Alice Barthe | B4: Alice.Barthe@esa.int | C4: TO | E4: Item | F4: departments/EOP-8/EOP-8L/Lists/Members TO | G4: FALSE | H4: =LOWER(InCubedMembers[[#This Row],[Member is SP]]) -> alice.barthe@esa.int | I4: =INDEX(ESADirectory!$B$1:$B$6216,MATCH(TRUE,INDEX(ESADirectory!$M$1:$M$6216=InCubedMembers[[#This Row],[email lower]],0),0)) ->  | J4: =INDEX(ESADirectory!$O$1:$O$6216,MATCH(TRUE,INDEX(ESADirectory!$M$1:$M$6216=InCubedMembers[[#This Row],[email lower]],0),0)) ->  | K4: =INDEX(ESADirectory!$N$1:$N$6216,MATCH(TRUE,INDEX(ESADirectory!$M$1:$M$6216=InCubedMembers[[#This Row],[email lower]],0),0)) ->  | L4: =INDEX(ESADirectory!$P$1:$P$6216,MATCH(TRUE,INDEX(ESADirectory!$M$1:$M$6216=InCubedMembers[[#This Row],[email lower]],0),0)) ->  | M4: =INDEX(ESADirectory!$C$1:$C$6216,MATCH(TRUE,INDEX(ESADirectory!$M$1:$M$6216=InCubedMembers[[#This Row],[email lower]],0),0)) -> 
A5: TBD | C5: TO | E5: Item | F5: departments/EOP-8/EOP-8L/Lists/Members TO | H5: =LOWER(InCubedMembers[[#This Row],[Member is SP]]) ->  | I5: =INDEX(ESADirectory!$B$1:$B$6216,MATCH(TRUE,INDEX(ESADirectory!$M$1:$M$6216=InCubedMembers[[#This Row],[email lower]],0),0)) -> 0 | J5: =INDEX(ESADirectory!$O$1:$O$6216,MATCH(TRUE,INDEX(ESADirectory!$M$1:$M$6216=InCubedMembers[[#This Row],[email lower]],0),0)) -> 0 | K5: =INDEX(ESADirectory!$N$1:$N$6216,MATCH(TRUE,INDEX(ESADirectory!$M$1:$M$6216=InCubedMembers[[#This Row],[email lower]],0),0)) -> 0 | L5: =INDEX(ESADirectory!$P$1:$P$6216,MATCH(TRUE,INDEX(ESADirectory!$M$1:$M$6216=InCubedMembers[[#This Row],[email lower]],0),0)) -> 0 | M5: =INDEX(ESADirectory!$C$1:$C$6216,MATCH(TRUE,INDEX(ESADirectory!$M$1:$M$6216=InCubedMembers[[#This Row],[email lower]],0),0)) -> 0
A6: Nathalie Schwarz | B6: Nathalie.Schwarz@esa.int | C6: CO | E6: Item | F6: departments/EOP-8/EOP-8L/Lists/Members TO | G6: FALSE | H6: =LOWER(InCubedMembers[[#This Row],[Member is SP]]) -> nathalie.schwarz@esa.int | I6: =INDEX(ESADirectory!$B$1:$B$6216,MATCH(TRUE,INDEX(ESADirectory!$M$1:$M$6216=InCubedMembers[[#This Row],[email lower]],0),0)) ->  | J6: =INDEX(ESADirectory!$O$1:$O$6216,MATCH(TRUE,INDEX(ESADirectory!$M$1:$M$6216=InCubedMembers[[#This Row],[email lower]],0),0)) ->  | K6: =INDEX(ESADirectory!$N$1:$N$6216,MATCH(TRUE,INDEX(ESADirectory!$M$1:$M$6216=InCubedMembers[[#This Row],[email lower]],0),0)) ->  | L6: =INDEX(ESADirectory!$P$1:$P$6216,MATCH(TRUE,INDEX(ESADirectory!$M$1:$M$6216=InCubedMembers[[#This Row],[email lower]],0),0)) ->  | M6: =INDEX(ESADirectory!$C$1:$C$6216,MATCH(TRUE,INDEX(ESADirectory!$M$1:$M$6216=InCubedMembers[[#This Row],[email lower]],0),0)) -> 
A7: Dora Tamas | B7: Dora.Tamas@esa.int | C7: CO | E7: Item | F7: departments/EOP-8/EOP-8L/Lists/Members TO | G7: FALSE | H7: =LOWER(InCubedMembers[[#This Row],[Member is SP]]) -> dora.tamas@esa.int | I7: =INDEX(ESADirectory!$B$1:$B$6216,MATCH(TRUE,INDEX(ESADirectory!$M$1:$M$6216=InCubedMembers[[#This Row],[email lower]],0),0)) ->  | J7: =INDEX(ESADirectory!$O$1:$O$6216,MATCH(TRUE,INDEX(ESADirectory!$M$1:$M$6216=InCubedMembers[[#This Row],[email lower]],0),0)) ->  | K7: =INDEX(ESADirectory!$N$1:$N$6216,MATCH(TRUE,INDEX(ESADirectory!$M$1:$M$6216=InCubedMembers[[#This Row],[email lower]],0),0)) ->  | L7: =INDEX(ESADirectory!$P$1:$P$6216,MATCH(TRUE,INDEX(ESADirectory!$M$1:$M$6216=InCubedMembers[[#This Row],[email lower]],0),0)) ->  | M7: =INDEX(ESADirectory!$C$1:$C$6216,MATCH(TRUE,INDEX(ESADirectory!$M$1:$M$6216=InCubedMembers[[#This Row],[email lower]],0),0)) -> 
A8: Massimo Canese | B8: Massimo.Canese@esa.int | C8: PC | E8: Item | F8: departments/EOP-8/EOP-8L/Lists/Members TO | G8: FALSE | H8: =LOWER(InCubedMembers[[#This Row],[Member is SP]]) -> massimo.canese@esa.int | I8: =INDEX(ESADirectory!$B$1:$B$6216,MATCH(TRUE,INDEX(ESADirectory!$M$1:$M$6216=InCubedMembers[[#This Row],[email lower]],0),0)) ->  | J8: =INDEX(ESADirectory!$O$1:$O$6216,MATCH(TRUE,INDEX(ESADirectory!$M$1:$M$6216=InCubedMembers[[#This Row],[email lower]],0),0)) ->  | K8: =INDEX(ESADirectory!$N$1:$N$6216,MATCH(TRUE,INDEX(ESADirectory!$M$1:$M$6216=InCubedMembers[[#This Row],[email lower]],0),0)) ->  | L8: =INDEX(ESADirectory!$P$1:$P$6216,MATCH(TRUE,INDEX(ESADirectory!$M$1:$M$6216=InCubedMembers[[#This Row],[email lower]],0),0)) ->  | M8: =INDEX(ESADirectory!$C$1:$C$6216,MATCH(TRUE,INDEX(ESADirectory!$M$1:$M$6216=InCubedMembers[[#This Row],[email lower]],0),0)) -> 
A9: Massimiliano Pastena | B9: Massimiliano.Pastena@esa.int | C9: TO | E9: Item | F9: departments/EOP-8/EOP-8L/Lists/Members TO | G9: FALSE | H9: =LOWER(InCubedMembers[[#This Row],[Member is SP]]) -> massimiliano.pastena@esa.int | I9: =INDEX(ESADirectory!$B$1:$B$6216,MATCH(TRUE,INDEX(ESADirectory!$M$1:$M$6216=InCubedMembers[[#This Row],[email lower]],0),0)) ->  | J9: =INDEX(ESADirectory!$O$1:$O$6216,MATCH(TRUE,INDEX(ESADirectory!$M$1:$M$6216=InCubedMembers[[#This Row],[email lower]],0),0)) ->  | K9: =INDEX(ESADirectory!$N$1:$N$6216,MATCH(TRUE,INDEX(ESADirectory!$M$1:$M$6216=InCubedMembers[[#This Row],[email lower]],0),0)) ->  | L9: =INDEX(ESADirectory!$P$1:$P$6216,MATCH(TRUE,INDEX(ESADirectory!$M$1:$M$6216=InCubedMembers[[#This Row],[email lower]],0),0)) ->  | M9: =INDEX(ESADirectory!$C$1:$C$6216,MATCH(TRUE,INDEX(ESADirectory!$M$1:$M$6216=InCubedMembers[[#This Row],[email lower]],0),0)) -> 
A10: Kathe Dannenmayer | B10: Kathe.Dannenmayer@esa.int | C10: TO | E10: Item | F10: departments/EOP-8/EOP-8L/Lists/Members TO | G10: FALSE | H10: =LOWER(InCubedMembers[[#This Row],[Member is SP]]) -> kathe.dannenmayer@esa.int | I10: =INDEX(ESADirectory!$B$1:$B$6216,MATCH(TRUE,INDEX(ESADirectory!$M$1:$M$6216=InCubedMembers[[#This Row],[email lower]],0),0)) ->  | J10: =INDEX(ESADirectory!$O$1:$O$6216,MATCH(TRUE,INDEX(ESADirectory!$M$1:$M$6216=InCubedMembers[[#This Row],[email lower]],0),0)) ->  | K10: =INDEX(ESADirectory!$N$1:$N$6216,MATCH(TRUE,INDEX(ESADirectory!$M$1:$M$6216=InCubedMembers[[#This Row],[email lower]],0),0)) ->  | L10: =INDEX(ESADirectory!$P$1:$P$6216,MATCH(TRUE,INDEX(ESADirectory!$M$1:$M$6216=InCubedMembers[[#This Row],[email lower]],0),0)) ->  | M10: =INDEX(ESADirectory!$C$1:$C$6216,MATCH(TRUE,INDEX(ESADirectory!$M$1:$M$6216=InCubedMembers[[#This Row],[email lower]],0),0)) -> 
A11: Igor Zayer | B11: Igor.Zayer@esa.int | C11: TO | E11: Item | F11: departments/EOP-8/EOP-8L/Lists/Members TO | G11: FALSE | H11: =LOWER(InCubedMembers[[#This Row],[Member is SP]]) -> igor.zayer@esa.int | I11: =INDEX(ESADirectory!$B$1:$B$6216,MATCH(TRUE,INDEX(ESADirectory!$M$1:$M$6216=InCubedMembers[[#This Row],[email lower]],0),0)) ->  | J11: =INDEX(ESADirectory!$O$1:$O$6216,MATCH(TRUE,INDEX(ESADirectory!$M$1:$M$6216=InCubedMembers[[#This Row],[email lower]],0),0)) ->  | K11: =INDEX(ESADirectory!$N$1:$N$6216,MATCH(TRUE,INDEX(ESADirectory!$M$1:$M$6216=InCubedMembers[[#This Row],[email lower]],0),0)) ->  | L11: =INDEX(ESADirectory!$P$1:$P$6216,MATCH(TRUE,INDEX(ESADirectory!$M$1:$M$6216=InCubedMembers[[#This Row],[email lower]],0),0)) ->  | M11: =INDEX(ESADirectory!$C$1:$C$6216,MATCH(TRUE,INDEX(ESADirectory!$M$1:$M$6216=InCubedMembers[[#This Row],[email lower]],0),0)) -> 
A12: Sveinung Loekken | B12: Sveinung.Loekken@esa.int | C12: TO | E12: Item | F12: departments/EOP-8/EOP-8L/Lists/Members TO | G12: FALSE | H12: =LOWER(InCubedMembers[[#This Row],[Member is SP]]) -> sveinung.loekken@esa.int | I12: =INDEX(ESADirectory!$B$1:$B$6216,MATCH(TRUE,INDEX(ESADirectory!$M$1:$M$6216=InCubedMembers[[#This Row],[email lower]],0),0)) ->  | J12: =INDEX(ESADirectory!$O$1:$O$6216,MATCH(TRUE,INDEX(ESADirectory!$M$1:$M$6216=InCubedMembers[[#This Row],[email lower]],0),0)) ->  | K12: =INDEX(ESADirectory!$N$1:$N$6216,MATCH(TRUE,INDEX(ESADirectory!$M$1:$M$6216=InCubedMembers[[#This Row],[email lower]],0),0)) ->  | L12: =INDEX(ESADirectory!$P$1:$P$6216,MATCH(TRUE,INDEX(ESADirectory!$M$1:$M$6216=InCubedMembers[[#This Row],[email lower]],0),0)) ->  | M12: =INDEX(ESADirectory!$C$1:$C$6216,MATCH(TRUE,INDEX(ESADirectory!$M$1:$M$6216=InCubedMembers[[#This Row],[email lower]],0),0)) -> 
A13: Pierre Philippe Mathieu | B13: Pierre.Philippe.Mathieu@esa.int | C13: TO | E13: Item | F13: departments/EOP-8/EOP-8L/Lists/Members TO | H13: =LOWER(InCubedMembers[[#This Row],[Member is SP]]) -> pierre.philippe.mathieu@esa.int | I13: =INDEX(ESADirectory!$B$1:$B$6216,MATCH(TRUE,INDEX(ESADirectory!$M$1:$M$6216=InCubedMembers[[#This Row],[email lower]],0),0)) ->  | J13: =INDEX(ESADirectory!$O$1:$O$6216,MATCH(TRUE,INDEX(ESADirectory!$M$1:$M$6216=InCubedMembers[[#This Row],[email lower]],0),0)) ->  | K13: =INDEX(ESADirectory!$N$1:$N$6216,MATCH(TRUE,INDEX(ESADirectory!$M$1:$M$6216=InCubedMembers[[#This Row],[email lower]],0),0)) ->  | L13: =INDEX(ESADirectory!$P$1:$P$6216,MATCH(TRUE,INDEX(ESADirectory!$M$1:$M$6216=InCubedMembers[[#This Row],[email lower]],0),0)) ->  | M13: =INDEX(ESADirectory!$C$1:$C$6216,MATCH(TRUE,INDEX(ESADirectory!$M$1:$M$6216=InCubedMembers[[#This Row],[email lower]],0),0)) -> 
A14: Silke Bode | B14: Silke.Bode@esa.int | C14: CO | E14: Item | F14: departments/EOP-8/EOP-8L/Lists/Members TO | H14: =LOWER(InCubedMembers[[#This Row],[Member is SP]]) -> silke.bode@esa.int | I14: =INDEX(ESADirectory!$B$1:$B$6216,MATCH(TRUE,INDEX(ESADirectory!$M$1:$M$6216=InCubedMembers[[#This Row],[email lower]],0),0)) ->  | J14: =INDEX(ESADirectory!$O$1:$O$6216,MATCH(TRUE,INDEX(ESADirectory!$M$1:$M$6216=InCubedMembers[[#This Row],[email lower]],0),0)) ->  | K14: =INDEX(ESADirectory!$N$1:$N$6216,MATCH(TRUE,INDEX(ESADirectory!$M$1:$M$6216=InCubedMembers[[#This Row],[email lower]],0),0)) ->  | L14: =INDEX(ESADirectory!$P$1:$P$6216,MATCH(TRUE,INDEX(ESADirectory!$M$1:$M$6216=InCubedMembers[[#This Row],[email lower]],0),0)) ->  | M14: =INDEX(ESADirectory!$C$1:$C$6216,MATCH(TRUE,INDEX(ESADirectory!$M$1:$M$6216=InCubedMembers[[#This Row],[email lower]],0),0)) -> 
A15: Nathalie Boisard | B15: Nathalie.Boisard@esa.int | C15: CO | E15: Item | F15: departments/EOP-8/EOP-8L/Lists/Members TO | H15: =LOWER(InCubedMembers[[#This Row],[Member is SP]]) -> nathalie.boisard@esa.int | I15: =INDEX(ESADirectory!$B$1:$B$6216,MATCH(TRUE,INDEX(ESADirectory!$M$1:$M$6216=InCubedMembers[[#This Row],[email lower]],0),0)) ->  | J15: =INDEX(ESADirectory!$O$1:$O$6216,MATCH(TRUE,INDEX(ESADirectory!$M$1:$M$6216=InCubedMembers[[#This Row],[email lower]],0),0)) ->  | K15: =INDEX(ESADirectory!$N$1:$N$6216,MATCH(TRUE,INDEX(ESADirectory!$M$1:$M$6216=InCubedMembers[[#This Row],[email lower]],0),0)) ->  | L15: =INDEX(ESADirectory!$P$1:$P$6216,MATCH(TRUE,INDEX(ESADirectory!$M$1:$M$6216=InCubedMembers[[#This Row],[email lower]],0),0)) ->  | M15: =INDEX(ESADirectory!$C$1:$C$6216,MATCH(TRUE,INDEX(ESADirectory!$M$1:$M$6216=InCubedMembers[[#This Row],[email lower]],0),0)) -> 
A16: Emma Frigot | B16: Emma.Frigot@esa.int | C16: CO | E16: Item | F16: departments/EOP-8/EOP-8L/Lists/Members TO | H16: =LOWER(InCubedMembers[[#This Row],[Member is SP]]) -> emma.frigot@esa.int | I16: =INDEX(ESADirectory!$B$1:$B$6216,MATCH(TRUE,INDEX(ESADirectory!$M$1:$M$6216=InCubedMembers[[#This Row],[email lower]],0),0)) ->  | J16: =INDEX(ESADirectory!$O$1:$O$6216,MATCH(TRUE,INDEX(ESADirectory!$M$1:$M$6216=InCubedMembers[[#This Row],[email lower]],0),0)) ->  | K16: =INDEX(ESADirectory!$N$1:$N$6216,MATCH(TRUE,INDEX(ESADirectory!$M$1:$M$6216=InCubedMembers[[#This Row],[email lower]],0),0)) ->  | L16: =INDEX(ESADirectory!$P$1:$P$6216,MATCH(TRUE,INDEX(ESADirectory!$M$1:$M$6216=InCubedMembers[[#This Row],[email lower]],0),0)) ->  | M16: =INDEX(ESADirectory!$C$1:$C$6216,MATCH(TRUE,INDEX(ESADirectory!$M$1:$M$6216=InCubedMembers[[#This Row],[email lower]],0),0)) -> 
A17: Florence Glandieres | B17: Florence.Glandieres@esa.int | C17: CO | E17: Item | F17: departments/EOP-8/EOP-8L/Lists/Members TO | H17: =LOWER(InCubedMembers[[#This Row],[Member is SP]]) -> florence.glandieres@esa.int | I17: =INDEX(ESADirectory!$B$1:$B$6216,MATCH(TRUE,INDEX(ESADirectory!$M$1:$M$6216=InCubedMembers[[#This Row],[email lower]],0),0)) ->  | J17: =INDEX(ESADirectory!$O$1:$O$6216,MATCH(TRUE,INDEX(ESADirectory!$M$1:$M$6216=InCubedMembers[[#This Row],[email lower]],0),0)) ->  | K17: =INDEX(ESADirectory!$N$1:$N$6216,MATCH(TRUE,INDEX(ESADirectory!$M$1:$M$6216=InCubedMembers[[#This Row],[email lower]],0),0)) ->  | L17: =INDEX(ESADirectory!$P$1:$P$6216,MATCH(TRUE,INDEX(ESADirectory!$M$1:$M$6216=InCubedMembers[[#This Row],[email lower]],0),0)) ->  | M17: =INDEX(ESADirectory!$C$1:$C$6216,MATCH(TRUE,INDEX(ESADirectory!$M$1:$M$6216=InCubedMembers[[#This Row],[email lower]],0),0)) -> 
A18: Floriane Provost | B18: Floriane.Provost@esa.int | C18: TO | E18: Item | F18: departments/EOP-8/EOP-8L/Lists/Members TO | G18: FALSE | H18: =LOWER(InCubedMembers[[#This Row],[Member is SP]]) -> floriane.provost@esa.int | I18: =INDEX(ESADirectory!$B$1:$B$6216,MATCH(TRUE,INDEX(ESADirectory!$M$1:$M$6216=InCubedMembers[[#This Row],[email lower]],0),0)) ->  | J18: =INDEX(ESADirectory!$O$1:$O$6216,MATCH(TRUE,INDEX(ESADirectory!$M$1:$M$6216=InCubedMembers[[#This Row],[email lower]],0),0)) ->  | K18: =INDEX(ESADirectory!$N$1:$N$6216,MATCH(TRUE,INDEX(ESADirectory!$M$1:$M$6216=InCubedMembers[[#This Row],[email lower]],0),0)) ->  | L18: =INDEX(ESADirectory!$P$1:$P$6216,MATCH(TRUE,INDEX(ESADirectory!$M$1:$M$6216=InCubedMembers[[#This Row],[email lower]],0),0)) ->  | M18: =INDEX(ESADirectory!$C$1:$C$6216,MATCH(TRUE,INDEX(ESADirectory!$M$1:$M$6216=InCubedMembers[[#This Row],[email lower]],0),0)) -> 
A19: Nicolas Girault | B19: Nicolas.Girault@esa.int | C19: TO | D19: ​EO Ground Segment | E19: Item | F19: departments/EOP-8/EOP-8L/Lists/Members TO | G19: FALSE | H19: =LOWER(InCubedMembers[[#This Row],[Member is SP]]) -> nicolas.girault@esa.int | I19: =INDEX(ESADirectory!$B$1:$B$6216,MATCH(TRUE,INDEX(ESADirectory!$M$1:$M$6216=InCubedMembers[[#This Row],[email lower]],0),0)) ->  | J19: =INDEX(ESADirectory!$O$1:$O$6216,MATCH(TRUE,INDEX(ESADirectory!$M$1:$M$6216=InCubedMembers[[#This Row],[email lower]],0),0)) ->  | K19: =INDEX(ESADirectory!$N$1:$N$6216,MATCH(TRUE,INDEX(ESADirectory!$M$1:$M$6216=InCubedMembers[[#This Row],[email lower]],0),0)) ->  | L19: =INDEX(ESADirectory!$P$1:$P$6216,MATCH(TRUE,INDEX(ESADirectory!$M$1:$M$6216=InCubedMembers[[#This Row],[email lower]],0),0)) ->  | M19: =INDEX(ESADirectory!$C$1:$C$6216,MATCH(TRUE,INDEX(ESADirectory!$M$1:$M$6216=InCubedMembers[[#This Row],[email lower]],0),0)) -> 
A20: Elisa Cipriani | B20: Elisa.Cipriani@esa.int | C20: TO | E20: Item | F20: departments/EOP-8/EOP-8L/Lists/Members TO | G20: TRUE | H20: =LOWER(InCubedMembers[[#This Row],[Member is SP]]) -> elisa.cipriani@esa.int | I20: =INDEX(ESADirectory!$B$1:$B$6216,MATCH(TRUE,INDEX(ESADirectory!$M$1:$M$6216=InCubedMembers[[#This Row],[email lower]],0),0)) ->  | J20: =INDEX(ESADirectory!$O$1:$O$6216,MATCH(TRUE,INDEX(ESADirectory!$M$1:$M$6216=InCubedMembers[[#This Row],[email lower]],0),0)) ->  | K20: =INDEX(ESADirectory!$N$1:$N$6216,MATCH(TRUE,INDEX(ESADirectory!$M$1:$M$6216=InCubedMembers[[#This Row],[email lower]],0),0)) ->  | L20: =INDEX(ESADirectory!$P$1:$P$6216,MATCH(TRUE,INDEX(ESADirectory!$M$1:$M$6216=InCubedMembers[[#This Row],[email lower]],0),0)) ->  | M20: =INDEX(ESADirectory!$C$1:$C$6216,MATCH(TRUE,INDEX(ESADirectory!$M$1:$M$6216=InCubedMembers[[#This Row],[email lower]],0),0)) -> 
A21: Patrick Griffiths | B21: Patrick.Griffiths@esa.int | C21: TO | E21: Item | F21: departments/EOP-8/EOP-8L/Lists/Members TO | G21: FALSE | H21: =LOWER(InCubedMembers[[#This Row],[Member is SP]]) -> patrick.griffiths@esa.int | I21: =INDEX(ESADirectory!$B$1:$B$6216,MATCH(TRUE,INDEX(ESADirectory!$M$1:$M$6216=InCubedMembers[[#This Row],[email lower]],0),0)) ->  | J21: =INDEX(ESADirectory!$O$1:$O$6216,MATCH(TRUE,INDEX(ESADirectory!$M$1:$M$6216=InCubedMembers[[#This Row],[email lower]],0),0)) ->  | K21: =INDEX(ESADirectory!$N$1:$N$6216,MATCH(TRUE,INDEX(ESADirectory!$M$1:$M$6216=InCubedMembers[[#This Row],[email lower]],0),0)) ->  | L21: =INDEX(ESADirectory!$P$1:$P$6216,MATCH(TRUE,INDEX(ESADirectory!$M$1:$M$6216=InCubedMembers[[#This Row],[email lower]],0),0)) ->  | M21: =INDEX(ESADirectory!$C$1:$C$6216,MATCH(TRUE,INDEX(ESADirectory!$M$1:$M$6216=InCubedMembers[[#This Row],[email lower]],0),0)) -> 
A22: Bertrand Le Saux | B22: Bertrand.Le.Saux@esa.int | C22: TO | E22: Item | F22: departments/EOP-8/EOP-8L/Lists/Members TO | G22: FALSE | H22: =LOWER(InCubedMembers[[#This Row],[Member is SP]]) -> bertrand.le.saux@esa.int | I22: =INDEX(ESADirectory!$B$1:$B$6216,MATCH(TRUE,INDEX(ESADirectory!$M$1:$M$6216=InCubedMembers[[#This Row],[email lower]],0),0)) ->  | J22: =INDEX(ESADirectory!$O$1:$O$6216,MATCH(TRUE,INDEX(ESADirectory!$M$1:$M$6216=InCubedMembers[[#This Row],[email lower]],0),0)) ->  | K22: =INDEX(ESADirectory!$N$1:$N$6216,MATCH(TRUE,INDEX(ESADirectory!$M$1:$M$6216=InCubedMembers[[#This Row],[email lower]],0),0)) ->  | L22: =INDEX(ESADirectory!$P$1:$P$6216,MATCH(TRUE,INDEX(ESADirectory!$M$1:$M$6216=InCubedMembers[[#This Row],[email lower]],0),0)) ->  | M22: =INDEX(ESADirectory!$C$1:$C$6216,MATCH(TRUE,INDEX(ESADirectory!$M$1:$M$6216=InCubedMembers[[#This Row],[email lower]],0),0)) -> 
A23: Ola Grabak | B23: Ola.Grabak@esa.int | C23: TO | E23: Item | F23: departments/EOP-8/EOP-8L/Lists/Members TO | G23: FALSE | H23: =LOWER(InCubedMembers[[#This Row],[Member is SP]]) -> ola.grabak@esa.int | I23: =INDEX(ESADirectory!$B$1:$B$6216,MATCH(TRUE,INDEX(ESADirectory!$M$1:$M$6216=InCubedMembers[[#This Row],[email lower]],0),0)) ->  | J23: =INDEX(ESADirectory!$O$1:$O$6216,MATCH(TRUE,INDEX(ESADirectory!$M$1:$M$6216=InCubedMembers[[#This Row],[email lower]],0),0)) ->  | K23: =INDEX(ESADirectory!$N$1:$N$6216,MATCH(TRUE,INDEX(ESADirectory!$M$1:$M$6216=InCubedMembers[[#This Row],[email lower]],0),0)) ->  | L23: =INDEX(ESADirectory!$P$1:$P$6216,MATCH(TRUE,INDEX(ESADirectory!$M$1:$M$6216=InCubedMembers[[#This Row],[email lower]],0),0)) ->  | M23: =INDEX(ESADirectory!$C$1:$C$6216,MATCH(TRUE,INDEX(ESADirectory!$M$1:$M$6216=InCubedMembers[[#This Row],[email lower]],0),0)) -> 
A24: Frank Martin | B24: Frank.Martin.Seifert@esa.int | C24: TO | E24: Item | F24: departments/EOP-8/EOP-8L/Lists/Members TO | G24: FALSE | H24: =LOWER(InCubedMembers[[#This Row],[Member is SP]]) -> frank.martin.seifert@esa.int | I24: =INDEX(ESADirectory!$B$1:$B$6216,MATCH(TRUE,INDEX(ESADirectory!$M$1:$M$6216=InCubedMembers[[#This Row],[email lower]],0),0)) ->  | J24: =INDEX(ESADirectory!$O$1:$O$6216,MATCH(TRUE,INDEX(ESADirectory!$M$1:$M$6216=InCubedMembers[[#This Row],[email lower]],0),0)) ->  | K24: =INDEX(ESADirectory!$N$1:$N$6216,MATCH(TRUE,INDEX(ESADirectory!$M$1:$M$6216=InCubedMembers[[#This Row],[email lower]],0),0)) ->  | L24: =INDEX(ESADirectory!$P$1:$P$6216,MATCH(TRUE,INDEX(ESADirectory!$M$1:$M$6216=InCubedMembers[[#This Row],[email lower]],0),0)) ->  | M24: =INDEX(ESADirectory!$C$1:$C$6216,MATCH(TRUE,INDEX(ESADirectory!$M$1:$M$6216=InCubedMembers[[#This Row],[email lower]],0),0)) -> 
A25: Anna Burzykowska | B25: Anna.Burzykowska@esa.int | C25: TO | D25: ​drought index. | E25: Item | F25: departments/EOP-8/EOP-8L/Lists/Members TO | G25: FALSE | H25: =LOWER(InCubedMembers[[#This Row],[Member is SP]]) -> anna.burzykowska@esa.int | I25: =INDEX(ESADirectory!$B$1:$B$6216,MATCH(TRUE,INDEX(ESADirectory!$M$1:$M$6216=InCubedMembers[[#This Row],[email lower]],0),0)) ->  | J25: =INDEX(ESADirectory!$O$1:$O$6216,MATCH(TRUE,INDEX(ESADirectory!$M$1:$M$6216=InCubedMembers[[#This Row],[email lower]],0),0)) ->  | K25: =INDEX(ESADirectory!$N$1:$N$6216,MATCH(TRUE,INDEX(ESADirectory!$M$1:$M$6216=InCubedMembers[[#This Row],[email lower]],0),0)) ->  | L25: =INDEX(ESADirectory!$P$1:$P$6216,MATCH(TRUE,INDEX(ESADirectory!$M$1:$M$6216=InCubedMembers[[#This Row],[email lower]],0),0)) ->  | M25: =INDEX(ESADirectory!$C$1:$C$6216,MATCH(TRUE,INDEX(ESADirectory!$M$1:$M$6216=InCubedMembers[[#This Row],[email lower]],0),0)) -> 
A26: Sarah Wittig | B26: Sarah.Wittig@esa.int | C26: TO | E26: Item | F26: departments/EOP-8/EOP-8L/Lists/Members TO | G26: FALSE | H26: =LOWER(InCubedMembers[[#This Row],[Member is SP]]) -> sarah.wittig@esa.int | I26: =INDEX(ESADirectory!$B$1:$B$6216,MATCH(TRUE,INDEX(ESADirectory!$M$1:$M$6216=InCubedMembers[[#This Row],[email lower]],0),0)) ->  | J26: =INDEX(ESADirectory!$O$1:$O$6216,MATCH(TRUE,INDEX(ESADirectory!$M$1:$M$6216=InCubedMembers[[#This Row],[email lower]],0),0)) ->  | K26: =INDEX(ESADirectory!$N$1:$N$6216,MATCH(TRUE,INDEX(ESADirectory!$M$1:$M$6216=InCubedMembers[[#This Row],[email lower]],0),0)) ->  | L26: =INDEX(ESADirectory!$P$1:$P$6216,MATCH(TRUE,INDEX(ESADirectory!$M$1:$M$6216=InCubedMembers[[#This Row],[email lower]],0),0)) ->  | M26: =INDEX(ESADirectory!$C$1:$C$6216,MATCH(TRUE,INDEX(ESADirectory!$M$1:$M$6216=InCubedMembers[[#This Row],[email lower]],0),0)) -> 
A27: josep rosello | B27: Josep.Rosello@esa.int | C27: TO | E27: Item | F27: departments/EOP-8/EOP-8L/Lists/Members TO | G27: FALSE | H27: =LOWER(InCubedMembers[[#This Row],[Member is SP]]) -> josep.rosello@esa.int | I27: =INDEX(ESADirectory!$B$1:$B$6216,MATCH(TRUE,INDEX(ESADirectory!$M$1:$M$6216=InCubedMembers[[#This Row],[email lower]],0),0)) ->  | J27: =INDEX(ESADirectory!$O$1:$O$6216,MATCH(TRUE,INDEX(ESADirectory!$M$1:$M$6216=InCubedMembers[[#This Row],[email lower]],0),0)) ->  | K27: =INDEX(ESADirectory!$N$1:$N$6216,MATCH(TRUE,INDEX(ESADirectory!$M$1:$M$6216=InCubedMembers[[#This Row],[email lower]],0),0)) ->  | L27: =INDEX(ESADirectory!$P$1:$P$6216,MATCH(TRUE,INDEX(ESADirectory!$M$1:$M$6216=InCubedMembers[[#This Row],[email lower]],0),0)) ->  | M27: =INDEX(ESADirectory!$C$1:$C$6216,MATCH(TRUE,INDEX(ESADirectory!$M$1:$M$6216=InCubedMembers[[#This Row],[email lower]],0),0)) -> 
A28: Stefano Ferretti | B28: Stefano.Ferretti@esa.int | C28: TO | E28: Item | F28: departments/EOP-8/EOP-8L/Lists/Members TO | G28: FALSE | H28: =LOWER(InCubedMembers[[#This Row],[Member is SP]]) -> stefano.ferretti@esa.int | I28: =INDEX(ESADirectory!$B$1:$B$6216,MATCH(TRUE,INDEX(ESADirectory!$M$1:$M$6216=InCubedMembers[[#This Row],[email lower]],0),0)) ->  | J28: =INDEX(ESADirectory!$O$1:$O$6216,MATCH(TRUE,INDEX(ESADirectory!$M$1:$M$6216=InCubedMembers[[#This Row],[email lower]],0),0)) ->  | K28: =INDEX(ESADirectory!$N$1:$N$6216,MATCH(TRUE,INDEX(ESADirectory!$M$1:$M$6216=InCubedMembers[[#This Row],[email lower]],0),0)) ->  | L28: =INDEX(ESADirectory!$P$1:$P$6216,MATCH(TRUE,INDEX(ESADirectory!$M$1:$M$6216=InCubedMembers[[#This Row],[email lower]],0),0)) ->  | M28: =INDEX(ESADirectory!$C$1:$C$6216,MATCH(TRUE,INDEX(ESADirectory!$M$1:$M$6216=InCubedMembers[[#This Row],[email lower]],0),0)) -> 
A29: Florenz von Ostman | B29: Florenz.vonOstman@esa.int | C29: CO | E29: Item | F29: departments/EOP-8/EOP-8L/Lists/Members TO | G29: FALSE | H29: =LOWER(InCubedMembers[[#This Row],[Member is SP]]) -> florenz.vonostman@esa.int | I29: =INDEX(ESADirectory!$B$1:$B$6216,MATCH(TRUE,INDEX(ESADirectory!$M$1:$M$6216=InCubedMembers[[#This Row],[email lower]],0),0)) ->  | J29: =INDEX(ESADirectory!$O$1:$O$6216,MATCH(TRUE,INDEX(ESADirectory!$M$1:$M$6216=InCubedMembers[[#This Row],[email lower]],0),0)) ->  | K29: =INDEX(ESADirectory!$N$1:$N$6216,MATCH(TRUE,INDEX(ESADirectory!$M$1:$M$6216=InCubedMembers[[#This Row],[email lower]],0),0)) ->  | L29: =INDEX(ESADirectory!$P$1:$P$6216,MATCH(TRUE,INDEX(ESADirectory!$M$1:$M$6216=InCubedMembers[[#This Row],[email lower]],0),0)) ->  | M29: =INDEX(ESADirectory!$C$1:$C$6216,MATCH(TRUE,INDEX(ESADirectory!$M$1:$M$6216=InCubedMembers[[#This Row],[email lower]],0),0)) -> 
A30: Martin Suess | B30: Martin.Suess@esa.int | C30: TO | D30: ​MW payloads | E30: Item | F30: departments/EOP-8/EOP-8L/Lists/Members TO | G30: FALSE | H30: =LOWER(InCubedMembers[[#This Row],[Member is SP]]) -> martin.suess@esa.int | I30: =INDEX(ESADirectory!$B$1:$B$6216,MATCH(TRUE,INDEX(ESADirectory!$M$1:$M$6216=InCubedMembers[[#This Row],[email lower]],0),0)) ->  | J30: =INDEX(ESADirectory!$O$1:$O$6216,MATCH(TRUE,INDEX(ESADirectory!$M$1:$M$6216=InCubedMembers[[#This Row],[email lower]],0),0)) ->  | K30: =INDEX(ESADirectory!$N$1:$N$6216,MATCH(TRUE,INDEX(ESADirectory!$M$1:$M$6216=InCubedMembers[[#This Row],[email lower]],0),0)) ->  | L30: =INDEX(ESADirectory!$P$1:$P$6216,MATCH(TRUE,INDEX(ESADirectory!$M$1:$M$6216=InCubedMembers[[#This Row],[email lower]],0),0)) ->  | M30: =INDEX(ESADirectory!$C$1:$C$6216,MATCH(TRUE,INDEX(ESADirectory!$M$1:$M$6216=InCubedMembers[[#This Row],[email lower]],0),0)) -> 
A31: Flavio Mariani | B31: Flavio.Mariani@esa.int | C31: TO | D31: ​Optical Instruments | E31: Item | F31: departments/EOP-8/EOP-8L/Lists/Members TO | G31: TRUE | H31: =LOWER(InCubedMembers[[#This Row],[Member is SP]]) -> flavio.mariani@esa.int | I31: =INDEX(ESADirectory!$B$1:$B$6216,MATCH(TRUE,INDEX(ESADirectory!$M$1:$M$6216=InCubedMembers[[#This Row],[email lower]],0),0)) ->  | J31: =INDEX(ESADirectory!$O$1:$O$6216,MATCH(TRUE,INDEX(ESADirectory!$M$1:$M$6216=InCubedMembers[[#This Row],[email lower]],0),0)) ->  | K31: =INDEX(ESADirectory!$N$1:$N$6216,MATCH(TRUE,INDEX(ESADirectory!$M$1:$M$6216=InCubedMembers[[#This Row],[email lower]],0),0)) ->  | L31: =INDEX(ESADirectory!$P$1:$P$6216,MATCH(TRUE,INDEX(ESADirectory!$M$1:$M$6216=InCubedMembers[[#This Row],[email lower]],0),0)) ->  | M31: =INDEX(ESADirectory!$C$1:$C$6216,MATCH(TRUE,INDEX(ESADirectory!$M$1:$M$6216=InCubedMembers[[#This Row],[email lower]],0),0)) -> 
A32: Arnaud Heliere | B32: Arnaud.Heliere@esa.int | C32: TO | D32: ​Optical Instruments | E32: Item | F32: departments/EOP-8/EOP-8L/Lists/Members TO | G32: FALSE | H32: =LOWER(InCubedMembers[[#This Row],[Member is SP]]) -> arnaud.heliere@esa.int | I32: =INDEX(ESADirectory!$B$1:$B$6216,MATCH(TRUE,INDEX(ESADirectory!$M$1:$M$6216=InCubedMembers[[#This Row],[email lower]],0),0)) ->  | J32: =INDEX(ESADirectory!$O$1:$O$6216,MATCH(TRUE,INDEX(ESADirectory!$M$1:$M$6216=InCubedMembers[[#This Row],[email lower]],0),0)) ->  | K32: =INDEX(ESADirectory!$N$1:$N$6216,MATCH(TRUE,INDEX(ESADirectory!$M$1:$M$6216=InCubedMembers[[#This Row],[email lower]],0),0)) ->  | L32: =INDEX(ESADirectory!$P$1:$P$6216,MATCH(TRUE,INDEX(ESADirectory!$M$1:$M$6216=InCubedMembers[[#This Row],[email lower]],0),0)) ->  | M32: =INDEX(ESADirectory!$C$1:$C$6216,MATCH(TRUE,INDEX(ESADirectory!$M$1:$M$6216=InCubedMembers[[#This Row],[email lower]],0),0)) -> 
A33: Maximilian Garre | B33: Maximilian.Garre@esa.int | C33: CO | E33: Item | F33: departments/EOP-8/EOP-8L/Lists/Members TO | G33: FALSE | H33: =LOWER(InCubedMembers[[#This Row],[Member is SP]]) -> maximilian.garre@esa.int | I33: =INDEX(ESADirectory!$B$1:$B$6216,MATCH(TRUE,INDEX(ESADirectory!$M$1:$M$6216=InCubedMembers[[#This Row],[email lower]],0),0)) ->  | J33: =INDEX(ESADirectory!$O$1:$O$6216,MATCH(TRUE,INDEX(ESADirectory!$M$1:$M$6216=InCubedMembers[[#This Row],[email lower]],0),0)) ->  | K33: =INDEX(ESADirectory!$N$1:$N$6216,MATCH(TRUE,INDEX(ESADirectory!$M$1:$M$6216=InCubedMembers[[#This Row],[email lower]],0),0)) ->  | L33: =INDEX(ESADirectory!$P$1:$P$6216,MATCH(TRUE,INDEX(ESADirectory!$M$1:$M$6216=InCubedMembers[[#This Row],[email lower]],0),0)) ->  | M33: =INDEX(ESADirectory!$C$1:$C$6216,MATCH(TRUE,INDEX(ESADirectory!$M$1:$M$6216=InCubedMembers[[#This Row],[email lower]],0),0)) -> 
A34: Roman Karpov | B34: Roman.Karpov@ext.esa.int | C34: CO | E34: Item | F34: departments/EOP-8/EOP-8L/Lists/Members TO | G34: FALSE | H34: =LOWER(InCubedMembers[[#This Row],[Member is SP]]) -> roman.karpov@ext.esa.int | I34: =INDEX(ESADirectory!$B$1:$B$6216,MATCH(TRUE,INDEX(ESADirectory!$M$1:$M$6216=InCubedMembers[[#This Row],[email lower]],0),0)) ->  | J34: =INDEX(ESADirectory!$O$1:$O$6216,MATCH(TRUE,INDEX(ESADirectory!$M$1:$M$6216=InCubedMembers[[#This Row],[email lower]],0),0)) ->  | K34: =INDEX(ESADirectory!$N$1:$N$6216,MATCH(TRUE,INDEX(ESADirectory!$M$1:$M$6216=InCubedMembers[[#This Row],[email lower]],0),0)) ->  | L34: =INDEX(ESADirectory!$P$1:$P$6216,MATCH(TRUE,INDEX(ESADirectory!$M$1:$M$6216=InCubedMembers[[#This Row],[email lower]],0),0)) ->  | M34: =INDEX(ESADirectory!$C$1:$C$6216,MATCH(TRUE,INDEX(ESADirectory!$M$1:$M$6216=InCubedMembers[[#This Row],[email lower]],0),0)) -> 
A35: Helena Morais | B35: Helena.Morais@ext.esa.int | C35: CO | E35: Item | F35: departments/EOP-8/EOP-8L/Lists/Members TO | H35: =LOWER(InCubedMembers[[#This Row],[Member is SP]]) -> helena.morais@ext.esa.int | I35: =INDEX(ESADirectory!$B$1:$B$6216,MATCH(TRUE,INDEX(ESADirectory!$M$1:$M$6216=InCubedMembers[[#This Row],[email lower]],0),0)) ->  | J35: =INDEX(ESADirectory!$O$1:$O$6216,MATCH(TRUE,INDEX(ESADirectory!$M$1:$M$6216=InCubedMembers[[#This Row],[email lower]],0),0)) ->  | K35: =INDEX(ESADirectory!$N$1:$N$6216,MATCH(TRUE,INDEX(ESADirectory!$M$1:$M$6216=InCubedMembers[[#This Row],[email lower]],0),0)) ->  | L35: =INDEX(ESADirectory!$P$1:$P$6216,MATCH(TRUE,INDEX(ESADirectory!$M$1:$M$6216=InCubedMembers[[#This Row],[email lower]],0),0)) ->  | M35: =INDEX(ESADirectory!$C$1:$C$6216,MATCH(TRUE,INDEX(ESADirectory!$M$1:$M$6216=InCubedMembers[[#This Row],[email lower]],0),0)) -> 
A36: Antonia Cavedon | B36: Antonia.Cavedon@esa.int | C36: CO | E36: Item | F36: departments/EOP-8/EOP-8L/Lists/Members TO | H36: =LOWER(InCubedMembers[[#This Row],[Member is SP]]) -> antonia.cavedon@esa.int | I36: =INDEX(ESADirectory!$B$1:$B$6216,MATCH(TRUE,INDEX(ESADirectory!$M$1:$M$6216=InCubedMembers[[#This Row],[email lower]],0),0)) ->  | J36: =INDEX(ESADirectory!$O$1:$O$6216,MATCH(TRUE,INDEX(ESADirectory!$M$1:$M$6216=InCubedMembers[[#This Row],[email lower]],0),0)) ->  | K36: =INDEX(ESADirectory!$N$1:$N$6216,MATCH(TRUE,INDEX(ESADirectory!$M$1:$M$6216=InCubedMembers[[#This Row],[email lower]],0),0)) ->  | L36: =INDEX(ESADirectory!$P$1:$P$6216,MATCH(TRUE,INDEX(ESADirectory!$M$1:$M$6216=InCubedMembers[[#This Row],[email lower]],0),0)) ->  | M36: =INDEX(ESADirectory!$C$1:$C$6216,MATCH(TRUE,INDEX(ESADirectory!$M$1:$M$6216=InCubedMembers[[#This Row],[email lower]],0),0)) -> 
A37: Katarina De Jonge | B37: Katarina.De.Jonge@ext.esa.int | C37: CO | E37: Item | F37: departments/EOP-8/EOP-8L/Lists/Members TO | H37: =LOWER(InCubedMembers[[#This Row],[Member is SP]]) -> katarina.de.jonge@ext.esa.int | I37: =INDEX(ESADirectory!$B$1:$B$6216,MATCH(TRUE,INDEX(ESADirectory!$M$1:$M$6216=InCubedMembers[[#This Row],[email lower]],0),0)) ->  | J37: =INDEX(ESADirectory!$O$1:$O$6216,MATCH(TRUE,INDEX(ESADirectory!$M$1:$M$6216=InCubedMembers[[#This Row],[email lower]],0),0)) ->  | K37: =INDEX(ESADirectory!$N$1:$N$6216,MATCH(TRUE,INDEX(ESADirectory!$M$1:$M$6216=InCubedMembers[[#This Row],[email lower]],0),0)) ->  | L37: =INDEX(ESADirectory!$P$1:$P$6216,MATCH(TRUE,INDEX(ESADirectory!$M$1:$M$6216=InCubedMembers[[#This Row],[email lower]],0),0)) ->  | M37: =INDEX(ESADirectory!$C$1:$C$6216,MATCH(TRUE,INDEX(ESADirectory!$M$1:$M$6216=InCubedMembers[[#This Row],[email lower]],0),0)) -> 
A38: Carlos Urbina Ortega | B38: Carlos.Urbina.Ortega@esa.int | C38: TO | D38: ​On board data processing | E38: Item | F38: departments/EOP-8/EOP-8L/Lists/Members TO | G38: TRUE | H38: =LOWER(InCubedMembers[[#This Row],[Member is SP]]) -> carlos.urbina.ortega@esa.int | I38: =INDEX(ESADirectory!$B$1:$B$6216,MATCH(TRUE,INDEX(ESADirectory!$M$1:$M$6216=InCubedMembers[[#This Row],[email lower]],0),0)) ->  | J38: =INDEX(ESADirectory!$O$1:$O$6216,MATCH(TRUE,INDEX(ESADirectory!$M$1:$M$6216=InCubedMembers[[#This Row],[email lower]],0),0)) ->  | K38: =INDEX(ESADirectory!$N$1:$N$6216,MATCH(TRUE,INDEX(ESADirectory!$M$1:$M$6216=InCubedMembers[[#This Row],[email lower]],0),0)) ->  | L38: =INDEX(ESADirectory!$P$1:$P$6216,MATCH(TRUE,INDEX(ESADirectory!$M$1:$M$6216=InCubedMembers[[#This Row],[email lower]],0),0)) ->  | M38: =INDEX(ESADirectory!$C$1:$C$6216,MATCH(TRUE,INDEX(ESADirectory!$M$1:$M$6216=InCubedMembers[[#This Row],[email lower]],0),0)) -> 
A39: Ville Meskus | B39: Ville.Meskus@esa.int | C39: TO | D39: ​InCubed YGT | E39: Item | F39: departments/EOP-8/EOP-8L/Lists/Members TO | H39: =LOWER(InCubedMembers[[#This Row],[Member is SP]]) -> ville.meskus@esa.int | I39: =INDEX(ESADirectory!$B$1:$B$6216,MATCH(TRUE,INDEX(ESADirectory!$M$1:$M$6216=InCubedMembers[[#This Row],[email lower]],0),0)) ->  | J39: =INDEX(ESADirectory!$O$1:$O$6216,MATCH(TRUE,INDEX(ESADirectory!$M$1:$M$6216=InCubedMembers[[#This Row],[email lower]],0),0)) ->  | K39: =INDEX(ESADirectory!$N$1:$N$6216,MATCH(TRUE,INDEX(ESADirectory!$M$1:$M$6216=InCubedMembers[[#This Row],[email lower]],0),0)) ->  | L39: =INDEX(ESADirectory!$P$1:$P$6216,MATCH(TRUE,INDEX(ESADirectory!$M$1:$M$6216=InCubedMembers[[#This Row],[email lower]],0),0)) ->  | M39: =INDEX(ESADirectory!$C$1:$C$6216,MATCH(TRUE,INDEX(ESADirectory!$M$1:$M$6216=InCubedMembers[[#This Row],[email lower]],0),0)) -> 
A40: Gianluca Furano | B40: Gianluca.Furano@esa.int | C40: TO | E40: Item | F40: departments/EOP-8/EOP-8L/Lists/Members TO | G40: FALSE | H40: =LOWER(InCubedMembers[[#This Row],[Member is SP]]) -> gianluca.furano@esa.int | I40: =INDEX(ESADirectory!$B$1:$B$6216,MATCH(TRUE,INDEX(ESADirectory!$M$1:$M$6216=InCubedMembers[[#This Row],[email lower]],0),0)) ->  | J40: =INDEX(ESADirectory!$O$1:$O$6216,MATCH(TRUE,INDEX(ESADirectory!$M$1:$M$6216=InCubedMembers[[#This Row],[email lower]],0),0)) ->  | K40: =INDEX(ESADirectory!$N$1:$N$6216,MATCH(TRUE,INDEX(ESADirectory!$M$1:$M$6216=InCubedMembers[[#This Row],[email lower]],0),0)) ->  | L40: =INDEX(ESADirectory!$P$1:$P$6216,MATCH(TRUE,INDEX(ESADirectory!$M$1:$M$6216=InCubedMembers[[#This Row],[email lower]],0),0)) ->  | M40: =INDEX(ESADirectory!$C$1:$C$6216,MATCH(TRUE,INDEX(ESADirectory!$M$1:$M$6216=InCubedMembers[[#This Row],[email lower]],0),0)) -> 
A41: Bart Gheysens | B41: Bart.Gheysens@ext.esa.int | C41: CO | E41: Item | F41: departments/EOP-8/EOP-8L/Lists/Members TO | H41: =LOWER(InCubedMembers[[#This Row],[Member is SP]]) -> bart.gheysens@ext.esa.int | I41: =INDEX(ESADirectory!$B$1:$B$6216,MATCH(TRUE,INDEX(ESADirectory!$M$1:$M$6216=InCubedMembers[[#This Row],[email lower]],0),0)) ->  | J41: =INDEX(ESADirectory!$O$1:$O$6216,MATCH(TRUE,INDEX(ESADirectory!$M$1:$M$6216=InCubedMembers[[#This Row],[email lower]],0),0)) ->  | K41: =INDEX(ESADirectory!$N$1:$N$6216,MATCH(TRUE,INDEX(ESADirectory!$M$1:$M$6216=InCubedMembers[[#This Row],[email lower]],0),0)) ->  | L41: =INDEX(ESADirectory!$P$1:$P$6216,MATCH(TRUE,INDEX(ESADirectory!$M$1:$M$6216=InCubedMembers[[#This Row],[email lower]],0),0)) ->  | M41: =INDEX(ESADirectory!$C$1:$C$6216,MATCH(TRUE,INDEX(ESADirectory!$M$1:$M$6216=InCubedMembers[[#This Row],[email lower]],0),0)) -> 
A42: Piera Di Vito | B42: Piera.di.Vito@esa.int | C42: TO | D42: ​InCubed team | E42: Item | F42: departments/EOP-8/EOP-8L/Lists/Members TO | G42: FALSE | H42: =LOWER(InCubedMembers[[#This Row],[Member is SP]]) -> piera.di.vito@esa.int | I42: =INDEX(ESADirectory!$B$1:$B$6216,MATCH(TRUE,INDEX(ESADirectory!$M$1:$M$6216=InCubedMembers[[#This Row],[email lower]],0),0)) ->  | J42: =INDEX(ESADirectory!$O$1:$O$6216,MATCH(TRUE,INDEX(ESADirectory!$M$1:$M$6216=InCubedMembers[[#This Row],[email lower]],0),0)) ->  | K42: =INDEX(ESADirectory!$N$1:$N$6216,MATCH(TRUE,INDEX(ESADirectory!$M$1:$M$6216=InCubedMembers[[#This Row],[email lower]],0),0)) ->  | L42: =INDEX(ESADirectory!$P$1:$P$6216,MATCH(TRUE,INDEX(ESADirectory!$M$1:$M$6216=InCubedMembers[[#This Row],[email lower]],0),0)) ->  | M42: =INDEX(ESADirectory!$C$1:$C$6216,MATCH(TRUE,INDEX(ESADirectory!$M$1:$M$6216=InCubedMembers[[#This Row],[email lower]],0),0)) -> 
A43: Nicolas Longepe | B43: Nicolas.Longepe@esa.int | C43: TO | E43: Item | F43: departments/EOP-8/EOP-8L/Lists/Members TO | G43: FALSE | H43: =LOWER(InCubedMembers[[#This Row],[Member is SP]]) -> nicolas.longepe@esa.int | I43: =INDEX(ESADirectory!$B$1:$B$6216,MATCH(TRUE,INDEX(ESADirectory!$M$1:$M$6216=InCubedMembers[[#This Row],[email lower]],0),0)) ->  | J43: =INDEX(ESADirectory!$O$1:$O$6216,MATCH(TRUE,INDEX(ESADirectory!$M$1:$M$6216=InCubedMembers[[#This Row],[email lower]],0),0)) ->  | K43: =INDEX(ESADirectory!$N$1:$N$6216,MATCH(TRUE,INDEX(ESADirectory!$M$1:$M$6216=InCubedMembers[[#This Row],[email lower]],0),0)) ->  | L43: =INDEX(ESADirectory!$P$1:$P$6216,MATCH(TRUE,INDEX(ESADirectory!$M$1:$M$6216=InCubedMembers[[#This Row],[email lower]],0),0)) ->  | M43: =INDEX(ESADirectory!$C$1:$C$6216,MATCH(TRUE,INDEX(ESADirectory!$M$1:$M$6216=InCubedMembers[[#This Row],[email lower]],0),0)) -> 
A44: Paolo Crosta | B44: Paolo.Crosta@esa.int | C44: TO | E44: Item | F44: departments/EOP-8/EOP-8L/Lists/Members TO | G44: FALSE | H44: =LOWER(InCubedMembers[[#This Row],[Member is SP]]) -> paolo.crosta@esa.int | I44: =INDEX(ESADirectory!$B$1:$B$6216,MATCH(TRUE,INDEX(ESADirectory!$M$1:$M$6216=InCubedMembers[[#This Row],[email lower]],0),0)) ->  | J44: =INDEX(ESADirectory!$O$1:$O$6216,MATCH(TRUE,INDEX(ESADirectory!$M$1:$M$6216=InCubedMembers[[#This Row],[email lower]],0),0)) ->  | K44: =INDEX(ESADirectory!$N$1:$N$6216,MATCH(TRUE,INDEX(ESADirectory!$M$1:$M$6216=InCubedMembers[[#This Row],[email lower]],0),0)) ->  | L44: =INDEX(ESADirectory!$P$1:$P$6216,MATCH(TRUE,INDEX(ESADirectory!$M$1:$M$6216=InCubedMembers[[#This Row],[email lower]],0),0)) ->  | M44: =INDEX(ESADirectory!$C$1:$C$6216,MATCH(TRUE,INDEX(ESADirectory!$M$1:$M$6216=InCubedMembers[[#This Row],[email lower]],0),0)) -> 
A45: Iain Davies | B45: Iain.Davies@esa.int | C45: TO | E45: Item | F45: departments/EOP-8/EOP-8L/Lists/Members TO | G45: FALSE | H45: =LOWER(InCubedMembers[[#This Row],[Member is SP]]) -> iain.davies@esa.int | I45: =INDEX(ESADirectory!$B$1:$B$6216,MATCH(TRUE,INDEX(ESADirectory!$M$1:$M$6216=InCubedMembers[[#This Row],[email lower]],0),0)) ->  | J45: =INDEX(ESADirectory!$O$1:$O$6216,MATCH(TRUE,INDEX(ESADirectory!$M$1:$M$6216=InCubedMembers[[#This Row],[email lower]],0),0)) ->  | K45: =INDEX(ESADirectory!$N$1:$N$6216,MATCH(TRUE,INDEX(ESADirectory!$M$1:$M$6216=InCubedMembers[[#This Row],[email lower]],0),0)) ->  | L45: =INDEX(ESADirectory!$P$1:$P$6216,MATCH(TRUE,INDEX(ESADirectory!$M$1:$M$6216=InCubedMembers[[#This Row],[email lower]],0),0)) ->  | M45: =INDEX(ESADirectory!$C$1:$C$6216,MATCH(TRUE,INDEX(ESADirectory!$M$1:$M$6216=InCubedMembers[[#This Row],[email lower]],0),0)) -> 
A46: Petronilo Martin Iglesias | B46: Petronilo.Martin.Iglesias@esa.int | C46: TO | E46: Item | F46: departments/EOP-8/EOP-8L/Lists/Members TO | G46: FALSE | H46: =LOWER(InCubedMembers[[#This Row],[Member is SP]]) -> petronilo.martin.iglesias@esa.int | I46: =INDEX(ESADirectory!$B$1:$B$6216,MATCH(TRUE,INDEX(ESADirectory!$M$1:$M$6216=InCubedMembers[[#This Row],[email lower]],0),0)) ->  | J46: =INDEX(ESADirectory!$O$1:$O$6216,MATCH(TRUE,INDEX(ESADirectory!$M$1:$M$6216=InCubedMembers[[#This Row],[email lower]],0),0)) ->  | K46: =INDEX(ESADirectory!$N$1:$N$6216,MATCH(TRUE,INDEX(ESADirectory!$M$1:$M$6216=InCubedMembers[[#This Row],[email lower]],0),0)) ->  | L46: =INDEX(ESADirectory!$P$1:$P$6216,MATCH(TRUE,INDEX(ESADirectory!$M$1:$M$6216=InCubedMembers[[#This Row],[email lower]],0),0)) ->  | M46: =INDEX(ESADirectory!$C$1:$C$6216,MATCH(TRUE,INDEX(ESADirectory!$M$1:$M$6216=InCubedMembers[[#This Row],[email lower]],0),0)) -> 
A47: Tania Casal | B47: tania.casal@esa.int | C47: TO | D47: ​EO Campaign Manager | E47: Item | F47: departments/EOP-8/EOP-8L/Lists/Members TO | G47: FALSE | H47: =LOWER(InCubedMembers[[#This Row],[Member is SP]]) -> tania.casal@esa.int | I47: =INDEX(ESADirectory!$B$1:$B$6216,MATCH(TRUE,INDEX(ESADirectory!$M$1:$M$6216=InCubedMembers[[#This Row],[email lower]],0),0)) ->  | J47: =INDEX(ESADirectory!$O$1:$O$6216,MATCH(TRUE,INDEX(ESADirectory!$M$1:$M$6216=InCubedMembers[[#This Row],[email lower]],0),0)) ->  | K47: =INDEX(ESADirectory!$N$1:$N$6216,MATCH(TRUE,INDEX(ESADirectory!$M$1:$M$6216=InCubedMembers[[#This Row],[email lower]],0),0)) ->  | L47: =INDEX(ESADirectory!$P$1:$P$6216,MATCH(TRUE,INDEX(ESADirectory!$M$1:$M$6216=InCubedMembers[[#This Row],[email lower]],0),0)) ->  | M47: =INDEX(ESADirectory!$C$1:$C$6216,MATCH(TRUE,INDEX(ESADirectory!$M$1:$M$6216=InCubedMembers[[#This Row],[email lower]],0),0)) -> 
A48: Helene Strese | B48: Helene.Strese@esa.int | C48: TO | D48: ​Optical Payloads design | E48: Item | F48: departments/EOP-8/EOP-8L/Lists/Members TO | G48: FALSE | H48: =LOWER(InCubedMembers[[#This Row],[Member is SP]]) -> helene.strese@esa.int | I48: =INDEX(ESADirectory!$B$1:$B$6216,MATCH(TRUE,INDEX(ESADirectory!$M$1:$M$6216=InCubedMembers[[#This Row],[email lower]],0),0)) ->  | J48: =INDEX(ESADirectory!$O$1:$O$6216,MATCH(TRUE,INDEX(ESADirectory!$M$1:$M$6216=InCubedMembers[[#This Row],[email lower]],0),0)) ->  | K48: =INDEX(ESADirectory!$N$1:$N$6216,MATCH(TRUE,INDEX(ESADirectory!$M$1:$M$6216=InCubedMembers[[#This Row],[email lower]],0),0)) ->  | L48: =INDEX(ESADirectory!$P$1:$P$6216,MATCH(TRUE,INDEX(ESADirectory!$M$1:$M$6216=InCubedMembers[[#This Row],[email lower]],0),0)) ->  | M48: =INDEX(ESADirectory!$C$1:$C$6216,MATCH(TRUE,INDEX(ESADirectory!$M$1:$M$6216=InCubedMembers[[#This Row],[email lower]],0),0)) -> 
A49: Hayret Abdula | B49: Hayret.Abdula@esa.int | C49: TO | E49: Item | F49: departments/EOP-8/EOP-8L/Lists/Members TO | G49: FALSE | H49: =LOWER(InCubedMembers[[#This Row],[Member is SP]]) -> hayret.abdula@esa.int | I49: =INDEX(ESADirectory!$B$1:$B$6216,MATCH(TRUE,INDEX(ESADirectory!$M$1:$M$6216=InCubedMembers[[#This Row],[email lower]],0),0)) ->  | J49: =INDEX(ESADirectory!$O$1:$O$6216,MATCH(TRUE,INDEX(ESADirectory!$M$1:$M$6216=InCubedMembers[[#This Row],[email lower]],0),0)) ->  | K49: =INDEX(ESADirectory!$N$1:$N$6216,MATCH(TRUE,INDEX(ESADirectory!$M$1:$M$6216=InCubedMembers[[#This Row],[email lower]],0),0)) ->  | L49: =INDEX(ESADirectory!$P$1:$P$6216,MATCH(TRUE,INDEX(ESADirectory!$M$1:$M$6216=InCubedMembers[[#This Row],[email lower]],0),0)) ->  | M49: =INDEX(ESADirectory!$C$1:$C$6216,MATCH(TRUE,INDEX(ESADirectory!$M$1:$M$6216=InCubedMembers[[#This Row],[email lower]],0),0)) -> 
A50: Alizee Malavart | B50: alizee.malavart@esa.int | C50: TO | E50: Item | F50: departments/EOP-8/EOP-8L/Lists/Members TO | G50: FALSE | H50: =LOWER(InCubedMembers[[#This Row],[Member is SP]]) -> alizee.malavart@esa.int | I50: =INDEX(ESADirectory!$B$1:$B$6216,MATCH(TRUE,INDEX(ESADirectory!$M$1:$M$6216=InCubedMembers[[#This Row],[email lower]],0),0)) ->  | J50: =INDEX(ESADirectory!$O$1:$O$6216,MATCH(TRUE,INDEX(ESADirectory!$M$1:$M$6216=InCubedMembers[[#This Row],[email lower]],0),0)) ->  | K50: =INDEX(ESADirectory!$N$1:$N$6216,MATCH(TRUE,INDEX(ESADirectory!$M$1:$M$6216=InCubedMembers[[#This Row],[email lower]],0),0)) ->  | L50: =INDEX(ESADirectory!$P$1:$P$6216,MATCH(TRUE,INDEX(ESADirectory!$M$1:$M$6216=InCubedMembers[[#This Row],[email lower]],0),0)) ->  | M50: =INDEX(ESADirectory!$C$1:$C$6216,MATCH(TRUE,INDEX(ESADirectory!$M$1:$M$6216=InCubedMembers[[#This Row],[email lower]],0),0)) -> 
A51: Alan Le Priellec | B51: alan.le.priellec@esa.int | C51: TO | E51: Item | F51: departments/EOP-8/EOP-8L/Lists/Members TO | G51: FALSE | H51: =LOWER(InCubedMembers[[#This Row],[Member is SP]]) -> alan.le.priellec@esa.int | I51: =INDEX(ESADirectory!$B$1:$B$6216,MATCH(TRUE,INDEX(ESADirectory!$M$1:$M$6216=InCubedMembers[[#This Row],[email lower]],0),0)) ->  | J51: =INDEX(ESADirectory!$O$1:$O$6216,MATCH(TRUE,INDEX(ESADirectory!$M$1:$M$6216=InCubedMembers[[#This Row],[email lower]],0),0)) ->  | K51: =INDEX(ESADirectory!$N$1:$N$6216,MATCH(TRUE,INDEX(ESADirectory!$M$1:$M$6216=InCubedMembers[[#This Row],[email lower]],0),0)) ->  | L51: =INDEX(ESADirectory!$P$1:$P$6216,MATCH(TRUE,INDEX(ESADirectory!$M$1:$M$6216=InCubedMembers[[#This Row],[email lower]],0),0)) ->  | M51: =INDEX(ESADirectory!$C$1:$C$6216,MATCH(TRUE,INDEX(ESADirectory!$M$1:$M$6216=InCubedMembers[[#This Row],[email lower]],0),0)) -> 
A52: Andrea Modenini | B52: Andrea.Modenini@esa.int | C52: TO | E52: Item | F52: departments/EOP-8/EOP-8L/Lists/Members TO | G52: TRUE | H52: =LOWER(InCubedMembers[[#This Row],[Member is SP]]) -> andrea.modenini@esa.int | I52: =INDEX(ESADirectory!$B$1:$B$6216,MATCH(TRUE,INDEX(ESADirectory!$M$1:$M$6216=InCubedMembers[[#This Row],[email lower]],0),0)) ->  | J52: =INDEX(ESADirectory!$O$1:$O$6216,MATCH(TRUE,INDEX(ESADirectory!$M$1:$M$6216=InCubedMembers[[#This Row],[email lower]],0),0)) ->  | K52: =INDEX(ESADirectory!$N$1:$N$6216,MATCH(TRUE,INDEX(ESADirectory!$M$1:$M$6216=InCubedMembers[[#This Row],[email lower]],0),0)) ->  | L52: =INDEX(ESADirectory!$P$1:$P$6216,MATCH(TRUE,INDEX(ESADirectory!$M$1:$M$6216=InCubedMembers[[#This Row],[email lower]],0),0)) ->  | M52: =INDEX(ESADirectory!$C$1:$C$6216,MATCH(TRUE,INDEX(ESADirectory!$M$1:$M$6216=InCubedMembers[[#This Row],[email lower]],0),0)) -> 
A53: Richard Morgan-Owen | B53: Richard.Morgan-Owen@esa.int | C53: TO | E53: Item | F53: departments/EOP-8/EOP-8L/Lists/Members TO | G53: FALSE | H53: =LOWER(InCubedMembers[[#This Row],[Member is SP]]) -> richard.morgan-owen@esa.int | I53: =INDEX(ESADirectory!$B$1:$B$6216,MATCH(TRUE,INDEX(ESADirectory!$M$1:$M$6216=InCubedMembers[[#This Row],[email lower]],0),0)) ->  | J53: =INDEX(ESADirectory!$O$1:$O$6216,MATCH(TRUE,INDEX(ESADirectory!$M$1:$M$6216=InCubedMembers[[#This Row],[email lower]],0),0)) ->  | K53: =INDEX(ESADirectory!$N$1:$N$6216,MATCH(TRUE,INDEX(ESADirectory!$M$1:$M$6216=InCubedMembers[[#This Row],[email lower]],0),0)) ->  | L53: =INDEX(ESADirectory!$P$1:$P$6216,MATCH(TRUE,INDEX(ESADirectory!$M$1:$M$6216=InCubedMembers[[#This Row],[email lower]],0),0)) ->  | M53: =INDEX(ESADirectory!$C$1:$C$6216,MATCH(TRUE,INDEX(ESADirectory!$M$1:$M$6216=InCubedMembers[[#This Row],[email lower]],0),0)) -> 
A54: Thomas Burger | B54: Thomas.Burger@esa.int | C54: TO | D54: ​Polarimetric radio occultation | E54: Item | F54: departments/EOP-8/EOP-8L/Lists/Members TO | G54: FALSE | H54: =LOWER(InCubedMembers[[#This Row],[Member is SP]]) -> thomas.burger@esa.int | I54: =INDEX(ESADirectory!$B$1:$B$6216,MATCH(TRUE,INDEX(ESADirectory!$M$1:$M$6216=InCubedMembers[[#This Row],[email lower]],0),0)) ->  | J54: =INDEX(ESADirectory!$O$1:$O$6216,MATCH(TRUE,INDEX(ESADirectory!$M$1:$M$6216=InCubedMembers[[#This Row],[email lower]],0),0)) ->  | K54: =INDEX(ESADirectory!$N$1:$N$6216,MATCH(TRUE,INDEX(ESADirectory!$M$1:$M$6216=InCubedMembers[[#This Row],[email lower]],0),0)) ->  | L54: =INDEX(ESADirectory!$P$1:$P$6216,MATCH(TRUE,INDEX(ESADirectory!$M$1:$M$6216=InCubedMembers[[#This Row],[email lower]],0),0)) ->  | M54: =INDEX(ESADirectory!$C$1:$C$6216,MATCH(TRUE,INDEX(ESADirectory!$M$1:$M$6216=InCubedMembers[[#This Row],[email lower]],0),0)) -> 
A55: Davide Coppola | B55: Davide.Coppola@esa.int | C55: TO | E55: Item | F55: departments/EOP-8/EOP-8L/Lists/Members TO | G55: FALSE | H55: =LOWER(InCubedMembers[[#This Row],[Member is SP]]) -> davide.coppola@esa.int | I55: =INDEX(ESADirectory!$B$1:$B$6216,MATCH(TRUE,INDEX(ESADirectory!$M$1:$M$6216=InCubedMembers[[#This Row],[email lower]],0),0)) ->  | J55: =INDEX(ESADirectory!$O$1:$O$6216,MATCH(TRUE,INDEX(ESADirectory!$M$1:$M$6216=InCubedMembers[[#This Row],[email lower]],0),0)) ->  | K55: =INDEX(ESADirectory!$N$1:$N$6216,MATCH(TRUE,INDEX(ESADirectory!$M$1:$M$6216=InCubedMembers[[#This Row],[email lower]],0),0)) ->  | L55: =INDEX(ESADirectory!$P$1:$P$6216,MATCH(TRUE,INDEX(ESADirectory!$M$1:$M$6216=InCubedMembers[[#This Row],[email lower]],0),0)) ->  | M55: =INDEX(ESADirectory!$C$1:$C$6216,MATCH(TRUE,INDEX(ESADirectory!$M$1:$M$6216=InCubedMembers[[#This Row],[email lower]],0),0)) -> 
A56: Artur Palowski | B56: Artur.Palowski@esa.int | C56: TO | E56: Item | F56: departments/EOP-8/EOP-8L/Lists/Members TO | G56: FALSE | H56: =LOWER(InCubedMembers[[#This Row],[Member is SP]]) -> artur.palowski@esa.int | I56: =INDEX(ESADirectory!$B$1:$B$6216,MATCH(TRUE,INDEX(ESADirectory!$M$1:$M$6216=InCubedMembers[[#This Row],[email lower]],0),0)) ->  | J56: =INDEX(ESADirectory!$O$1:$O$6216,MATCH(TRUE,INDEX(ESADirectory!$M$1:$M$6216=InCubedMembers[[#This Row],[email lower]],0),0)) ->  | K56: =INDEX(ESADirectory!$N$1:$N$6216,MATCH(TRUE,INDEX(ESADirectory!$M$1:$M$6216=InCubedMembers[[#This Row],[email lower]],0),0)) ->  | L56: =INDEX(ESADirectory!$P$1:$P$6216,MATCH(TRUE,INDEX(ESADirectory!$M$1:$M$6216=InCubedMembers[[#This Row],[email lower]],0),0)) ->  | M56: =INDEX(ESADirectory!$C$1:$C$6216,MATCH(TRUE,INDEX(ESADirectory!$M$1:$M$6216=InCubedMembers[[#This Row],[email lower]],0),0)) -> 
A57: Elias Taylor | B57: Elias.Taylor@esa.int | C57: TO | E57: Item | F57: departments/EOP-8/EOP-8L/Lists/Members TO | G57: FALSE | H57: =LOWER(InCubedMembers[[#This Row],[Member is SP]]) -> elias.taylor@esa.int | I57: =INDEX(ESADirectory!$B$1:$B$6216,MATCH(TRUE,INDEX(ESADirectory!$M$1:$M$6216=InCubedMembers[[#This Row],[email lower]],0),0)) ->  | J57: =INDEX(ESADirectory!$O$1:$O$6216,MATCH(TRUE,INDEX(ESADirectory!$M$1:$M$6216=InCubedMembers[[#This Row],[email lower]],0),0)) ->  | K57: =INDEX(ESADirectory!$N$1:$N$6216,MATCH(TRUE,INDEX(ESADirectory!$M$1:$M$6216=InCubedMembers[[#This Row],[email lower]],0),0)) ->  | L57: =INDEX(ESADirectory!$P$1:$P$6216,MATCH(TRUE,INDEX(ESADirectory!$M$1:$M$6216=InCubedMembers[[#This Row],[email lower]],0),0)) ->  | M57: =INDEX(ESADirectory!$C$1:$C$6216,MATCH(TRUE,INDEX(ESADirectory!$M$1:$M$6216=InCubedMembers[[#This Row],[email lower]],0),0)) -> 
A58: Arnaud Pasquet | B58: Arnaud.Pasquet@esa.int | C58: TO | E58: Item | F58: departments/EOP-8/EOP-8L/Lists/Members TO | G58: FALSE | H58: =LOWER(InCubedMembers[[#This Row],[Member is SP]]) -> arnaud.pasquet@esa.int | I58: =INDEX(ESADirectory!$B$1:$B$6216,MATCH(TRUE,INDEX(ESADirectory!$M$1:$M$6216=InCubedMembers[[#This Row],[email lower]],0),0)) ->  | J58: =INDEX(ESADirectory!$O$1:$O$6216,MATCH(TRUE,INDEX(ESADirectory!$M$1:$M$6216=InCubedMembers[[#This Row],[email lower]],0),0)) ->  | K58: =INDEX(ESADirectory!$N$1:$N$6216,MATCH(TRUE,INDEX(ESADirectory!$M$1:$M$6216=InCubedMembers[[#This Row],[email lower]],0),0)) ->  | L58: =INDEX(ESADirectory!$P$1:$P$6216,MATCH(TRUE,INDEX(ESADirectory!$M$1:$M$6216=InCubedMembers[[#This Row],[email lower]],0),0)) ->  | M58: =INDEX(ESADirectory!$C$1:$C$6216,MATCH(TRUE,INDEX(ESADirectory!$M$1:$M$6216=InCubedMembers[[#This Row],[email lower]],0),0)) -> 
A59: Donatella Ponziani | B59: Donatella.Ponziani@esa.int | C59: TO | E59: Item | F59: departments/EOP-8/EOP-8L/Lists/Members TO | G59: FALSE | H59: =LOWER(InCubedMembers[[#This Row],[Member is SP]]) -> donatella.ponziani@esa.int | I59: =INDEX(ESADirectory!$B$1:$B$6216,MATCH(TRUE,INDEX(ESADirectory!$M$1:$M$6216=InCubedMembers[[#This Row],[email lower]],0),0)) ->  | J59: =INDEX(ESADirectory!$O$1:$O$6216,MATCH(TRUE,INDEX(ESADirectory!$M$1:$M$6216=InCubedMembers[[#This Row],[email lower]],0),0)) ->  | K59: =INDEX(ESADirectory!$N$1:$N$6216,MATCH(TRUE,INDEX(ESADirectory!$M$1:$M$6216=InCubedMembers[[#This Row],[email lower]],0),0)) ->  | L59: =INDEX(ESADirectory!$P$1:$P$6216,MATCH(TRUE,INDEX(ESADirectory!$M$1:$M$6216=InCubedMembers[[#This Row],[email lower]],0),0)) ->  | M59: =INDEX(ESADirectory!$C$1:$C$6216,MATCH(TRUE,INDEX(ESADirectory!$M$1:$M$6216=InCubedMembers[[#This Row],[email lower]],0),0)) -> 
A60: Michael marszalek | B60: Michael.Marszalek@esa.int | C60: TO | E60: Item | F60: departments/EOP-8/EOP-8L/Lists/Members TO | G60: FALSE | H60: =LOWER(InCubedMembers[[#This Row],[Member is SP]]) -> michael.marszalek@esa.int | I60: =INDEX(ESADirectory!$B$1:$B$6216,MATCH(TRUE,INDEX(ESADirectory!$M$1:$M$6216=InCubedMembers[[#This Row],[email lower]],0),0)) ->  | J60: =INDEX(ESADirectory!$O$1:$O$6216,MATCH(TRUE,INDEX(ESADirectory!$M$1:$M$6216=InCubedMembers[[#This Row],[email lower]],0),0)) ->  | K60: =INDEX(ESADirectory!$N$1:$N$6216,MATCH(TRUE,INDEX(ESADirectory!$M$1:$M$6216=InCubedMembers[[#This Row],[email lower]],0),0)) ->  | L60: =INDEX(ESADirectory!$P$1:$P$6216,MATCH(TRUE,INDEX(ESADirectory!$M$1:$M$6216=InCubedMembers[[#This Row],[email lower]],0),0)) ->  | M60: =INDEX(ESADirectory!$C$1:$C$6216,MATCH(TRUE,INDEX(ESADirectory!$M$1:$M$6216=InCubedMembers[[#This Row],[email lower]],0),0)) -> 
A61: Maria Grazia Abete | B61: Maria-Grazia.Abete@esa.int | E61: Item | F61: departments/EOP-8/EOP-8L/Lists/Members TO | G61: FALSE | H61: =LOWER(InCubedMembers[[#This Row],[Member is SP]]) -> maria-grazia.abete@esa.int | I61: =INDEX(ESADirectory!$B$1:$B$6216,MATCH(TRUE,INDEX(ESADirectory!$M$1:$M$6216=InCubedMembers[[#This Row],[email lower]],0),0)) ->  | J61: =INDEX(ESADirectory!$O$1:$O$6216,MATCH(TRUE,INDEX(ESADirectory!$M$1:$M$6216=InCubedMembers[[#This Row],[email lower]],0),0)) ->  | K61: =INDEX(ESADirectory!$N$1:$N$6216,MATCH(TRUE,INDEX(ESADirectory!$M$1:$M$6216=InCubedMembers[[#This Row],[email lower]],0),0)) ->  | L61: =INDEX(ESADirectory!$P$1:$P$6216,MATCH(TRUE,INDEX(ESADirectory!$M$1:$M$6216=InCubedMembers[[#This Row],[email lower]],0),0)) ->  | M61: =INDEX(ESADirectory!$C$1:$C$6216,MATCH(TRUE,INDEX(ESADirectory!$M$1:$M$6216=InCubedMembers[[#This Row],[email lower]],0),0)) -> 
A62: Sergio Tabasco Vargas | B62: Sergio.Terzo@esa.int | C62: TO | E62: Item | F62: departments/EOP-8/EOP-8L/Lists/Members TO | G62: TRUE | H62: =LOWER(InCubedMembers[[#This Row],[Member is SP]]) -> sergio.terzo@esa.int | I62: =INDEX(ESADirectory!$B$1:$B$6216,MATCH(TRUE,INDEX(ESADirectory!$M$1:$M$6216=InCubedMembers[[#This Row],[email lower]],0),0)) ->  | J62: =INDEX(ESADirectory!$O$1:$O$6216,MATCH(TRUE,INDEX(ESADirectory!$M$1:$M$6216=InCubedMembers[[#This Row],[email lower]],0),0)) ->  | K62: =INDEX(ESADirectory!$N$1:$N$6216,MATCH(TRUE,INDEX(ESADirectory!$M$1:$M$6216=InCubedMembers[[#This Row],[email lower]],0),0)) ->  | L62: =INDEX(ESADirectory!$P$1:$P$6216,MATCH(TRUE,INDEX(ESADirectory!$M$1:$M$6216=InCubedMembers[[#This Row],[email lower]],0),0)) ->  | M62: =INDEX(ESADirectory!$C$1:$C$6216,MATCH(TRUE,INDEX(ESADirectory!$M$1:$M$6216=InCubedMembers[[#This Row],[email lower]],0),0)) -> 
A63: Zoltan Bartalis | B63: Zoltan.Bartalis@esa.int | C63: TO | E63: Item | F63: departments/EOP-8/EOP-8L/Lists/Members TO | G63: FALSE | H63: =LOWER(InCubedMembers[[#This Row],[Member is SP]]) -> zoltan.bartalis@esa.int | I63: =INDEX(ESADirectory!$B$1:$B$6216,MATCH(TRUE,INDEX(ESADirectory!$M$1:$M$6216=InCubedMembers[[#This Row],[email lower]],0),0)) ->  | J63: =INDEX(ESADirectory!$O$1:$O$6216,MATCH(TRUE,INDEX(ESADirectory!$M$1:$M$6216=InCubedMembers[[#This Row],[email lower]],0),0)) ->  | K63: =INDEX(ESADirectory!$N$1:$N$6216,MATCH(TRUE,INDEX(ESADirectory!$M$1:$M$6216=InCubedMembers[[#This Row],[email lower]],0),0)) ->  | L63: =INDEX(ESADirectory!$P$1:$P$6216,MATCH(TRUE,INDEX(ESADirectory!$M$1:$M$6216=InCubedMembers[[#This Row],[email lower]],0),0)) ->  | M63: =INDEX(ESADirectory!$C$1:$C$6216,MATCH(TRUE,INDEX(ESADirectory!$M$1:$M$6216=InCubedMembers[[#This Row],[email lower]],0),0)) -> 
A64: Marc Paganini | B64: Marc.Paganini@esa.int | C64: TO | D64: ​Urban TEP | E64: Item | F64: departments/EOP-8/EOP-8L/Lists/Members TO | G64: FALSE | H64: =LOWER(InCubedMembers[[#This Row],[Member is SP]]) -> marc.paganini@esa.int | I64: =INDEX(ESADirectory!$B$1:$B$6216,MATCH(TRUE,INDEX(ESADirectory!$M$1:$M$6216=InCubedMembers[[#This Row],[email lower]],0),0)) ->  | J64: =INDEX(ESADirectory!$O$1:$O$6216,MATCH(TRUE,INDEX(ESADirectory!$M$1:$M$6216=InCubedMembers[[#This Row],[email lower]],0),0)) ->  | K64: =INDEX(ESADirectory!$N$1:$N$6216,MATCH(TRUE,INDEX(ESADirectory!$M$1:$M$6216=InCubedMembers[[#This Row],[email lower]],0),0)) ->  | L64: =INDEX(ESADirectory!$P$1:$P$6216,MATCH(TRUE,INDEX(ESADirectory!$M$1:$M$6216=InCubedMembers[[#This Row],[email lower]],0),0)) ->  | M64: =INDEX(ESADirectory!$C$1:$C$6216,MATCH(TRUE,INDEX(ESADirectory!$M$1:$M$6216=InCubedMembers[[#This Row],[email lower]],0),0)) -> 
A65: Christoph Voland | B65: Christoph.Voland@esa.int | C65: TO | E65: Item | F65: departments/EOP-8/EOP-8L/Lists/Members TO | G65: FALSE | H65: =LOWER(InCubedMembers[[#This Row],[Member is SP]]) -> christoph.voland@esa.int | I65: =INDEX(ESADirectory!$B$1:$B$6216,MATCH(TRUE,INDEX(ESADirectory!$M$1:$M$6216=InCubedMembers[[#This Row],[email lower]],0),0)) ->  | J65: =INDEX(ESADirectory!$O$1:$O$6216,MATCH(TRUE,INDEX(ESADirectory!$M$1:$M$6216=InCubedMembers[[#This Row],[email lower]],0),0)) ->  | K65: =INDEX(ESADirectory!$N$1:$N$6216,MATCH(TRUE,INDEX(ESADirectory!$M$1:$M$6216=InCubedMembers[[#This Row],[email lower]],0),0)) ->  | L65: =INDEX(ESADirectory!$P$1:$P$6216,MATCH(TRUE,INDEX(ESADirectory!$M$1:$M$6216=InCubedMembers[[#This Row],[email lower]],0),0)) ->  | M65: =INDEX(ESADirectory!$C$1:$C$6216,MATCH(TRUE,INDEX(ESADirectory!$M$1:$M$6216=InCubedMembers[[#This Row],[email lower]],0),0)) -> 
A66: itziar Barat | B66: Itziar.Barat@esa.int | C66: TO | E66: Item | F66: departments/EOP-8/EOP-8L/Lists/Members TO | G66: FALSE | H66: =LOWER(InCubedMembers[[#This Row],[Member is SP]]) -> itziar.barat@esa.int | I66: =INDEX(ESADirectory!$B$1:$B$6216,MATCH(TRUE,INDEX(ESADirectory!$M$1:$M$6216=InCubedMembers[[#This Row],[email lower]],0),0)) ->  | J66: =INDEX(ESADirectory!$O$1:$O$6216,MATCH(TRUE,INDEX(ESADirectory!$M$1:$M$6216=InCubedMembers[[#This Row],[email lower]],0),0)) ->  | K66: =INDEX(ESADirectory!$N$1:$N$6216,MATCH(TRUE,INDEX(ESADirectory!$M$1:$M$6216=InCubedMembers[[#This Row],[email lower]],0),0)) ->  | L66: =INDEX(ESADirectory!$P$1:$P$6216,MATCH(TRUE,INDEX(ESADirectory!$M$1:$M$6216=InCubedMembers[[#This Row],[email lower]],0),0)) ->  | M66: =INDEX(ESADirectory!$C$1:$C$6216,MATCH(TRUE,INDEX(ESADirectory!$M$1:$M$6216=InCubedMembers[[#This Row],[email lower]],0),0)) -> 
A67: Itziar Alonso | B67: itziar.alonso@solenix.ch | C67: TO | E67: Item | F67: departments/EOP-8/EOP-8L/Lists/Members TO | G67: TRUE | H67: =LOWER(InCubedMembers[[#This Row],[Member is SP]]) -> itziar.alonso@solenix.ch | I67: =INDEX(ESADirectory!$B$1:$B$6216,MATCH(TRUE,INDEX(ESADirectory!$M$1:$M$6216=InCubedMembers[[#This Row],[email lower]],0),0)) ->  | J67: =INDEX(ESADirectory!$O$1:$O$6216,MATCH(TRUE,INDEX(ESADirectory!$M$1:$M$6216=InCubedMembers[[#This Row],[email lower]],0),0)) ->  | K67: =INDEX(ESADirectory!$N$1:$N$6216,MATCH(TRUE,INDEX(ESADirectory!$M$1:$M$6216=InCubedMembers[[#This Row],[email lower]],0),0)) ->  | L67: =INDEX(ESADirectory!$P$1:$P$6216,MATCH(TRUE,INDEX(ESADirectory!$M$1:$M$6216=InCubedMembers[[#This Row],[email lower]],0),0)) ->  | M67: =INDEX(ESADirectory!$C$1:$C$6216,MATCH(TRUE,INDEX(ESADirectory!$M$1:$M$6216=InCubedMembers[[#This Row],[email lower]],0),0)) -> 
A68: Ruediger Weiler | B68: Ruediger.Weiler@esa.int | C68: TO | E68: Item | F68: departments/EOP-8/EOP-8L/Lists/Members TO | G68: FALSE | H68: =LOWER(InCubedMembers[[#This Row],[Member is SP]]) -> ruediger.weiler@esa.int | I68: =INDEX(ESADirectory!$B$1:$B$6216,MATCH(TRUE,INDEX(ESADirectory!$M$1:$M$6216=InCubedMembers[[#This Row],[email lower]],0),0)) ->  | J68: =INDEX(ESADirectory!$O$1:$O$6216,MATCH(TRUE,INDEX(ESADirectory!$M$1:$M$6216=InCubedMembers[[#This Row],[email lower]],0),0)) ->  | K68: =INDEX(ESADirectory!$N$1:$N$6216,MATCH(TRUE,INDEX(ESADirectory!$M$1:$M$6216=InCubedMembers[[#This Row],[email lower]],0),0)) ->  | L68: =INDEX(ESADirectory!$P$1:$P$6216,MATCH(TRUE,INDEX(ESADirectory!$M$1:$M$6216=InCubedMembers[[#This Row],[email lower]],0),0)) ->  | M68: =INDEX(ESADirectory!$C$1:$C$6216,MATCH(TRUE,INDEX(ESADirectory!$M$1:$M$6216=InCubedMembers[[#This Row],[email lower]],0),0)) -> 
A69: Clemens Heese | B69: Clemens.Heese@esa.int | C69: TO | E69: Item | F69: departments/EOP-8/EOP-8L/Lists/Members TO | G69: FALSE | H69: =LOWER(InCubedMembers[[#This Row],[Member is SP]]) -> clemens.heese@esa.int | I69: =INDEX(ESADirectory!$B$1:$B$6216,MATCH(TRUE,INDEX(ESADirectory!$M$1:$M$6216=InCubedMembers[[#This Row],[email lower]],0),0)) ->  | J69: =INDEX(ESADirectory!$O$1:$O$6216,MATCH(TRUE,INDEX(ESADirectory!$M$1:$M$6216=InCubedMembers[[#This Row],[email lower]],0),0)) ->  | K69: =INDEX(ESADirectory!$N$1:$N$6216,MATCH(TRUE,INDEX(ESADirectory!$M$1:$M$6216=InCubedMembers[[#This Row],[email lower]],0),0)) ->  | L69: =INDEX(ESADirectory!$P$1:$P$6216,MATCH(TRUE,INDEX(ESADirectory!$M$1:$M$6216=InCubedMembers[[#This Row],[email lower]],0),0)) ->  | M69: =INDEX(ESADirectory!$C$1:$C$6216,MATCH(TRUE,INDEX(ESADirectory!$M$1:$M$6216=InCubedMembers[[#This Row],[email lower]],0),0)) -> 

Sheet template (hidden)
A1: =TODAY() -> 2022-03-28 | B1: =TEXT(A1,"yymmdd") -> 220328
A8: Smart Contract version 3.3
A9: 2022-03-28
